Col. Code,Agency,Check No.,Payee,Month,Day,Year,Purpose,Source,Amount
48,J.F. Drake State,210509,ALADE,Oct,16,2013,In State-Other Travel Exp,Title III,$415.00
48,J.F. Drake State,107592,Alabama Deans of Student Affairs As,Oct,16,2013,Professional Dev-State,General Operating Fund,$100.00
48,J.F. Drake State,107593,Alabama Department of Labor,Oct,16,2013,Unemployment Compensation,General Operating Fund,"$3,390.91"
48,J.F. Drake State,30001001,"Brown, Richard J.",Oct,16,2013,Scholarships,PELL,"$2,117.00"
48,J.F. Drake State,30001003,"Cobb, Angela R.",Oct,16,2013,Scholarships,PELL,"$1,154.50"
48,J.F. Drake State,107591,Domino's Pizza,Oct,16,2013,Materials and Supplies,General Operating Fund,$142.42
48,J.F. Drake State,210510,Mama Annie's,Oct,16,2013,Other Contractual Services,DigiTec,$674.56
48,J.F. Drake State,30001002,"Taylor, Tyler D.",Oct,16,2013,Scholarships,PELL,$149.50
48,J.F. Drake State,107589,The Alabama Constitution Village Fo,Oct,16,2013,Advertising & Promotions,General Operating Fund,"$1,000.00"
48,J.F. Drake State,30001004,"Bulluck, Bruce A.",Oct,21,2013,In State-Ovrnite Per diem,Title III,$150.00
48,J.F. Drake State,30001005,"Chance, Katie E.",Oct,21,2013,In State-Mileage,Title III,$59.21
48,J.F. Drake State,10001001,"Green, Tiffany R.",Oct,21,2013,In State-Ovrnite Per diem,CARCAM,$150.00
48,J.F. Drake State,30001006,"Green, Tiffany R.",Oct,21,2013,In State-Mileage,Spin Up,$233.98
48,J.F. Drake State,10001002,J.F. Drake College Fund,Oct,21,2013,Materials and Supplies,General Operating Fund,$81.95
48,J.F. Drake State,30001007,J.F. Drake College Fund,Oct,21,2013,Materials and Supplies,General Operating Fund,$78.16
48,J.F. Drake State,10001002,J.F. Drake College Fund,Oct,21,2013,Materials and Supplies,General Operating Fund,$50.33
48,J.F. Drake State,30001007,J.F. Drake College Fund,Oct,21,2013,Materials and Supplies,Spin Up,$12.15
48,J.F. Drake State,10001002,J.F. Drake College Fund,Oct,21,2013,Materials and Supplies,CARCAM,$38.43
48,J.F. Drake State,30001008,"Kibler, Thomas B.",Oct,21,2013,In State-Ovrnite Per diem,Title III,$300.00
48,J.F. Drake State,30001009,"Ksepka, Nicholas P.",Oct,21,2013,In State-Mileage,Title III,$274.59
48,J.F. Drake State,30001009,"Ksepka, Nicholas P.",Oct,21,2013,In State-Ovrnite Per diem,Title III,$300.00
48,J.F. Drake State,30001010,"Lam, Thuy",Oct,21,2013,In State-Mileage,Title III,$219.50
48,J.F. Drake State,30001011,Omni Shoreham Hotel,Oct,21,2013,Out-of-State-Other Travel Expenses,DigiTec,$547.32
48,J.F. Drake State,10001003,PEEHIP,Oct,21,2013,Health Insurance-Institution Share,General Operating Fund,$523.60
48,J.F. Drake State,10001003,PEEHIP,Oct,21,2013,Health Insurance-Institution Share,General Operating Fund,$714.00
48,J.F. Drake State,30001012,PEEHIP,Oct,21,2013,Health Insurance-Institution Share,Allied Health,$452.20
48,J.F. Drake State,30001013,"Raymond, Alice G.",Oct,21,2013,Out-of-State-Subsist & Lodging,Title III,$28.83
48,J.F. Drake State,30001013,"Raymond, Alice G.",Oct,21,2013,Out-of-State-Subsist & Lodging,Title III,$517.54
48,J.F. Drake State,30001013,"Raymond, Alice G.",Oct,21,2013,Out-of-State-Other Travel Expenses,Title III,$52.00
48,J.F. Drake State,30001014,"Reutter, John",Oct,21,2013,In State-Mileage,Title III,$220.35
48,J.F. Drake State,30001014,"Reutter, John",Oct,21,2013,In State-Other Travel Exp,Title III,$135.04
48,J.F. Drake State,30001014,"Reutter, John",Oct,21,2013,In State-Ovrnite Per diem,Title III,$225.00
48,J.F. Drake State,30001014,"Reutter, John",Oct,21,2013,In State-Mileage,DigiTec,$150.00
48,J.F. Drake State,30001015,"Singh, Bhesham J.",Oct,21,2013,In State-Mileage,Title III,$300.00
48,J.F. Drake State,30001016,"Stephenson, Jon D.",Oct,21,2013,In State-Mileage,Spin Up,$134.44
48,J.F. Drake State,30001017,Connections Housing,Oct,22,2013,Out-of-State-Other Travel Expenses,Title III,"$7,656.00"
48,J.F. Drake State,30001018,"Raymond, Alice G.",Oct,22,2013,Out-of-State-Mileage,Title III,$34.00
48,J.F. Drake State,30001019,Regions Bank,Oct,22,2013,In State-Mileage,APEX,$109.61
48,J.F. Drake State,30001020,"Reutter, John",Oct,22,2013,In State-Ovrnite Per diem,APEX,$150.00
48,J.F. Drake State,30001021,Staples Business Advantage,Oct,22,2013,Materials and Supplies,Title III,$52.20
48,J.F. Drake State,30001021,Staples Business Advantage,Oct,22,2013,Materials and Supplies,Title III,$28.25
48,J.F. Drake State,30001021,Staples Business Advantage,Oct,22,2013,Materials and Supplies,Title III,$52.33
48,J.F. Drake State,30001021,Staples Business Advantage,Oct,22,2013,Materials and Supplies,Title III,$766.48
48,J.F. Drake State,30001022,AASFAA,Oct,23,2013,In State-Other Travel Exp,Title III,$85.00
48,J.F. Drake State,30001023,Hertz Equipment Rental Corporation,Oct,23,2013,Materials and Supplies,DigiTec,$319.23
48,J.F. Drake State,30001023,Hertz Equipment Rental Corporation,Oct,23,2013,Materials and Supplies,DigiTec,$360.01
48,J.F. Drake State,30001024,National Document Solutions,Oct,23,2013,Materials and Supplies,Title III,$887.30
48,J.F. Drake State,30001024,National Document Solutions,Oct,23,2013,Service Contracts-Equipment,Title III,$400.00
48,J.F. Drake State,30001024,National Document Solutions,Oct,23,2013,Non-capitalized Equipment,Title III,"$3,105.00"
48,J.F. Drake State,30001025,Pesi Health Care,Oct,23,2013,Materials and Supplies,Allied Health,$191.10
48,J.F. Drake State,10001004,4 Imprint,Oct,24,2013,Advertising & Promotions,General Operating Fund,"$7,833.00"
48,J.F. Drake State,10001005,Alabama Lawn Masters,Oct,24,2013,Other Contractual Services,General Operating Fund,"$3,045.00"
48,J.F. Drake State,10001006,Albert's Flowers & Greenhouses,Oct,24,2013,Materials and Supplies,General Operating Fund,$114.00
48,J.F. Drake State,10001008,Berney Office Solutions,Oct,24,2013,"Technology $25,000 or Less",General Operating Fund,"$1,346.00"
48,J.F. Drake State,10001009,"Burmax Company, INC",Oct,24,2013,Purchases for Re-Sale,General Operating Fund,"$1,500.00"
48,J.F. Drake State,30001026,CDW-G Government,Oct,24,2013,Employ Taxable Non-Ovrnite Per Diem,Title III,"$1,575.75"
48,J.F. Drake State,30001027,Conditioned Air Solutions,Oct,24,2013,Maintenance & Repairs,Title III,$811.57
48,J.F. Drake State,10001010,"Dynamic Security, Inc.",Oct,24,2013,Other Contractual Services,General Operating Fund,"$4,082.40"
48,J.F. Drake State,10001011,Huntsville Times,Oct,24,2013,Advertising & Promotions,General Operating Fund,$313.82
48,J.F. Drake State,10001012,Professional Sales Group of North A,Oct,24,2013,Deposit Liabilities,Car Show,$350.00
48,J.F. Drake State,10001013,Sexton Welding Supply,Oct,24,2013,Non-capitalized Equipment,Renewal and Repacement Funds,"$8,710.00"
48,J.F. Drake State,10001014,"Southeastern Temperature Control, I",Oct,24,2013,Maintenance & Repairs,Renewal and Repacement Funds,"$2,773.77"
48,J.F. Drake State,10001015,Sysco,Oct,24,2013,Materials and Supplies,General Operating Fund,$505.09
48,J.F. Drake State,10001016,Verizon Wireless,Oct,24,2013,Communications,General Operating Fund,"$2,395.29"
48,J.F. Drake State,30001028,Wallcur,Oct,24,2013,Materials and Supplies,Allied Health,$152.80
48,J.F. Drake State,10001007,Woody Anderson Ford,Oct,24,2013,Maintenance & Repairs,General Operating Fund,$43.75
48,J.F. Drake State,30001029,"Barnett, Gary B.",Oct,25,2013,Scholarships,PELL,$417.00
48,J.F. Drake State,30001030,"Baumgarten, Kevin",Oct,25,2013,Scholarships,PELL,$195.50
48,J.F. Drake State,!0000001,"Cunningham, Thomas W.",Oct,25,2013,Scholarships,PELL,"$1,015.50"
48,J.F. Drake State,30001031,"Donegan, Chequan M.",Oct,25,2013,Scholarships,PELL,$705.50
48,J.F. Drake State,!0000002,"Dulan, Stanton C.",Oct,25,2013,Scholarships,PELL,$57.39
48,J.F. Drake State,!0000003,"Dunn, Christopher G.",Oct,25,2013,Scholarships,PELL,$699.50
48,J.F. Drake State,30001032,"Dwyer, James E.",Oct,25,2013,Scholarships,PELL,$705.50
48,J.F. Drake State,!0000004,"Edwards, Micheryl A.",Oct,25,2013,Scholarships,PELL,$28.40
48,J.F. Drake State,!0000005,"Gohanna, Tyrah G.",Oct,25,2013,Scholarships,PELL,$705.50
48,J.F. Drake State,!0000006,"Gooden, Brandon S.",Oct,25,2013,Scholarships,PELL,$306.56
48,J.F. Drake State,30001033,"Grimes, Antwon L.",Oct,25,2013,Scholarships,PELL,$417.00
48,J.F. Drake State,30001034,"Hammond, Tamela L.",Oct,25,2013,Scholarships,PELL,"$2,822.50"
48,J.F. Drake State,30001035,"High, David E.",Oct,25,2013,Scholarships,PELL,$705.50
48,J.F. Drake State,30001036,"Horton, Alexander",Oct,25,2013,Scholarships,PELL,$705.50
48,J.F. Drake State,30001037,"McAllister, Robert A.",Oct,25,2013,Scholarships,PELL,$243.81
48,J.F. Drake State,30001038,"McGregor, Jason K.",Oct,25,2013,Scholarships,PELL,$562.00
48,J.F. Drake State,30001039,"Pullen, Ja'Keelia M.",Oct,25,2013,Scholarships,PELL,$359.50
48,J.F. Drake State,30001040,"Richardson, Larry D.",Oct,25,2013,Scholarships,PELL,$465.06
48,J.F. Drake State,!0000007,"Smith, Andre M.",Oct,25,2013,Scholarships,PELL,$562.87
48,J.F. Drake State,30001041,"Spivey, Thomas W.",Oct,25,2013,Scholarships,PELL,$694.80
48,J.F. Drake State,!0000008,"Taylor, Jonathan N.",Oct,25,2013,Scholarships,PELL,"$1,411.00"
48,J.F. Drake State,30001042,"Taylor, Micah K.",Oct,25,2013,Scholarships,PELL,$598.50
48,J.F. Drake State,30001043,"Will, Robert A.",Oct,25,2013,Scholarships,PELL,$637.00
48,J.F. Drake State,!0000009,"Wilson, Antionette M.",Oct,25,2013,Scholarships,PELL,$705.50
48,J.F. Drake State,10001017,Berney Office Solutions,Oct,29,2013,Other Contractual Services,General Operating Fund,$137.15
48,J.F. Drake State,10001017,Berney Office Solutions,Oct,29,2013,Other Contractual Services,General Operating Fund,$377.60
48,J.F. Drake State,10001018,Better Business Bureau,Oct,29,2013,Memberships,General Operating Fund,$430.00
48,J.F. Drake State,30001044,Ellucian Company L.P.,Oct,29,2013,Construction in Progress,Renewal and Repacement Funds,"$36,539.71"
48,J.F. Drake State,30001044,Ellucian Company L.P.,Oct,29,2013,Construction in Progress,Renewal and Repacement Funds,"$42,109.34"
48,J.F. Drake State,10001019,"Holmes, Khalid",Oct,29,2013,In State-Other Travel Exp,General Operating Fund,$150.00
48,J.F. Drake State,10001020,Huntsville Rotary Club,Oct,29,2013,Memberships,General Operating Fund,"$1,140.00"
48,J.F. Drake State,10001021,"Lanier, Ford, Shaver & Payne PC",Oct,29,2013,Legal Services,General Operating Fund,"$3,455.48"
48,J.F. Drake State,10001022,Loomis,Oct,29,2013,Other Contractual Services,General Operating Fund,$125.87
48,J.F. Drake State,30001045,NCIA Dept of Educational Administra,Oct,29,2013,Memberships,Title III,$350.00
48,J.F. Drake State,30001046,"PODS Enterprises, Inc.",Oct,29,2013,Other Contractual Services,Allied Health,$159.00
48,J.F. Drake State,30001047,"Raymond, Alice G.",Oct,29,2013,Out-of-State-Other Travel Expenses,Title III,$645.23
48,J.F. Drake State,30001048,"Reutter, John",Oct,29,2013,In State-Mileage,APEX,$109.61
48,J.F. Drake State,30001049,"Shotts, Lesley",Oct,29,2013,Out-of-State-Other Travel Expenses,Title III,"$1,285.04"
48,J.F. Drake State,30001050,SkillPath Seminars,Oct,29,2013,In State-Other Travel Exp,Title III,$269.00
48,J.F. Drake State,10001023,"The Solutions Team, Inc.",Oct,29,2013,Other Contractual Services,General Operating Fund,$200.00
48,J.F. Drake State,10001024,"Thomas Electric, Inc.",Oct,29,2013,Non-capitalized Equipment,Renewal and Repacement Funds,"$4,305.00"
48,J.F. Drake State,10001025,UPS,Oct,29,2013,Freight,General Operating Fund,$26.94
48,J.F. Drake State,10001025,UPS,Oct,29,2013,Freight,General Operating Fund,"$2,088.60"
48,J.F. Drake State,10001026,AT&T,Nov,6,2013,Communications,General Operating Fund,$72.66
48,J.F. Drake State,10001026,AT&T,Nov,6,2013,Communications,General Operating Fund,$157.45
48,J.F. Drake State,10001026,AT&T,Nov,6,2013,Communications,General Operating Fund,$38.30
48,J.F. Drake State,10001026,AT&T,Nov,6,2013,Communications,General Operating Fund,$39.77
48,J.F. Drake State,10001026,AT&T,Nov,6,2013,Communications,General Operating Fund,$152.09
48,J.F. Drake State,30001051,Alabama Banner User Group,Nov,6,2013,In State-Other Travel Exp,Title III,$400.00
48,J.F. Drake State,10001027,Berney Office Solutions,Nov,6,2013,Other Contractual Services,General Operating Fund,"$1,117.13"
48,J.F. Drake State,10001027,Berney Office Solutions,Nov,6,2013,Other Contractual Services,General Operating Fund,"$1,718.70"
48,J.F. Drake State,30001052,"Chance, Katie E.",Nov,6,2013,In State-Other Travel Exp,Title III,$224.87
48,J.F. Drake State,30001052,"Chance, Katie E.",Nov,6,2013,In State-Commercl Transprt,Title III,$18.00
48,J.F. Drake State,30001052,"Chance, Katie E.",Nov,6,2013,In State-Commercl Transprt,Title III,$224.87
48,J.F. Drake State,30001052,"Chance, Katie E.",Nov,6,2013,In State-Other Travel Exp,Title III,$150.00
48,J.F. Drake State,30001052,"Chance, Katie E.",Nov,6,2013,In State-Other Travel Exp,Title III,$18.00
48,J.F. Drake State,30001052,"Chance, Katie E.",Nov,6,2013,In State-Ovrnite Per diem,Title III,$150.00
48,J.F. Drake State,10001028,Chevron and Texaco,Nov,6,2013,Gasoline & Oil-Motor Vehicle,General Operating Fund,$319.74
48,J.F. Drake State,30001053,Conditioned Air Solutions,Nov,6,2013,Maintenance & Repairs,Title III,$811.07
48,J.F. Drake State,10001029,Department of Finance,Nov,6,2013,Communications,General Operating Fund,$45.78
48,J.F. Drake State,10001030,"Dynamic Security, Inc.",Nov,6,2013,Other Contractual Services,General Operating Fund,"$4,082.40"
48,J.F. Drake State,10001031,EBSCO Information Services,Nov,6,2013,Subscriptions,Title III,"$1,570.00"
48,J.F. Drake State,30001054,"Evanced Solutions, LLC",Nov,6,2013,Subscriptions,Title III,$547.00
48,J.F. Drake State,30001055,"Hammon, Shelia D.",Nov,6,2013,In State-Registration,Title III,$105.00
48,J.F. Drake State,30001055,"Hammon, Shelia D.",Nov,6,2013,In State-Commercl Transprt,Title III,$228.26
48,J.F. Drake State,30001055,"Hammon, Shelia D.",Nov,6,2013,In State-Other Travel Exp,Title III,$483.26
48,J.F. Drake State,30001055,"Hammon, Shelia D.",Nov,6,2013,In State-Other Travel Exp,Title III,$150.00
48,J.F. Drake State,30001056,Hata David,Nov,6,2013,Other Contractual Services,DigiTec,"$4,229.46"
48,J.F. Drake State,10001032,"Ivey, Neoka J.",Nov,6,2013,Materials and Supplies,General Operating Fund,$400.00
48,J.F. Drake State,10001033,"McGriff Seibels & Williiams, Inc",Nov,6,2013,Insurance & Bonding,General Operating Fund,$674.43
48,J.F. Drake State,10001034,"Office Depot, Inc",Nov,6,2013,Materials and Supplies,Title III,$62.56
48,J.F. Drake State,10001035,Pitney Bowes,Nov,6,2013,Postage,General Operating Fund,$603.00
48,J.F. Drake State,10001036,Schindler Elevator Corporation,Nov,6,2013,Other Contractual Services,General Operating Fund,"$1,102.05"
48,J.F. Drake State,10001037,Schrimsher Properties,Nov,6,2013,Rent - Facilities,General Operating Fund,"$6,475.00"
48,J.F. Drake State,10001038,State of Alabama Division of Risk M,Nov,6,2013,Insurance & Bonding,General Operating Fund,"$19,366.00"
48,J.F. Drake State,10001039,UPS,Nov,6,2013,Freight,General Operating Fund,$86.91
48,J.F. Drake State,30001057,"Walker, Anita G.",Nov,6,2013,In State-Other Travel Exp,Spin Up,$140.68
48,J.F. Drake State,10001040,AT&T,Nov,7,2013,Communications,General Operating Fund,$39.77
48,J.F. Drake State,10001040,AT&T,Nov,7,2013,Communications,General Operating Fund,$158.13
48,J.F. Drake State,10001041,"Diaz Piotter, Lori D.",Nov,7,2013,Tuition Revenue,General Operating Fund,$333.00
48,J.F. Drake State,10001042,Mr. Rootor,Nov,7,2013,Maintenance & Repairs,General Operating Fund,$177.98
48,J.F. Drake State,10001043,Pocket Nurse,Nov,7,2013,Purchases for Re-Sale,Auxiliary Enterprise-Unrestricted,"$1,977.25"
48,J.F. Drake State,10001044,Verizon Wireless,Nov,7,2013,Communications,General Operating Fund,"$2,561.76"
48,J.F. Drake State,10001045,American Association of Community C,Nov,13,2013,Memberships,General Operating Fund,"$2,646.00"
48,J.F. Drake State,10001046,BB&T,Nov,13,2013,Electricity,General Operating Fund,"$19,682.80"
48,J.F. Drake State,10001047,"Dynamic Security, Inc.",Nov,13,2013,Other Contractual Services,General Operating Fund,"$4,082.40"
48,J.F. Drake State,10001048,"McAlpine, Helen T.",Nov,13,2013,In State-Other Travel Exp,General Operating Fund,$352.57
48,J.F. Drake State,10001049,"Mobile Mini, Inc",Nov,13,2013,Other Contractual Services,General Operating Fund,$106.99
48,J.F. Drake State,30001058,Alabama Banner User Group,Nov,14,2013,In State-Other Travel Exp,Title III,$350.00
48,J.F. Drake State,10001051,American Education Week,Nov,14,2013,Advertising & Promotions,General Operating Fund,$160.00
48,J.F. Drake State,30001059,CDW-G Government,Nov,14,2013,Materials and Supplies,Title III,$582.61
48,J.F. Drake State,10001052,"Chambers, Sarah S.",Nov,14,2013,AR Suspense,General Operating Fund,$68.90
48,J.F. Drake State,30001060,"Chen, Roger",Nov,14,2013,In State-Other Travel Exp,Title III,$574.59
48,J.F. Drake State,30001061,Copeland Cleaners,Nov,14,2013,Other Contractual Services,DigiTec,$33.99
48,J.F. Drake State,10001050,Costco Wholesale,Nov,14,2013,Materials and Supplies,General Operating Fund,$97.43
48,J.F. Drake State,10001053,"Dangerfield, Sieara P.",Nov,14,2013,AR Suspense,General Operating Fund,$39.99
48,J.F. Drake State,10001054,Ellucian Company L.P.,Nov,14,2013,Construction in Progress,Renewal and Repacement Funds,"$9,126.00"
48,J.F. Drake State,30001062,"Engineerica Systems, Inc",Nov,14,2013,Computer Software-Non Cap,Allied Health,"$1,240.00"
48,J.F. Drake State,10001055,Mullins Special Occasions,Nov,14,2013,Materials and Supplies,General Operating Fund,$383.50
48,J.F. Drake State,10001056,Sucess Marketing,Nov,14,2013,Advertising & Promotions,General Operating Fund,"$4,700.00"
48,J.F. Drake State,10001057,The Daily Sentinel,Nov,14,2013,"Printing, Reproduction & Binding",General Operating Fund,"$2,100.00"
48,J.F. Drake State,10001058,US Department of Veteran Affairs,Nov,14,2013,AR Suspense,General Operating Fund,"$2,176.60"
48,J.F. Drake State,E1101014,AT&T,Nov,15,2013,Communications,General Operating Fund,$462.68
48,J.F. Drake State,E1101014,AT&T,Nov,15,2013,Communications,General Operating Fund,$258.72
48,J.F. Drake State,E1101014,AT&T,Nov,15,2013,Communications,General Operating Fund,$78.71
48,J.F. Drake State,E1101014,AT&T,Nov,15,2013,Communications,General Operating Fund,"$1,449.42"
48,J.F. Drake State,E1101014,AT&T,Nov,15,2013,Communications,General Operating Fund,$88.50
48,J.F. Drake State,E1101014,AT&T,Nov,15,2013,Communications,General Operating Fund,$80.88
48,J.F. Drake State,E1101014,AT&T,Nov,15,2013,Communications,General Operating Fund,$1.69
48,J.F. Drake State,E1101014,AT&T,Nov,15,2013,Communications,General Operating Fund,$183.61
48,J.F. Drake State,E1101013,Alabama Department of Revenue,Nov,15,2013,Sales Tax Payable,Auxiliary - Copier/Vend Commissions,$77.60
48,J.F. Drake State,E1101013,Alabama Department of Revenue,Nov,15,2013,Sales Tax Payable,Auxiliary - Copier Commissions,$77.60
48,J.F. Drake State,E1101015,Comcast Cable,Nov,15,2013,Communications,General Operating Fund,$178.92
48,J.F. Drake State,E1101021,Cooks Pest Control,Nov,15,2013,Other Contractual Services,General Operating Fund,$249.00
48,J.F. Drake State,E1101021,Cooks Pest Control,Nov,15,2013,Other Contractual Services,General Operating Fund,$67.00
48,J.F. Drake State,E1101016,Earthlink,Nov,15,2013,Communications,General Operating Fund,"$6,272.02"
48,J.F. Drake State,E1101017,Huntsville Utilities,Nov,15,2013,Water & Sewer,General Operating Fund,$545.07
48,J.F. Drake State,E1101017,Huntsville Utilities,Nov,15,2013,Water & Sewer,General Operating Fund,$554.05
48,J.F. Drake State,E1101017,Huntsville Utilities,Nov,15,2013,Gas & Heating Fuel,General Operating Fund,$7.00
48,J.F. Drake State,E1101017,Huntsville Utilities,Nov,15,2013,Water & Sewer,General Operating Fund,$6.59
48,J.F. Drake State,E1101017,Huntsville Utilities,Nov,15,2013,Water & Sewer,General Operating Fund,$32.20
48,J.F. Drake State,E1101017,Huntsville Utilities,Nov,15,2013,Gas & Heating Fuel,General Operating Fund,$322.81
48,J.F. Drake State,E1101017,Huntsville Utilities,Nov,15,2013,Water & Sewer,General Operating Fund,$132.21
48,J.F. Drake State,E1101017,Huntsville Utilities,Nov,15,2013,Electricity,General Operating Fund,$619.14
48,J.F. Drake State,E1101017,Huntsville Utilities,Nov,15,2013,Electricity,General Operating Fund,"$21,924.69"
48,J.F. Drake State,E1101017,Huntsville Utilities,Nov,15,2013,Electricity,General Operating Fund,"$1,860.26"
48,J.F. Drake State,E1101017,Huntsville Utilities,Nov,15,2013,Electricity,General Operating Fund,$149.74
48,J.F. Drake State,E1101018,Pitney Bowes,Nov,15,2013,Postage,General Operating Fund,"$1,200.00"
48,J.F. Drake State,E1101019,WEX Bank,Nov,15,2013,Gasoline & Oil-Motor Vehicle,General Operating Fund,$270.97
48,J.F. Drake State,E1101019,WEX Bank,Nov,15,2013,Gasoline & Oil-Motor Vehicle,General Operating Fund,$248.80
48,J.F. Drake State,E1101019,WEX Bank,Nov,15,2013,Gasoline & Oil-Motor Vehicle,General Operating Fund,$348.52
48,J.F. Drake State,E1101020,WOW! Business,Nov,15,2013,Communications,General Operating Fund,$106.16
48,J.F. Drake State,E1101020,WOW! Business,Nov,15,2013,Communications,General Operating Fund,"$1,008.21"
48,J.F. Drake State,10001061,AT&T,Nov,18,2013,Communications,General Operating Fund,$1.69
48,J.F. Drake State,10001061,AT&T,Nov,18,2013,Communications,General Operating Fund,"$1,405.22"
48,J.F. Drake State,10001061,AT&T,Nov,18,2013,Communications,General Operating Fund,$184.90
48,J.F. Drake State,10001061,AT&T,Nov,18,2013,Communications,General Operating Fund,$449.20
48,J.F. Drake State,10001061,AT&T,Nov,18,2013,Communications,General Operating Fund,$83.49
48,J.F. Drake State,10001061,AT&T,Nov,18,2013,Communications,General Operating Fund,$83.51
48,J.F. Drake State,10001062,Comcast Cable,Nov,18,2013,Communications,General Operating Fund,$178.92
48,J.F. Drake State,10001063,Cooks Pest Control,Nov,18,2013,Other Contractual Services,General Operating Fund,$67.00
48,J.F. Drake State,10001063,Cooks Pest Control,Nov,18,2013,Other Contractual Services,General Operating Fund,$249.00
48,J.F. Drake State,10001064,"Dynamic Security, Inc.",Nov,18,2013,Other Contractual Services,General Operating Fund,"$4,082.40"
48,J.F. Drake State,10001065,Earthlink,Nov,18,2013,Communications,General Operating Fund,"$5,227.71"
48,J.F. Drake State,10001066,Huntsville Utilities,Nov,18,2013,Electricity,General Operating Fund,"$1,201.63"
48,J.F. Drake State,10001066,Huntsville Utilities,Nov,18,2013,Gas & Heating Fuel,General Operating Fund,$14.22
48,J.F. Drake State,10001066,Huntsville Utilities,Nov,18,2013,Gas & Heating Fuel,General Operating Fund,$359.68
48,J.F. Drake State,10001066,Huntsville Utilities,Nov,18,2013,Water & Sewer,General Operating Fund,$646.28
48,J.F. Drake State,10001066,Huntsville Utilities,Nov,18,2013,Water & Sewer,General Operating Fund,$8.15
48,J.F. Drake State,10001066,Huntsville Utilities,Nov,18,2013,Water & Sewer,General Operating Fund,$39.81
48,J.F. Drake State,10001059,"IMDiversity, Inc.",Nov,18,2013,Memberships,General Operating Fund,$153.71
48,J.F. Drake State,10001067,Loomis,Nov,18,2013,Other Contractual Services,General Operating Fund,$128.17
48,J.F. Drake State,10001068,Madison County Sales Tax Department,Nov,18,2013,Sales Tax Payable,Auxiliary Enterprise-Unrestricted,$136.01
48,J.F. Drake State,10001069,Progressive Specialty Insurance Com,Nov,18,2013,Insurance & Bonding,General Operating Fund,"$9,619.00"
48,J.F. Drake State,10001060,Schrimsher Properties,Nov,18,2013,Rent - Facilities,General Operating Fund,"$6,475.00"
48,J.F. Drake State,10001070,UPS,Nov,18,2013,Freight,General Operating Fund,$5.21
48,J.F. Drake State,10001071,WEX Bank,Nov,18,2013,Gasoline & Oil-Motor Vehicle,General Operating Fund,$296.85
48,J.F. Drake State,10001072,WOW! Business,Nov,18,2013,Communications,General Operating Fund,"$1,008.21"
48,J.F. Drake State,10001072,WOW! Business,Nov,18,2013,Communications,General Operating Fund,$103.90
48,J.F. Drake State,10001074,Alabama Department of Veteran Affai,Nov,19,2013,AR Suspense,General Operating Fund,$357.00
48,J.F. Drake State,10001075,"Beard, Lakeshia D.",Nov,19,2013,AR Suspense,General Operating Fund,$10.99
48,J.F. Drake State,10001075,"Beard, Lakeshia D.",Nov,19,2013,AR Suspense,General Operating Fund,$133.75
48,J.F. Drake State,10001076,Chamber of Commerce of Huntsville/M,Nov,19,2013,Advertising & Promotions,General Operating Fund,$800.00
48,J.F. Drake State,10001076,Chamber of Commerce of Huntsville/M,Nov,19,2013,Advertising & Promotions,General Operating Fund,$400.00
48,J.F. Drake State,10001077,Cooks Pest Control,Nov,19,2013,Other Contractual Services,General Operating Fund,$316.00
48,J.F. Drake State,10001078,Ellucian Company L.P.,Nov,19,2013,Construction in Progress,Renewal and Repacement Funds,"$78,310.98"
48,J.F. Drake State,10001078,Ellucian Company L.P.,Nov,19,2013,Construction in Progress,Renewal and Repacement Funds,"$17,716.00"
48,J.F. Drake State,10001079,Gadsden State Community College,Nov,19,2013,Bond Surety Fee Expense,General Operating Fund,"$3,356.83"
48,J.F. Drake State,10001080,"Insurance Office of America, Inc.",Nov,19,2013,Insurance & Bonding,General Operating Fund,"$1,790.01"
48,J.F. Drake State,10001081,US Department of Veteran Affairs,Nov,19,2013,AR Suspense,General Operating Fund,"$1,276.80"
48,J.F. Drake State,10001086,ACCA,Nov,21,2013,In State-Other Travel Exp,Title III,"$1,500.00"
48,J.F. Drake State,10001082,ADECA,Nov,21,2013,"Transportatn Equip $25,000 or Less",Renewal and Repacement Funds,"$10,900.00"
48,J.F. Drake State,10001083,ADECA,Nov,21,2013,Non-capitalized Equipment,Renewal and Repacement Funds,"$10,900.00"
48,J.F. Drake State,10001084,Alabama Department of Revenue,Nov,21,2013,AR Suspense,General Operating Fund,$48.50
48,J.F. Drake State,10001087,Chevron and Texaco,Nov,21,2013,Gasoline & Oil-Motor Vehicle,General Operating Fund,$202.27
48,J.F. Drake State,10001088,Council for Opportunity in Educatio,Nov,21,2013,Memberships,Title III,"$3,168.00"
48,J.F. Drake State,10001089,Domino's Pizza,Nov,21,2013,Materials and Supplies,General Operating Fund,$83.04
48,J.F. Drake State,10001090,Hilton Garden Inn,Nov,21,2013,Out-of-State-Other Travel Expenses,DigiTec,"$2,153.70"
48,J.F. Drake State,10001091,"Lanier, Ford, Shaver & Payne PC",Nov,21,2013,Legal Services,General Operating Fund,"$1,102.00"
48,J.F. Drake State,10001085,"Mark Craig, License Director",Nov,21,2013,AR Suspense,General Operating Fund,$37.50
48,J.F. Drake State,10001092,Sam's Club/Walmart,Nov,21,2013,Materials and Supplies,General Operating Fund,$190.22
48,J.F. Drake State,10001092,Sam's Club/Walmart,Nov,21,2013,Materials and Supplies,General Operating Fund,$74.94
48,J.F. Drake State,10001093,Steak-Out,Nov,21,2013,Materials and Supplies,General Operating Fund,$120.00
48,J.F. Drake State,30001063,Alabama Association of School Board,Nov,27,2013,Professional Development,Title III,$200.00
48,J.F. Drake State,30001064,Dauphin Island Sea Lab,Nov,27,2013,In State-Other Travel Exp,Spin Up,"$3,437.00"
48,J.F. Drake State,30001065,"Directions Media, Inc.",Nov,27,2013,Other Contractual Services,Spin Up,$395.00
48,J.F. Drake State,10001094,FedEx,Nov,27,2013,Freight,General Operating Fund,$215.37
48,J.F. Drake State,10001094,FedEx,Nov,27,2013,Freight,General Operating Fund,$61.89
48,J.F. Drake State,10001094,FedEx,Nov,27,2013,Freight,General Operating Fund,$23.05
48,J.F. Drake State,10001094,FedEx,Nov,27,2013,Freight,General Operating Fund,$43.90
48,J.F. Drake State,10001094,FedEx,Nov,27,2013,Freight,General Operating Fund,$34.76
48,J.F. Drake State,10001094,FedEx,Nov,27,2013,Freight,General Operating Fund,$25.49
48,J.F. Drake State,10001094,FedEx,Nov,27,2013,Freight,General Operating Fund,$25.29
48,J.F. Drake State,10001094,FedEx,Nov,27,2013,Freight,General Operating Fund,$52.95
48,J.F. Drake State,10001094,FedEx,Nov,27,2013,Freight,General Operating Fund,$120.92
48,J.F. Drake State,10001094,FedEx,Nov,27,2013,Freight,General Operating Fund,$253.37
48,J.F. Drake State,30001066,HVAC Excellence,Nov,27,2013,Memberships,Title III,$175.00
48,J.F. Drake State,10001095,Hanging 2 Perfection,Nov,27,2013,Non-capitalized Equipment,Renewal and Repacement Funds,"$3,710.74"
48,J.F. Drake State,10001096,"Holmes, Khalid",Nov,27,2013,In State-Other Travel Exp,Spin Up,$600.00
48,J.F. Drake State,10001096,"Holmes, Khalid",Nov,27,2013,In State-Other Travel Exp,Spin Up,$500.00
48,J.F. Drake State,10001097,Huntsville Times,Nov,27,2013,Advertising & Promotions,General Operating Fund,$249.38
48,J.F. Drake State,30001067,"Ivey, Neoka J.",Nov,27,2013,In State-Other Travel Exp,Title III,$228.19
48,J.F. Drake State,30001068,Lowe's Home Centers,Nov,27,2013,Materials and Supplies,DigiTec,$68.22
48,J.F. Drake State,30001069,"Office Depot, Inc",Nov,27,2013,Materials and Supplies,Title III,$539.50
48,J.F. Drake State,30001070,Pesi Health Care,Nov,27,2013,Materials and Supplies,Allied Health,$176.94
48,J.F. Drake State,30001071,Sargent-Welch,Nov,27,2013,Materials and Supplies,APEX,"$2,695.08"
48,J.F. Drake State,30001072,The National Association of HBCU Ti,Nov,27,2013,Memberships,Title III,$225.00
48,J.F. Drake State,10001098,UPS,Nov,27,2013,Freight,General Operating Fund,$16.17
48,J.F. Drake State,10001101,AT & T Business Service,Dec,2,2013,Communications,General Operating Fund,$47.16
48,J.F. Drake State,10001099,Adult Education Director's Associat,Dec,2,2013,Memberships,State - Adult Ed,$250.00
48,J.F. Drake State,10001100,Alabama Lawnmaster Inc,Dec,2,2013,Other Contractual Services,General Operating Fund,"$3,197.53"
48,J.F. Drake State,10001102,"Banks Industries, Inc",Dec,2,2013,Materials and Supplies,General Operating Fund,$865.90
48,J.F. Drake State,10001106,CPR One  Corp,Dec,2,2013,Materials and Supplies,General Operating Fund,$135.00
48,J.F. Drake State,10001103,"Castle Branch, Inc.",Dec,2,2013,Materials and Supplies,Auxiliary - Nursing Fees,$270.00
48,J.F. Drake State,10001104,"Cloud Financial, Incorporated",Dec,2,2013,Materials and Supplies,General Operating Fund,$563.50
48,J.F. Drake State,10001105,Comcast Cable,Dec,2,2013,Communications,General Operating Fund,$29.92
48,J.F. Drake State,10001107,"Dynamic Security, Inc.",Dec,2,2013,Other Contractual Services,General Operating Fund,"$4,082.40"
48,J.F. Drake State,10001108,Ellucian Company L.P.,Dec,2,2013,Construction in Progress,Renewal and Repacement Funds,"$17,716.00"
48,J.F. Drake State,10001109,"Freeman, David E.",Dec,2,2013,Materials and Supplies,General Operating Fund,$38.00
48,J.F. Drake State,30001073,"Holmes, Khalid",Dec,2,2013,In State-Other Travel Exp,Spin Up,$180.00
48,J.F. Drake State,10001110,Huntsville Utilities,Dec,2,2013,Water & Sewer,General Operating Fund,$1.56
48,J.F. Drake State,10001110,Huntsville Utilities,Dec,2,2013,Gas & Heating Fuel,General Operating Fund,$830.01
48,J.F. Drake State,10001110,Huntsville Utilities,Dec,2,2013,Electricity,General Operating Fund,$206.76
48,J.F. Drake State,10001111,In10sity Interactive,Dec,2,2013,Other Contractual Services,General Operating Fund,"$1,200.00"
48,J.F. Drake State,10001112,"Raymond, Alice G.",Dec,2,2013,Out-of-State-Mileage,Title III,$34.00
48,J.F. Drake State,10001113,Sysco Central Alabama,Dec,2,2013,Materials and Supplies,General Operating Fund,"$2,517.26"
48,J.F. Drake State,10001114,WEX Bank,Dec,2,2013,Gasoline & Oil-Motor Vehicle,General Operating Fund,$11.79
48,J.F. Drake State,10001115,Alliant Data Systems,Dec,3,2013,Other Contractual Services,General Operating Fund,$600.00
48,J.F. Drake State,10001116,"Castle Branch, Inc.",Dec,3,2013,Materials and Supplies,Auxiliary - Nursing Fees,"$2,575.00"
48,J.F. Drake State,10001117,Chase,Dec,3,2013,Materials and Supplies,Auxiliary Enterprise-Unrestricted,$71.09
48,J.F. Drake State,10001118,"Insurance Office of America, Inc.",Dec,3,2013,Insurance & Bonding,General Operating Fund,$189.90
48,J.F. Drake State,10001119,"King, Frederick",Dec,3,2013,Other Non-capital Costs,General Operating Fund,$49.00
48,J.F. Drake State,10001120,"McAlpine, Helen T.",Dec,3,2013,Employ Taxable Non-Ovrnite Per Diem,General Operating Fund,$150.00
48,J.F. Drake State,10001121,National League for Nursing,Dec,3,2013,Memberships,Allied Health,"$1,130.00"
48,J.F. Drake State,10001122,Thomson Reuters,Dec,3,2013,Subscriptions,General Operating Fund,$280.00
48,J.F. Drake State,10001123,ACT,Dec,4,2013,Materials and Supplies,General Operating Fund,$48.00
48,J.F. Drake State,10001123,ACT,Dec,4,2013,Materials and Supplies,General Operating Fund,$330.00
48,J.F. Drake State,30001074,"Bell, Angela N.",Dec,4,2013,In State-Other Travel Exp,Title III,$127.33
48,J.F. Drake State,30001075,Chase,Dec,4,2013,Materials and Supplies,Allied Health,$364.74
48,J.F. Drake State,10001124,Chevron and Texaco,Dec,4,2013,Gasoline & Oil-Motor Vehicle,General Operating Fund,$149.37
48,J.F. Drake State,30001076,"Egson, Ronald E.",Dec,4,2013,Out-of-State-Other Travel Expenses,Spin Up,$301.17
48,J.F. Drake State,10001125,GED Testing Program,Dec,4,2013,Materials and Supplies,General Operating Fund,$190.00
48,J.F. Drake State,10001125,GED Testing Program,Dec,4,2013,Materials and Supplies,General Operating Fund,$302.00
48,J.F. Drake State,10001125,GED Testing Program,Dec,4,2013,Materials and Supplies,General Operating Fund,$242.00
48,J.F. Drake State,10001126,Graybar,Dec,4,2013,Materials and Supplies,General Operating Fund,$530.34
48,J.F. Drake State,30001077,"Holmes, Khalid",Dec,4,2013,In State-Other Travel Exp,Title III,$134.47
48,J.F. Drake State,10001127,"International Code Council, Inc.",Dec,4,2013,Materials and Supplies,Construction Education Grant,"$1,081.60"
48,J.F. Drake State,30001078,"Office Depot, Inc",Dec,4,2013,Materials and Supplies,Allied Health,$8.82
48,J.F. Drake State,30001078,"Office Depot, Inc",Dec,4,2013,Materials and Supplies,Allied Health,$41.45
48,J.F. Drake State,30001078,"Office Depot, Inc",Dec,4,2013,Materials and Supplies,Allied Health,$878.85
48,J.F. Drake State,30001080,"PODS Enterprises, Inc.",Dec,4,2013,Other Contractual Services,Allied Health,$159.00
48,J.F. Drake State,30001079,Pocket Nurse,Dec,4,2013,Materials and Supplies,Allied Health,"$1,295.00"
48,J.F. Drake State,30001079,Pocket Nurse,Dec,4,2013,Materials and Supplies,Allied Health,"$4,780.95"
48,J.F. Drake State,30001079,Pocket Nurse,Dec,4,2013,Materials and Supplies,Allied Health,$90.40
48,J.F. Drake State,10001128,Progressive Specialty Insurance Com,Dec,4,2013,Insurance & Bonding,General Operating Fund,"$3,082.00"
48,J.F. Drake State,30001081,"Rentz, Joyce L.",Dec,4,2013,Out-of-State-Other Travel Expenses,Title III,$74.96
48,J.F. Drake State,10001129,Safety Kleen,Dec,4,2013,Other Contractual Services,General Operating Fund,$829.50
48,J.F. Drake State,10001130,Sign By Tomorrow,Dec,4,2013,Materials and Supplies,General Operating Fund,$150.00
48,J.F. Drake State,10001131,UPS,Dec,4,2013,Freight,General Operating Fund,$7.52
48,J.F. Drake State,10001132,ACT,Dec,5,2013,Materials and Supplies,General Operating Fund,$492.00
48,J.F. Drake State,10001132,ACT,Dec,5,2013,Materials and Supplies,General Operating Fund,"$2,094.00"
48,J.F. Drake State,10001133,AT & T Business Service,Dec,5,2013,Communications,General Operating Fund,$110.96
48,J.F. Drake State,10001134,"Burmax Company, INC",Dec,5,2013,Materials and Supplies,General Operating Fund,$137.16
48,J.F. Drake State,30001082,GigaParts,Dec,5,2013,Materials and Supplies,DigiTec,$724.00
48,J.F. Drake State,10001135,Minuteman Press,Dec,5,2013,Other Contractual Services,General Operating Fund,$499.10
48,J.F. Drake State,10001136,Motion Industries,Dec,5,2013,Non-capitalized Equipment,Carl Perkins Career & Tech Ed Grant,$631.40
48,J.F. Drake State,10001136,Motion Industries,Dec,5,2013,Non-capitalized Equipment,Perkins Funds,$631.40
48,J.F. Drake State,30001083,Pocket Nurse,Dec,5,2013,Non-capitalized Equipment,Allied Health,$142.20
48,J.F. Drake State,30001083,Pocket Nurse,Dec,5,2013,Non-capitalized Equipment,Allied Health,$56.00
48,J.F. Drake State,30001083,Pocket Nurse,Dec,5,2013,Materials and Supplies,Allied Health,"$1,150.71"
48,J.F. Drake State,30001083,Pocket Nurse,Dec,5,2013,Materials and Supplies,Allied Health,$445.37
48,J.F. Drake State,30001083,Pocket Nurse,Dec,5,2013,Non-capitalized Equipment,Allied Health,"$4,780.00"
48,J.F. Drake State,30001083,Pocket Nurse,Dec,5,2013,Non-capitalized Equipment,Allied Health,$645.00
48,J.F. Drake State,30001083,Pocket Nurse,Dec,5,2013,Materials and Supplies,Allied Health,"$1,789.28"
48,J.F. Drake State,10001137,"Dynamic Security, Inc.",Dec,10,2013,Other Contractual Services,General Operating Fund,"$4,106.70"
48,J.F. Drake State,10001138,Graybar,Dec,10,2013,Materials and Supplies,General Operating Fund,$758.04
48,J.F. Drake State,10001139,Kroger Co.,Dec,10,2013,Materials and Supplies,General Operating Fund,$100.00
48,J.F. Drake State,10001140,AACRAO,Dec,11,2013,Memberships,General Operating Fund,$618.00
48,J.F. Drake State,10001151,"Al-Hammadi, Maithem Ali",Dec,11,2013,AR Suspense,General Operating Fund,$695.00
48,J.F. Drake State,10001152,Alabama Lawn Masters,Dec,11,2013,Other Contractual Services,General Operating Fund,"$3,045.00"
48,J.F. Drake State,10001141,Berney Office Solutions,Dec,11,2013,Other Contractual Services,General Operating Fund,$83.02
48,J.F. Drake State,10001142,Bubba's Catering,Dec,11,2013,Materials and Supplies,General Operating Fund,"$3,545.00"
48,J.F. Drake State,10001153,"Burnett, Charles M.",Dec,11,2013,AR Suspense,General Operating Fund,$798.00
48,J.F. Drake State,10001154,"Campbell, Shawn R.",Dec,11,2013,AR Suspense,General Operating Fund,$76.80
48,J.F. Drake State,10001143,Chamber of Commerce of Huntsville/M,Dec,11,2013,Memberships,General Operating Fund,$649.00
48,J.F. Drake State,10001155,Chase,Dec,11,2013,Maintenance & Repairs,General Operating Fund,$165.81
48,J.F. Drake State,10001155,Chase,Dec,11,2013,Materials and Supplies,General Operating Fund,$392.16
48,J.F. Drake State,10001155,Chase,Dec,11,2013,Maintenance & Repairs,General Operating Fund,$46.42
48,J.F. Drake State,30001084,Chase,Dec,11,2013,Out-of-State-Other Travel Expenses,Spin Up,$516.00
48,J.F. Drake State,10001155,Chase,Dec,11,2013,Maintenance & Repairs,General Operating Fund,$76.12
48,J.F. Drake State,10001155,Chase,Dec,11,2013,Materials and Supplies,General Operating Fund,$36.00
48,J.F. Drake State,10001156,"Cowart, Connor A.",Dec,11,2013,AR Suspense,General Operating Fund,$695.00
48,J.F. Drake State,10001157,"Douglas, Tonya",Dec,11,2013,AR Suspense,General Operating Fund,$61.75
48,J.F. Drake State,10001157,"Douglas, Tonya",Dec,11,2013,AR Suspense,General Operating Fund,$36.13
48,J.F. Drake State,10001158,"Eremin, Igor A.",Dec,11,2013,AR Suspense,General Operating Fund,$695.00
48,J.F. Drake State,30001085,"Gohanna, Symmetris K.",Dec,11,2013,Out-of-State-Other Travel Expenses,Title III,$49.64
48,J.F. Drake State,10001159,Loomis,Dec,11,2013,Other Contractual Services,General Operating Fund,$128.17
48,J.F. Drake State,10001160,"McNair, David B.",Dec,11,2013,AR Suspense,General Operating Fund,$695.00
48,J.F. Drake State,10001144,"Mobile Mini, Inc",Dec,11,2013,Other Contractual Services,General Operating Fund,$115.01
48,J.F. Drake State,10001145,Mr. Rootor,Dec,11,2013,Maintenance & Repairs,General Operating Fund,$85.50
48,J.F. Drake State,10001161,"Ndolo, Alfred U.",Dec,11,2013,AR Suspense,General Operating Fund,$1.00
48,J.F. Drake State,30001086,"Office Depot, Inc",Dec,11,2013,Materials and Supplies,Title III,$397.50
48,J.F. Drake State,30001086,"Office Depot, Inc",Dec,11,2013,Materials and Supplies,Title III,$399.80
48,J.F. Drake State,30001086,"Office Depot, Inc",Dec,11,2013,Materials and Supplies,Title III,$3.15
48,J.F. Drake State,30001086,"Office Depot, Inc",Dec,11,2013,Materials and Supplies,Title III,$28.99
48,J.F. Drake State,10001162,"Orina, Rachel N.",Dec,11,2013,AR Suspense,General Operating Fund,$40.50
48,J.F. Drake State,10001163,"Phillips, Donald S.",Dec,11,2013,AR Suspense,General Operating Fund,$17.00
48,J.F. Drake State,30001087,Pocket Nurse,Dec,11,2013,Materials and Supplies,Allied Health,$141.50
48,J.F. Drake State,30001087,Pocket Nurse,Dec,11,2013,Materials and Supplies,Allied Health,$200.45
48,J.F. Drake State,10001146,"Quality Testing Services, LLC",Dec,11,2013,Materials and Supplies,General Operating Fund,$75.00
48,J.F. Drake State,10001147,"Roberts, Wendy L.",Dec,11,2013,Professional Development,State - Adult Ed,$35.00
48,J.F. Drake State,10001148,SACS,Dec,11,2013,College Accreditation Expense,General Operating Fund,$300.00
48,J.F. Drake State,10001149,Schrimsher Properties,Dec,11,2013,Rent - Facilities,General Operating Fund,"$6,715.00"
48,J.F. Drake State,30001088,"Shotts, Lesley",Dec,11,2013,In State-Other Travel Exp,Title III,$219.50
48,J.F. Drake State,10001164,"Sullivan, Rochelle G.",Dec,11,2013,AR Suspense,General Operating Fund,$222.40
48,J.F. Drake State,10001165,UPS,Dec,11,2013,Freight,General Operating Fund,$1.62
48,J.F. Drake State,10001165,UPS,Dec,11,2013,Freight,General Operating Fund,$125.32
48,J.F. Drake State,10001150,Verizon Wireless,Dec,11,2013,Communications,General Operating Fund,"$2,560.51"
48,J.F. Drake State,10001166,"Willmon, Adam J.",Dec,11,2013,AR Suspense,General Operating Fund,$17.00
48,J.F. Drake State,10001169,AT & T Business Service,Dec,16,2013,Communications,General Operating Fund,$315.58
48,J.F. Drake State,10001169,AT & T Business Service,Dec,16,2013,Communications,General Operating Fund,$119.14
48,J.F. Drake State,10001169,AT & T Business Service,Dec,16,2013,Communications,General Operating Fund,$158.13
48,J.F. Drake State,10001169,AT & T Business Service,Dec,16,2013,Communications,General Operating Fund,$278.79
48,J.F. Drake State,10001170,AT&T,Dec,16,2013,Communications,General Operating Fund,$2.88
48,J.F. Drake State,10001167,Alabama Dept Rehabilitation Service,Dec,16,2013,AR Suspense,General Operating Fund,$695.00
48,J.F. Drake State,10001168,American Express,Dec,16,2013,Out-of-State-Other Travel Expenses,General Operating Fund,"$1,296.00"
48,J.F. Drake State,30001089,American Express,Dec,16,2013,Out-of-State-Other Travel Expenses,Title III,"$1,823.80"
48,J.F. Drake State,10001171,Chase,Dec,16,2013,Maintenance & Repairs,General Operating Fund,$212.04
48,J.F. Drake State,10001172,Faronics Technologies USA,Dec,16,2013,Service Contracts-Equipment,General Operating Fund,"$1,495.85"
48,J.F. Drake State,10001173,Grizzly Industrial,Dec,16,2013,Purchases for Re-Sale,Auxiliary Enterprise-Unrestricted,"$1,506.51"
48,J.F. Drake State,30001090,"Noel-Levitz, Inc.",Dec,16,2013,Other Contractual Services,Title III,"$3,490.90"
48,J.F. Drake State,30001090,"Noel-Levitz, Inc.",Dec,16,2013,Other Contractual Services,Title III,"$6,000.00"
48,J.F. Drake State,30001091,"Office Depot, Inc",Dec,16,2013,Materials and Supplies,Title III,$484.62
48,J.F. Drake State,30001092,Pocket Nurse,Dec,16,2013,Materials and Supplies,Allied Health,$325.00
48,J.F. Drake State,30001092,Pocket Nurse,Dec,16,2013,Materials and Supplies,Allied Health,$241.40
48,J.F. Drake State,10001174,Southern Tool Steel Inc.,Dec,16,2013,Non-capitalized Equipment,Perkins Funds,"$9,568.00"
48,J.F. Drake State,10001174,Southern Tool Steel Inc.,Dec,16,2013,Non-capitalized Equipment,Carl Perkins Career & Tech Ed Grant,"$9,568.00"
48,J.F. Drake State,10001175,The Webster Tree Company Inc,Dec,16,2013,Other Contractual Services,General Operating Fund,"$2,470.00"
48,J.F. Drake State,10001176,US Department of Veteran Affairs,Dec,16,2013,AR Suspense,General Operating Fund,$695.00
48,J.F. Drake State,10001177,"Conditioned Air Solutions, LLC",Dec,17,2013,Maintenance & Repairs,General Operating Fund,$85.00
48,J.F. Drake State,10001178,Lakeside United Methodist Church,Dec,17,2013,Advertising & Promotions,General Operating Fund,$100.00
48,J.F. Drake State,10001179,"Lamar, Joyce P.",Dec,17,2013,Materials and Supplies,General Operating Fund,$29.15
48,J.F. Drake State,10001180,"Banks Industries, Inc",Dec,18,2013,Materials and Supplies,General Operating Fund,$206.70
48,J.F. Drake State,10001180,"Banks Industries, Inc",Dec,18,2013,Materials and Supplies,General Operating Fund,$56.76
48,J.F. Drake State,10001181,Bubba's Catering,Dec,18,2013,Materials and Supplies,General Operating Fund,$940.50
48,J.F. Drake State,10001182,"Castle Branch, Inc.",Dec,18,2013,Purchases for Re-Sale,Auxiliary - Nursing Fees,$125.00
48,J.F. Drake State,10001183,Chase,Dec,18,2013,Maintenance & Repairs,General Operating Fund,$406.80
48,J.F. Drake State,10001184,"Dynamic Security, Inc.",Dec,18,2013,Other Contractual Services,General Operating Fund,"$4,082.40"
48,J.F. Drake State,10001184,"Dynamic Security, Inc.",Dec,18,2013,Other Contractual Services,General Operating Fund,"$4,374.24"
48,J.F. Drake State,10001185,FedEx,Dec,18,2013,Freight,General Operating Fund,$26.82
48,J.F. Drake State,10001185,FedEx,Dec,18,2013,Freight,General Operating Fund,$44.56
48,J.F. Drake State,30001093,Hata David,Dec,18,2013,Other Contractual Services,DigiTec,$187.68
48,J.F. Drake State,10001186,"Koorsen Security Technology, Inc",Dec,18,2013,Other Contractual Services,General Operating Fund,$285.00
48,J.F. Drake State,10001187,Sexton Welding Supply,Dec,18,2013,Materials and Supplies,Perkins Funds,"$4,210.42"
48,J.F. Drake State,10001187,Sexton Welding Supply,Dec,18,2013,Materials and Supplies,Carl Perkins Career & Tech Ed Grant,"$4,210.42"
48,J.F. Drake State,30001094,University of New Mexico,Dec,18,2013,Subcontracts,DigiTec,"$1,289.40"
48,J.F. Drake State,10001188,Alabama Labor Law Poster,Dec,20,2013,Materials and Supplies,General Operating Fund,$125.50
48,J.F. Drake State,30001095,"Barnett, Nicole C.",Dec,20,2013,In State-Other Travel Exp,Title III,$150.00
48,J.F. Drake State,10001189,C.C. Dickson Co.,Dec,20,2013,Materials and Supplies,General Operating Fund,$30.18
48,J.F. Drake State,10001190,Chase,Dec,20,2013,Maintenance & Repairs,General Operating Fund,$31.48
48,J.F. Drake State,10001191,Department of Finance,Dec,20,2013,Communications,General Operating Fund,$45.78
48,J.F. Drake State,30001100,"Dukemineer, Amelia J.",Dec,20,2013,In State-Other Travel Exp,Spin Up,$115.26
48,J.F. Drake State,30001100,"Dukemineer, Amelia J.",Dec,20,2013,In State-Other Travel Exp,Spin Up,$79.67
48,J.F. Drake State,30001096,Enterprise,Dec,20,2013,In State-Other Travel Exp,Spin Up,$592.18
48,J.F. Drake State,10001192,Future Business Leaders of America-,Dec,20,2013,Deposit Liabilities,Phi Beta Lambda,$17.00
48,J.F. Drake State,10001192,Future Business Leaders of America-,Dec,20,2013,Deposit Liabilities,Phi Beta Lambda,$119.00
48,J.F. Drake State,30001101,Hata David,Dec,20,2013,Other Contractual Services,DigiTec,"$3,195.77"
48,J.F. Drake State,30001102,Kristin T. Scoggin,Dec,20,2013,Other Contractual Services,Title III,$150.00
48,J.F. Drake State,10001193,"Lanier, Ford, Shaver & Payne PC",Dec,20,2013,Legal Services,General Operating Fund,$52.50
48,J.F. Drake State,10001199,"Lanier, Ford, Shaver & Payne PC",Dec,20,2013,Legal Services,General Operating Fund,"$3,465.00"
48,J.F. Drake State,10001194,Pitney Bowes,Dec,20,2013,Postage,General Operating Fund,$630.00
48,J.F. Drake State,10001195,Sexton Welding Supply,Dec,20,2013,Materials and Supplies,General Operating Fund,"$1,053.50"
48,J.F. Drake State,10001195,Sexton Welding Supply,Dec,20,2013,Non-capitalized Equipment,Renewal and Repacement Funds,"$3,115.00"
48,J.F. Drake State,10001196,Sign By Tomorrow,Dec,20,2013,Materials and Supplies,General Operating Fund,$199.00
48,J.F. Drake State,30001097,SkillPath Seminars,Dec,20,2013,In State-Other Travel Exp,Allied Health,$199.00
48,J.F. Drake State,10001197,Stanley Steemer,Dec,20,2013,Maintenance & Repairs,General Operating Fund,$283.32
48,J.F. Drake State,30001098,Staples Business Advantage,Dec,20,2013,Materials and Supplies,Title III,$69.99
48,J.F. Drake State,30001098,Staples Business Advantage,Dec,20,2013,Materials and Supplies,Trio-SSS Grant,$144.48
48,J.F. Drake State,30001103,"Stephenson, Jon D.",Dec,20,2013,In State-Other Travel Exp,Spin Up,$233.73
48,J.F. Drake State,10001198,"Uline, Inc.",Dec,20,2013,Materials and Supplies,General Operating Fund,$104.20
48,J.F. Drake State,30001099,"Wester, Beth S.",Dec,20,2013,In State-Other Travel Exp,Title III,$249.00
48,J.F. Drake State,10001200,Huntsville Utilities,Dec,21,2013,Electricity,General Operating Fund,$591.14
48,J.F. Drake State,10001200,Huntsville Utilities,Dec,21,2013,Water & Sewer,General Operating Fund,$1.56
48,J.F. Drake State,10001200,Huntsville Utilities,Dec,21,2013,Electricity,General Operating Fund,$209.72
48,J.F. Drake State,10001200,Huntsville Utilities,Dec,21,2013,Water & Sewer,General Operating Fund,$7.61
48,J.F. Drake State,10001201,Huntsville Utilities,Dec,21,2013,Electricity,General Operating Fund,"$17,152.93"
48,J.F. Drake State,10001202,CM&F,Jan,2,2014,Purchases for Re-Sale,Auxiliary - Nursing Fees,"$6,930.00"
48,J.F. Drake State,10001203,"Franklin, Horace L.",Jan,2,2014,Communications,General Operating Fund,$242.28
48,J.F. Drake State,10001204,"Lanier, Ford, Shaver & Payne PC",Jan,2,2014,Legal Services,General Operating Fund,$304.00
48,J.F. Drake State,10001204,"Lanier, Ford, Shaver & Payne PC",Jan,2,2014,Legal Services,General Operating Fund,$105.00
48,J.F. Drake State,10001205,Mayer Electric Supply Co.,Jan,2,2014,Materials and Supplies,General Operating Fund,$319.70
48,J.F. Drake State,30001104,"Sims, Patricia G.",Jan,2,2014,In State-Other Travel Exp,Title III,$326.50
48,J.F. Drake State,30001105,"Stericycle, Inc.",Jan,2,2014,Other Contractual Services,Allied Health,$152.94
48,J.F. Drake State,30001106,U.S. Green Building Council,Jan,2,2014,Memberships,Title III,$300.00
48,J.F. Drake State,10001206,ELSEVIER,Jan,3,2014,Materials and Supplies,Auxiliary - Nursing Fees,$47.00
48,J.F. Drake State,10001207,WOW! Business,Jan,3,2014,Communications,General Operating Fund,$262.12
48,J.F. Drake State,10001209,AT&T,Jan,7,2014,Communications,General Operating Fund,$78.17
48,J.F. Drake State,10001209,AT&T,Jan,7,2014,Communications,General Operating Fund,$150.21
48,J.F. Drake State,10001208,Alabama Lawn Masters,Jan,7,2014,Other Contractual Services,General Operating Fund,"$3,045.00"
48,J.F. Drake State,10001210,"Banks Industries, Inc",Jan,7,2014,Materials and Supplies,General Operating Fund,$92.98
48,J.F. Drake State,10001210,"Banks Industries, Inc",Jan,7,2014,Materials and Supplies,General Operating Fund,$104.30
48,J.F. Drake State,10001210,"Banks Industries, Inc",Jan,7,2014,Materials and Supplies,General Operating Fund,$251.70
48,J.F. Drake State,10001210,"Banks Industries, Inc",Jan,7,2014,Materials and Supplies,General Operating Fund,$39.13
48,J.F. Drake State,10001210,"Banks Industries, Inc",Jan,7,2014,Materials and Supplies,General Operating Fund,$143.01
48,J.F. Drake State,10001211,Berney Office Solutions,Jan,7,2014,Other Contractual Services,General Operating Fund,$308.69
48,J.F. Drake State,30001107,CDW-G Government,Jan,7,2014,Materials and Supplies,Title III,"$4,928.40"
48,J.F. Drake State,10001212,Chamber of Commerce of Huntsville/M,Jan,7,2014,Advertising & Promotions,General Operating Fund,$400.00
48,J.F. Drake State,10001213,Chase,Jan,7,2014,Communications,General Operating Fund,"$1,038.21"
48,J.F. Drake State,10001214,Chevron and Texaco,Jan,7,2014,Gasoline & Oil-Motor Vehicle,General Operating Fund,$155.26
48,J.F. Drake State,10001215,Comcast Cable,Jan,7,2014,Communications,General Operating Fund,$178.92
48,J.F. Drake State,10001216,Earthlink,Jan,7,2014,Communications,General Operating Fund,"$4,186.16"
48,J.F. Drake State,30001108,Innovative Interfaces,Jan,7,2014,Computer Software-Non Cap,Title III,"$17,998.00"
48,J.F. Drake State,30001108,Innovative Interfaces,Jan,7,2014,Computer Software-Non Cap,Allied Health,"$38,420.00"
48,J.F. Drake State,10001217,Sexton Welding Supply,Jan,7,2014,"Furniture & Equip $25,000 or Less",Perkins Funds,"$16,010.53"
48,J.F. Drake State,10001217,Sexton Welding Supply,Jan,7,2014,"Furniture & Equip $25,000 or Less",Carl Perkins Career & Tech Ed Grant,"$16,010.53"
48,J.F. Drake State,10001219,WEX Bank,Jan,7,2014,Gasoline & Oil-Motor Vehicle,General Operating Fund,$353.50
48,J.F. Drake State,10001218,Waste Management,Jan,7,2014,Other Contractual Services,General Operating Fund,$792.24
48,J.F. Drake State,10001218,Waste Management,Jan,7,2014,Other Contractual Services,General Operating Fund,$354.00
48,J.F. Drake State,10001218,Waste Management,Jan,7,2014,Other Contractual Services,General Operating Fund,$350.00
48,J.F. Drake State,30001109,"Battle, Ben",Jan,8,2014,In State-Other Travel Exp,Title III,$417.34
48,J.F. Drake State,30001110,"Bell, Angela N.",Jan,8,2014,In State-Other Travel Exp,Title III,$300.00
48,J.F. Drake State,10001220,"Clark, Taska S.",Jan,8,2014,Materials and Supplies,General Operating Fund,$75.81
48,J.F. Drake State,30001111,"Collie, Richard",Jan,8,2014,In State-Other Travel Exp,Title III,$117.02
48,J.F. Drake State,10001221,"Dynamic Security, Inc.",Jan,8,2014,Other Contractual Services,General Operating Fund,"$4,082.40"
48,J.F. Drake State,30001112,"Gaymon, Denise C.",Jan,8,2014,In State-Other Travel Exp,Title III,$134.47
48,J.F. Drake State,30001112,"Gaymon, Denise C.",Jan,8,2014,In State-Other Travel Exp,Title III,$342.52
48,J.F. Drake State,10001222,"Koorsen Security Technology, Inc",Jan,8,2014,Other Contractual Services,General Operating Fund,$308.16
48,J.F. Drake State,10001222,"Koorsen Security Technology, Inc",Jan,8,2014,Other Contractual Services,General Operating Fund,$225.00
48,J.F. Drake State,10001223,Minuteman Press,Jan,8,2014,Other Contractual Services,General Operating Fund,$373.14
48,J.F. Drake State,10001223,Minuteman Press,Jan,8,2014,Other Contractual Services,General Operating Fund,$276.48
48,J.F. Drake State,10001223,Minuteman Press,Jan,8,2014,Other Contractual Services,General Operating Fund,$179.14
48,J.F. Drake State,10001223,Minuteman Press,Jan,8,2014,Other Contractual Services,General Operating Fund,$678.24
48,J.F. Drake State,10001224,"Office Depot, Inc",Jan,8,2014,Materials and Supplies,General Operating Fund,$563.99
48,J.F. Drake State,10001224,"Office Depot, Inc",Jan,8,2014,Materials and Supplies,General Operating Fund,$38.58
48,J.F. Drake State,10001224,"Office Depot, Inc",Jan,8,2014,Materials and Supplies,General Operating Fund,$7.00
48,J.F. Drake State,30001113,"Qualtrics, LLC",Jan,8,2014,Materials and Supplies,Allied Health,"$7,500.00"
48,J.F. Drake State,30001114,American Association of Physics Tea,Jan,9,2014,Materials and Supplies,APEX,"$4,386.00"
48,J.F. Drake State,30001115,"Arrington, Cedric D.",Jan,9,2014,In State-Other Travel Exp,Title III,$575.00
48,J.F. Drake State,30001123,"Arrington, Cedric D.",Jan,9,2014,In State-Other Travel Exp,Title III,$225.00
48,J.F. Drake State,30001116,"Barnett, Nicole C.",Jan,9,2014,In State-Mileage,Title III,$116.39
48,J.F. Drake State,10001225,"Brooks, Aryn J.",Jan,9,2014,AR Suspense,General Operating Fund,"$1,807.00"
48,J.F. Drake State,10001226,C.C. Dickson Co.,Jan,9,2014,Materials and Supplies,General Operating Fund,$20.12
48,J.F. Drake State,10001227,Delta Theta Lambda Ed Foundation,Jan,9,2014,Advertising & Promotions,General Operating Fund,$500.00
48,J.F. Drake State,10001228,"Douglas, Tonya",Jan,9,2014,AR Suspense,General Operating Fund,$100.00
48,J.F. Drake State,30001117,"Forbes, Edwin T.",Jan,9,2014,Out-of-State-Other Travel Expenses,Title III,$509.58
48,J.F. Drake State,30001118,"Gohanna, Symmetris K.",Jan,9,2014,Out-of-State-Other Travel Expenses,Title III,$455.34
48,J.F. Drake State,10001229,"Marcus, Stephen A.",Jan,9,2014,AR Suspense,General Operating Fund,$256.50
48,J.F. Drake State,10001230,Minuteman Press,Jan,9,2014,Other Contractual Services,General Operating Fund,$10.00
48,J.F. Drake State,10001231,"Mobile Mini, Inc",Jan,9,2014,Other Contractual Services,General Operating Fund,$115.01
48,J.F. Drake State,10001232,Oakwood University,Jan,9,2014,Advertising & Promotions,General Operating Fund,"$1,000.00"
48,J.F. Drake State,10001233,"Office Depot, Inc",Jan,9,2014,Materials and Supplies,General Operating Fund,$280.35
48,J.F. Drake State,10001233,"Office Depot, Inc",Jan,9,2014,Materials and Supplies,General Operating Fund,$19.95
48,J.F. Drake State,10001233,"Office Depot, Inc",Jan,9,2014,Materials and Supplies,General Operating Fund,$19.99
48,J.F. Drake State,10001233,"Office Depot, Inc",Jan,9,2014,Materials and Supplies,General Operating Fund,$19.33
48,J.F. Drake State,30001124,PEEHIP,Jan,9,2014,Health Insurance-Institution Share,Spin Up,$178.50
48,J.F. Drake State,10001234,"PPG Architectural Finishes, Inc",Jan,9,2014,Materials and Supplies,General Operating Fund,$18.04
48,J.F. Drake State,10001235,SACS,Jan,9,2014,Other Contractual Services,Carl Perkins Career & Tech Ed Grant,$300.00
48,J.F. Drake State,10001235,SACS,Jan,9,2014,Other Contractual Services,Perkins Funds,$300.00
48,J.F. Drake State,30001119,Sexton Welding Supply,Jan,9,2014,Materials and Supplies,Title III,"$13,155.91"
48,J.F. Drake State,10001236,Sexton Welding Supply,Jan,9,2014,Materials and Supplies,Perkins Funds,"$5,675.54"
48,J.F. Drake State,10001236,Sexton Welding Supply,Jan,9,2014,Materials and Supplies,Carl Perkins Career & Tech Ed Grant,"$5,675.54"
48,J.F. Drake State,30001120,Staples Business Advantage,Jan,9,2014,Materials and Supplies,Title III,"$1,746.61"
48,J.F. Drake State,30001121,"Taylor, Docquinn N.",Jan,9,2014,In State-Other Travel Exp,Title III,$276.06
48,J.F. Drake State,10001237,Texas Book Company,Jan,9,2014,Prior Yr Accounts Payable,Auxiliary Enterprise-Unrestricted,"$140,447.43"
48,J.F. Drake State,30001122,Xerox Corporation,Jan,9,2014,Service Contracts-Equipment,Title III,"$6,092.00"
48,J.F. Drake State,10001239,AT & T Business Service,Jan,10,2014,Communications,General Operating Fund,$158.13
48,J.F. Drake State,10001239,AT & T Business Service,Jan,10,2014,Communications,General Operating Fund,$39.77
48,J.F. Drake State,10001239,AT & T Business Service,Jan,10,2014,Communications,General Operating Fund,$72.66
48,J.F. Drake State,10001240,AT&T,Jan,10,2014,Communications,General Operating Fund,$79.02
48,J.F. Drake State,10001240,AT&T,Jan,10,2014,Communications,General Operating Fund,$1.69
48,J.F. Drake State,10001240,AT&T,Jan,10,2014,Communications,General Operating Fund,$83.76
48,J.F. Drake State,10001238,Alabama Department of Labor,Jan,10,2014,Unemployment Compensation,General Operating Fund,"$3,390.91"
48,J.F. Drake State,10001241,"Banks Industries, Inc",Jan,10,2014,Materials and Supplies,General Operating Fund,"$4,731.68"
48,J.F. Drake State,10001241,"Banks Industries, Inc",Jan,10,2014,Materials and Supplies,General Operating Fund,$716.06
48,J.F. Drake State,10001242,Berney Office Solutions,Jan,10,2014,Other Contractual Services,General Operating Fund,$310.17
48,J.F. Drake State,10001243,Ellucian Company L.P.,Jan,10,2014,Other Contractual Services,General Operating Fund,"$17,716.00"
48,J.F. Drake State,10001243,Ellucian Company L.P.,Jan,10,2014,Other Contractual Services,General Operating Fund,"$17,711.00"
48,J.F. Drake State,10001243,Ellucian Company L.P.,Jan,10,2014,Other Contractual Services,Renewal and Repacement Funds,"$60,007.58"
48,J.F. Drake State,10001244,Huntsville Utilities,Jan,10,2014,Electricity,General Operating Fund,$101.22
48,J.F. Drake State,10001244,Huntsville Utilities,Jan,10,2014,Water & Sewer,General Operating Fund,$8.15
48,J.F. Drake State,10001245,Mullins Special Occasions,Jan,10,2014,Materials and Supplies,General Operating Fund,$97.00
48,J.F. Drake State,10001246,Schindler Elevator Corporation,Jan,10,2014,Other Contractual Services,General Operating Fund,"$1,136.22"
48,J.F. Drake State,10001247,Verizon Wireless,Jan,10,2014,Communications,General Operating Fund,"$1,872.05"
48,J.F. Drake State,10001248,"Blackboard, Inc",Jan,13,2014,Computer Software-Non Cap,General Operating Fund,"$21,279.86"
48,J.F. Drake State,10001249,ELSEVIER,Jan,13,2014,Purchases for Re-Sale,Auxiliary - Nursing Fees,$141.00
48,J.F. Drake State,10001249,ELSEVIER,Jan,13,2014,Purchases for Re-Sale,Auxiliary - Nursing Fees,$486.00
48,J.F. Drake State,10001249,ELSEVIER,Jan,13,2014,Purchases for Re-Sale,Auxiliary - Nursing Fees,$94.00
48,J.F. Drake State,10001249,ELSEVIER,Jan,13,2014,Purchases for Re-Sale,Auxiliary - Nursing Fees,$494.00
48,J.F. Drake State,10001249,ELSEVIER,Jan,13,2014,Purchases for Re-Sale,Auxiliary - Nursing Fees,$81.00
48,J.F. Drake State,10001249,ELSEVIER,Jan,13,2014,Purchases for Re-Sale,Auxiliary - Nursing Fees,$54.00
48,J.F. Drake State,10001249,ELSEVIER,Jan,13,2014,Purchases for Re-Sale,Auxiliary - Nursing Fees,$432.00
48,J.F. Drake State,10001249,ELSEVIER,Jan,13,2014,Purchases for Re-Sale,Auxiliary - Nursing Fees,$27.00
48,J.F. Drake State,10001249,ELSEVIER,Jan,13,2014,Purchases for Re-Sale,Auxiliary - Nursing Fees,$47.00
48,J.F. Drake State,10001249,ELSEVIER,Jan,13,2014,Purchases for Re-Sale,Auxiliary - Nursing Fees,"$1,819.86"
48,J.F. Drake State,10001249,ELSEVIER,Jan,13,2014,Purchases for Re-Sale,Auxiliary - Nursing Fees,$459.00
48,J.F. Drake State,10001249,ELSEVIER,Jan,13,2014,Purchases for Re-Sale,Auxiliary - Nursing Fees,$100.00
48,J.F. Drake State,10001249,ELSEVIER,Jan,13,2014,Purchases for Re-Sale,Auxiliary - Nursing Fees,$972.00
48,J.F. Drake State,10001249,ELSEVIER,Jan,13,2014,Purchases for Re-Sale,Auxiliary - Nursing Fees,"$2,482.76"
48,J.F. Drake State,10001249,ELSEVIER,Jan,13,2014,Purchases for Re-Sale,Auxiliary - Nursing Fees,"$2,166.75"
48,J.F. Drake State,10001250,Loomis,Jan,13,2014,Other Contractual Services,General Operating Fund,$133.95
48,J.F. Drake State,10001251,ACT,Jan,14,2014,Materials and Supplies,General Operating Fund,$216.00
48,J.F. Drake State,10001252,AT & T Business Service,Jan,14,2014,Communications,General Operating Fund,$40.05
48,J.F. Drake State,30001125,"Barnett, Nicole C.",Jan,14,2014,Out-of-State-Subsist & Lodging,Title III,$149.21
48,J.F. Drake State,10001254,CDW-G Government,Jan,14,2014,Computer Software-Non Cap,General Operating Fund,"$24,570.00"
48,J.F. Drake State,10001253,"Castle Branch, Inc.",Jan,14,2014,Purchases for Re-Sale,Auxiliary - Nursing Fees,$25.00
48,J.F. Drake State,10001255,"Dynamic Security, Inc.",Jan,14,2014,Other Contractual Services,General Operating Fund,"$4,374.24"
48,J.F. Drake State,10001256,"Galindo-Baird, Yibeli",Jan,14,2014,In State-Other Travel Exp,General Operating Fund,$117.52
48,J.F. Drake State,10001257,Huntsville Utilities,Jan,14,2014,Water & Sewer,General Operating Fund,$136.58
48,J.F. Drake State,10001257,Huntsville Utilities,Jan,14,2014,Water & Sewer,General Operating Fund,$39.81
48,J.F. Drake State,10001257,Huntsville Utilities,Jan,14,2014,Gas & Heating Fuel,General Operating Fund,"$4,520.42"
48,J.F. Drake State,30001126,"Office Depot, Inc",Jan,14,2014,Materials and Supplies,Title III,"$1,272.90"
48,J.F. Drake State,30001126,"Office Depot, Inc",Jan,14,2014,Materials and Supplies,Title III,$380.43
48,J.F. Drake State,30001127,"Treadway, Kristin A.",Jan,14,2014,In State-Other Travel Exp,Title III,$115.44
48,J.F. Drake State,10001258,WOW! Business,Jan,14,2014,Communications,General Operating Fund,"$1,056.66"
48,J.F. Drake State,10001259,"Dynamic Security, Inc.",Jan,15,2014,Other Contractual Services,General Operating Fund,"$4,082.40"
48,J.F. Drake State,30001128,ABEA,Jan,28,2014,In State-Registration,Title III,$150.00
48,J.F. Drake State,10001260,ACCA,Jan,28,2014,Advertising & Promotions,General Operating Fund,$125.00
48,J.F. Drake State,10001261,ACT,Jan,28,2014,Materials and Supplies,General Operating Fund,"$1,270.00"
48,J.F. Drake State,30001129,Alabama Technology Network,Jan,28,2014,Other Contractual Services,Title III,$663.20
48,J.F. Drake State,30001130,"Arrington, Cedric D.",Jan,28,2014,In State-Mileage,Title III,$80.73
48,J.F. Drake State,10001262,"Banks Industries, Inc",Jan,28,2014,Materials and Supplies,General Operating Fund,$173.18
48,J.F. Drake State,10001263,CDW-G Government,Jan,28,2014,Computer Software-Non Cap,General Operating Fund,$66.99
48,J.F. Drake State,10001264,Copeland Cleaners,Jan,28,2014,Other Contractual Services,General Operating Fund,$50.99
48,J.F. Drake State,30001131,Council for Alabama Resource Develo,Jan,28,2014,In State-Other Travel Exp,Title III,$100.00
48,J.F. Drake State,10001265,"Dangerfield, Sieara P.",Jan,28,2014,AR Suspense,General Operating Fund,$200.00
48,J.F. Drake State,10001266,"Dynamic Security, Inc.",Jan,28,2014,Other Contractual Services,General Operating Fund,"$4,410.45"
48,J.F. Drake State,10001266,"Dynamic Security, Inc.",Jan,28,2014,Other Contractual Services,General Operating Fund,"$4,568.64"
48,J.F. Drake State,10001267,GED Testing Program,Jan,28,2014,Materials and Supplies,General Operating Fund,$194.00
48,J.F. Drake State,30001132,"Green, Timothy R.",Jan,28,2014,In State-Mileage,Title III,$218.45
48,J.F. Drake State,30001133,"Henry, Dexter R.",Jan,28,2014,In State-Mileage,Title III,$190.04
48,J.F. Drake State,30001133,"Henry, Dexter R.",Jan,28,2014,In State-Ovrnite Per diem,Title III,$225.00
48,J.F. Drake State,30001133,"Henry, Dexter R.",Jan,28,2014,In State-Registration,Title III,$565.00
48,J.F. Drake State,10001268,HigherEdJobs,Jan,28,2014,Advertising & Promotions,General Operating Fund,$210.00
48,J.F. Drake State,30001134,Janpak,Jan,28,2014,Materials and Supplies,Title III,"$4,924.80"
48,J.F. Drake State,30001135,Katie Chance,Jan,28,2014,In State-Mileage,Title III,$64.75
48,J.F. Drake State,30001136,"Meador, Maria Y.",Jan,28,2014,In State-Other Travel Exp,Trio-SSS Grant,$493.75
48,J.F. Drake State,10001269,NAAACC,Jan,28,2014,Memberships,General Operating Fund,$450.00
48,J.F. Drake State,10001270,"Office Depot, Inc",Jan,28,2014,Materials and Supplies,General Operating Fund,"$2,108.29"
48,J.F. Drake State,10001271,Public Affairs Research Council of ,Jan,28,2014,In State-Registration,General Operating Fund,$65.00
48,J.F. Drake State,30001137,"Rentz, Joyce L.",Jan,28,2014,In State-Ovrnite Per diem,Title III,$336.00
48,J.F. Drake State,10001272,SACJTC,Jan,28,2014,Out-of-State-Registration,General Operating Fund,$35.00
48,J.F. Drake State,10001273,"Sanders, Monique Y.",Jan,28,2014,AR Suspense,General Operating Fund,$276.00
48,J.F. Drake State,30001138,Scantron Corporation,Jan,28,2014,Materials and Supplies,Allied Health,$939.20
48,J.F. Drake State,30001139,"Singh, Bhesham J.",Jan,28,2014,In State-Mileage,Title III,$29.80
48,J.F. Drake State,10001274,Sysco Central Alabama,Jan,28,2014,Materials and Supplies,General Operating Fund,$459.77
48,J.F. Drake State,30001140,University of New Mexico,Jan,28,2014,Subcontracts,DigiTec,$713.77
48,J.F. Drake State,30001140,University of New Mexico,Jan,28,2014,Subcontracts,DigiTec,$620.76
48,J.F. Drake State,30001141,"Walker, Anita G.",Jan,28,2014,In State-Mileage,Spin Up,$129.38
48,J.F. Drake State,10001275,"Alabama Flag & Banner, Inc",Jan,29,2014,Maintenance & Repairs,General Operating Fund,$111.96
48,J.F. Drake State,10001276,"Banks Industries, Inc",Jan,29,2014,Materials and Supplies,General Operating Fund,$259.77
48,J.F. Drake State,10001276,"Banks Industries, Inc",Jan,29,2014,Materials and Supplies,General Operating Fund,$133.60
48,J.F. Drake State,30001142,Chase,Jan,29,2014,Maintenance & Repairs,Title III,$646.09
48,J.F. Drake State,10001277,Cooks Pest Control,Jan,29,2014,Other Contractual Services,General Operating Fund,$67.00
48,J.F. Drake State,10001277,Cooks Pest Control,Jan,29,2014,Other Contractual Services,General Operating Fund,$249.00
48,J.F. Drake State,30001143,"O'Linger, Jennifer",Jan,29,2014,In State-Other Travel Exp,Title III,$24.00
48,J.F. Drake State,30001143,"O'Linger, Jennifer",Jan,29,2014,In State-Mileage,Title III,$116.39
48,J.F. Drake State,30001143,"O'Linger, Jennifer",Jan,29,2014,In State-Ovrnite Per diem,Title III,$225.00
48,J.F. Drake State,10001278,Peregrine Corporation,Jan,29,2014,Materials and Supplies,General Operating Fund,"$1,258.43"
48,J.F. Drake State,30001144,Staples Business Advantage,Jan,29,2014,Materials and Supplies,Allied Health,$14.95
48,J.F. Drake State,30001144,Staples Business Advantage,Jan,29,2014,Materials and Supplies,Allied Health,$792.16
48,J.F. Drake State,10001281,Sysco Central Alabama,Jan,29,2014,Materials and Supplies,General Operating Fund,"$1,339.09"
48,J.F. Drake State,10001279,"The Solutions Team, Inc.",Jan,29,2014,Computer Software-Non Cap,General Operating Fund,$200.00
48,J.F. Drake State,10001280,UPS,Jan,29,2014,Postage,General Operating Fund,$52.50
48,J.F. Drake State,10001280,UPS,Jan,29,2014,Postage,General Operating Fund,$3.15
48,J.F. Drake State,10001282,"Burton, Kaneshya N.",Feb,3,2014,Third Party Receivable,General Operating Fund,"$2,193.00"
48,J.F. Drake State,10001283,Department of Finance,Feb,3,2014,Communications,General Operating Fund,$45.78
48,J.F. Drake State,10001285,"ELLIS, JOHN B.",Feb,3,2014,Third Party Receivable,General Operating Fund,$224.00
48,J.F. Drake State,10001284,"Edwards, Mamon C.",Feb,3,2014,Third Party Receivable,General Operating Fund,$558.00
48,J.F. Drake State,10001286,Evans Awning Company,Feb,3,2014,Non-capitalized Equipment,Renewal and Repacement Funds,$570.00
48,J.F. Drake State,10001287,Huntsville Times,Feb,3,2014,Other Contractual Services,General Operating Fund,$254.86
48,J.F. Drake State,10001288,"Inline Electric Supply Co., Inc",Feb,3,2014,Materials and Supplies,General Operating Fund,$847.83
48,J.F. Drake State,10001289,KeyPlus+ School Products,Feb,3,2014,Materials and Supplies,General Operating Fund,$16.16
48,J.F. Drake State,10001290,"McKelvey, Andrew K.",Feb,3,2014,Third Party Receivable,General Operating Fund,$1.00
48,J.F. Drake State,10001291,"Miller, Charles P.",Feb,3,2014,Third Party Receivable,General Operating Fund,$560.00
48,J.F. Drake State,10001292,"Mobile Mini, Inc",Feb,3,2014,Other Contractual Services,General Operating Fund,$115.01
48,J.F. Drake State,10001293,"Muhammad, Eric D.",Feb,3,2014,Third Party Receivable,General Operating Fund,$500.00
48,J.F. Drake State,10001294,"Newton, Serena",Feb,3,2014,Third Party Receivable,General Operating Fund,"$2,500.00"
48,J.F. Drake State,10001295,"Quick, Cassie E.",Feb,3,2014,Third Party Receivable,General Operating Fund,$196.50
48,J.F. Drake State,10001296,SACS,Feb,3,2014,College Accreditation Expense,General Operating Fund,$300.00
48,J.F. Drake State,10001297,"Sanders, Monique Y.",Feb,3,2014,AR Suspense,General Operating Fund,$40.00
48,J.F. Drake State,10001298,St. Luke Missionary Baptist Church,Feb,3,2014,Advertising & Promotions,General Operating Fund,$700.00
48,J.F. Drake State,10001299,"Stewart, Jamal H.",Feb,3,2014,Third Party Receivable,General Operating Fund,"$4,000.00"
48,J.F. Drake State,10001300,"Woodard, Chelsea C.",Feb,3,2014,Third Party Receivable,General Operating Fund,"$2,069.00"
48,J.F. Drake State,10001301,AT & T Business Service,Feb,4,2014,Communications,General Operating Fund,$72.66
48,J.F. Drake State,10001301,AT & T Business Service,Feb,4,2014,Communications,General Operating Fund,$159.22
48,J.F. Drake State,10001301,AT & T Business Service,Feb,4,2014,Communications,General Operating Fund,$159.19
48,J.F. Drake State,10001302,AT&T,Feb,4,2014,Communications,General Operating Fund,$354.39
48,J.F. Drake State,10001302,AT&T,Feb,4,2014,Communications,General Operating Fund,$557.05
48,J.F. Drake State,10001302,AT&T,Feb,4,2014,Communications,General Operating Fund,$156.72
48,J.F. Drake State,10001302,AT&T,Feb,4,2014,Communications,General Operating Fund,$124.29
48,J.F. Drake State,10001303,Berney Office Solutions,Feb,4,2014,Other Contractual Services,General Operating Fund,"$1,718.70"
48,J.F. Drake State,10001303,Berney Office Solutions,Feb,4,2014,Other Contractual Services,General Operating Fund,"$1,389.61"
48,J.F. Drake State,10001304,Chevron and Texaco,Feb,4,2014,Gasoline & Oil-Motor Vehicle,General Operating Fund,$237.29
48,J.F. Drake State,10001305,Earthlink,Feb,4,2014,Communications,General Operating Fund,"$5,231.22"
48,J.F. Drake State,10001306,FedEx,Feb,4,2014,Freight,General Operating Fund,$169.76
48,J.F. Drake State,10001306,FedEx,Feb,4,2014,Freight,General Operating Fund,$124.29
48,J.F. Drake State,10001307,Huntsville Utilities,Feb,4,2014,Electricity,General Operating Fund,$337.96
48,J.F. Drake State,10001307,Huntsville Utilities,Feb,4,2014,Electricity,General Operating Fund,"$1,090.25"
48,J.F. Drake State,10001307,Huntsville Utilities,Feb,4,2014,Gas & Heating Fuel,General Operating Fund,$376.33
48,J.F. Drake State,10001307,Huntsville Utilities,Feb,4,2014,Electricity,General Operating Fund,"$21,641.10"
48,J.F. Drake State,10001307,Huntsville Utilities,Feb,4,2014,Gas & Heating Fuel,General Operating Fund,"$3,074.46"
48,J.F. Drake State,10001307,Huntsville Utilities,Feb,4,2014,Water & Sewer,General Operating Fund,$836.49
48,J.F. Drake State,10001307,Huntsville Utilities,Feb,4,2014,Water & Sewer,General Operating Fund,$314.20
48,J.F. Drake State,10001307,Huntsville Utilities,Feb,4,2014,Water & Sewer,General Operating Fund,$6.59
48,J.F. Drake State,10001308,Schrimsher Properties,Feb,4,2014,Rent - Facilities,General Operating Fund,"$6,715.00"
48,J.F. Drake State,10001309,Verizon Wireless,Feb,4,2014,Communications,General Operating Fund,"$1,830.93"
48,J.F. Drake State,10001311,WEX Bank,Feb,4,2014,Gasoline & Oil-Motor Vehicle,General Operating Fund,$683.53
48,J.F. Drake State,10001312,WOW! Business,Feb,4,2014,Communications,General Operating Fund,$127.03
48,J.F. Drake State,10001310,Waste Management,Feb,4,2014,Other Contractual Services,General Operating Fund,"$1,597.85"
48,J.F. Drake State,10001313,ACT,Feb,5,2014,Materials and Supplies,General Operating Fund,$348.00
48,J.F. Drake State,30001145,Alabama Automotive MFG Association,Feb,5,2014,Memberships,Title III,$300.00
48,J.F. Drake State,10001320,Alabama Child Support,Feb,5,2014,Misc Deductions Payable,Payroll Clearing Fund,"$1,130.00"
48,J.F. Drake State,10001321,Allstate Insurance,Feb,5,2014,Misc Deductions Payable,Payroll Clearing Fund,$66.13
48,J.F. Drake State,10001314,American Express,Feb,5,2014,Out-of-State-Other Travel Expenses,General Operating Fund,$575.00
48,J.F. Drake State,10001322,American Family Life,Feb,5,2014,Misc Deductions Payable,Payroll Clearing Fund,$127.70
48,J.F. Drake State,30001146,"Arrington, Cedric D.",Feb,5,2014,In State-Ovrnite Per diem,Title III,$225.00
48,J.F. Drake State,30001147,"Bell, Angela N.",Feb,5,2014,Out-of-State-Subsist & Lodging,Title III,$175.38
48,J.F. Drake State,30001148,Capital Trailways,Feb,5,2014,In State-Commercl Transprt,Trio-SSS Grant,$713.00
48,J.F. Drake State,10001323,College Counts 529 Plan,Feb,5,2014,Misc Deductions Payable,Payroll Clearing Fund,$225.00
48,J.F. Drake State,10001324,Colonial Life Insurance,Feb,5,2014,Misc Deductions Payable,Payroll Clearing Fund,$39.65
48,J.F. Drake State,10001315,Copeland Cleaners,Feb,5,2014,Materials and Supplies,General Operating Fund,$108.15
48,J.F. Drake State,10001325,Drake Education Association,Feb,5,2014,Misc Deductions Payable,Payroll Clearing Fund,"$2,275.08"
48,J.F. Drake State,10001326,Drake State Foundation,Feb,5,2014,Misc Deductions Payable,Payroll Clearing Fund,$280.42
48,J.F. Drake State,30001149,ELSEVIER,Feb,5,2014,Materials and Supplies,Allied Health,$172.64
48,J.F. Drake State,10001327,Educators Benefit,Feb,5,2014,Misc Deductions Payable,Payroll Clearing Fund,"$1,273.69"
48,J.F. Drake State,30001150,Evans Awning Company,Feb,5,2014,Non-capitalized Equipment,Allied Health,$820.00
48,J.F. Drake State,10001316,GED Testing Program,Feb,5,2014,Materials and Supplies,General Operating Fund,$436.00
48,J.F. Drake State,30001151,"Goodloe, Lardell",Feb,5,2014,Out-of-State-Registration,DigiTec,$125.00
48,J.F. Drake State,30001152,Home Science Tools,Feb,5,2014,Materials and Supplies,APEX,$130.00
48,J.F. Drake State,30001153,Hurst Review Services,Feb,5,2014,Other Contractual Services,Allied Health,"$4,000.00"
48,J.F. Drake State,30001154,Laerdal,Feb,5,2014,Materials and Supplies,Allied Health,$112.76
48,J.F. Drake State,30001155,"Lippincott, Williams, and Wilkins",Feb,5,2014,Materials and Supplies,Allied Health,$113.81
48,J.F. Drake State,30001157,MSC Industrial Supply Co.,Feb,5,2014,Materials and Supplies,Title III,$264.48
48,J.F. Drake State,10001328,Metropolitan Life Insurance Company,Feb,5,2014,Misc Deductions Payable,Payroll Clearing Fund,$100.00
48,J.F. Drake State,10001317,"Mobile Mini, Inc",Feb,5,2014,Other Contractual Services,General Operating Fund,$115.01
48,J.F. Drake State,30001156,Moore Medical Corp,Feb,5,2014,Materials and Supplies,Allied Health,"$1,321.50"
48,J.F. Drake State,10001339,NAECU,Feb,5,2014,Misc Deductions Payable,Payroll Clearing Fund,"$4,330.00"
48,J.F. Drake State,10001329,New York Life Insurance,Feb,5,2014,Misc Deductions Payable,Payroll Clearing Fund,$365.25
48,J.F. Drake State,30001158,"Opoku-Boateng, Akua K.",Feb,5,2014,In State-Mileage,Spin Up,$73.45
48,J.F. Drake State,30001158,"Opoku-Boateng, Akua K.",Feb,5,2014,In State-Mileage,Spin Up,$215.04
48,J.F. Drake State,10001330,PEEHIP,Feb,5,2014,PEEHIP Payable,Payroll Clearing Fund,"$78,143.22"
48,J.F. Drake State,30001160,"PODS Enterprises, Inc.",Feb,5,2014,Other Contractual Services,Allied Health,$159.00
48,J.F. Drake State,30001159,Pasco Scientific,Feb,5,2014,Materials and Supplies,APEX,$60.00
48,J.F. Drake State,10001331,Philip A Geddes,Feb,5,2014,Misc Deductions Payable,Payroll Clearing Fund,$430.00
48,J.F. Drake State,10001332,RSA-1 Deferred Compensation,Feb,5,2014,Misc Deductions Payable,Payroll Clearing Fund,$400.00
48,J.F. Drake State,30001161,"Rentz, Joyce L.",Feb,5,2014,Out-of-State-Other Travel Expenses,Title III,$23.00
48,J.F. Drake State,30001161,"Rentz, Joyce L.",Feb,5,2014,Out-of-State-Subsist & Lodging,Title III,$173.23
48,J.F. Drake State,30001161,"Rentz, Joyce L.",Feb,5,2014,Out-of-State-Other Travel Expenses,Title III,$128.00
48,J.F. Drake State,10001318,"Roberts, Jon M.",Feb,5,2014,Materials and Supplies,General Operating Fund,$65.40
48,J.F. Drake State,10001333,Security Benefit Life Insurance Com,Feb,5,2014,Misc Deductions Payable,Payroll Clearing Fund,$425.00
48,J.F. Drake State,30001162,"Singh, Bhesham J.",Feb,5,2014,In State-Ovrnite Per diem,Title III,$300.00
48,J.F. Drake State,10001319,Steak-Out,Feb,5,2014,Materials and Supplies,General Operating Fund,$104.00
48,J.F. Drake State,30001163,"Stephenson, Jon D.",Feb,5,2014,In State-Mileage,Spin Up,$129.29
48,J.F. Drake State,30001163,"Stephenson, Jon D.",Feb,5,2014,In State-Mileage,Spin Up,$532.72
48,J.F. Drake State,10001334,Teachers Retirement System,Feb,5,2014,Alabama Teachers Retirement Payable,Payroll Clearing Fund,"$71,965.03"
48,J.F. Drake State,10001335,Truescreen Inc.,Feb,5,2014,Misc Deductions Payable,Payroll Clearing Fund,$39.00
48,J.F. Drake State,10001336,U.S. Department of Education,Feb,5,2014,Misc Deductions Payable,Payroll Clearing Fund,$267.73
48,J.F. Drake State,10001337,"United Way of Madison County, Inc.",Feb,5,2014,Misc Deductions Payable,Payroll Clearing Fund,$435.00
48,J.F. Drake State,30001164,University of New Mexico,Feb,5,2014,Subcontracts,DigiTec,"$13,360.12"
48,J.F. Drake State,10001338,Variable Annuity Life Insurance,Feb,5,2014,Misc Deductions Payable,Payroll Clearing Fund,$757.50
48,J.F. Drake State,10001340,ACCAPRA,Feb,9,2014,Memberships,General Operating Fund,$50.00
48,J.F. Drake State,10001341,"Dynamic Security, Inc.",Feb,9,2014,Other Contractual Services,General Operating Fund,"$4,082.40"
48,J.F. Drake State,10001342,"Henry, Karl W.",Feb,9,2014,Deposit Liabilities,Amateur Radio Club,$375.00
48,J.F. Drake State,10001343,Labor Ready,Feb,9,2014,Other Contractual Services,General Operating Fund,$637.92
48,J.F. Drake State,10001343,Labor Ready,Feb,9,2014,Other Contractual Services,General Operating Fund,"$1,275.84"
48,J.F. Drake State,10001343,Labor Ready,Feb,9,2014,Other Contractual Services,General Operating Fund,$917.01
48,J.F. Drake State,10001344,"McAlpine, Helen T.",Feb,9,2014,Out-of-State-Mileage,General Operating Fund,$204.44
48,J.F. Drake State,10001345,"Office Depot, Inc",Feb,9,2014,Materials and Supplies,General Operating Fund,$29.39
48,J.F. Drake State,10001346,AT&T,Feb,10,2014,Communications,General Operating Fund,$83.98
48,J.F. Drake State,10001346,AT&T,Feb,10,2014,Communications,General Operating Fund,$1.69
48,J.F. Drake State,10001346,AT&T,Feb,10,2014,Communications,General Operating Fund,$60.66
48,J.F. Drake State,10001347,"Dynamic Security, Inc.",Feb,10,2014,Other Contractual Services,General Operating Fund,"$4,082.40"
48,J.F. Drake State,10001348,FedEx,Feb,10,2014,Freight,General Operating Fund,$38.59
48,J.F. Drake State,10001349,JF Drake State Technical College,Feb,10,2014,Materials and Supplies,General Operating Fund,$5.00
48,J.F. Drake State,10001349,JF Drake State Technical College,Feb,10,2014,Materials and Supplies,General Operating Fund,$15.83
48,J.F. Drake State,10001349,JF Drake State Technical College,Feb,10,2014,Materials and Supplies,General Operating Fund,$90.42
48,J.F. Drake State,10001349,JF Drake State Technical College,Feb,10,2014,Materials and Supplies,General Operating Fund,$156.86
48,J.F. Drake State,10001349,JF Drake State Technical College,Feb,10,2014,Materials and Supplies,General Operating Fund,$7.61
48,J.F. Drake State,10001349,JF Drake State Technical College,Feb,10,2014,Gasoline & Oil-Motor Vehicle,General Operating Fund,$4.37
48,J.F. Drake State,10001349,JF Drake State Technical College,Feb,10,2014,Materials and Supplies,General Operating Fund,$8.94
48,J.F. Drake State,10001349,JF Drake State Technical College,Feb,10,2014,In State-Other Travel Exp,General Operating Fund,$25.00
48,J.F. Drake State,10001350,Waste Management,Feb,10,2014,Other Contractual Services,General Operating Fund,$362.75
48,J.F. Drake State,30001165,ACSHRMA,Feb,15,2014,Memberships,Title III,$250.00
48,J.F. Drake State,30001166,American Express,Feb,15,2014,Out-of-State-Registration,Title III,$865.00
48,J.F. Drake State,30001166,American Express,Feb,15,2014,Out-of-State-Commercl Trans,Title III,$800.00
48,J.F. Drake State,30001166,American Express,Feb,15,2014,Out-of-State-Commercl Trans,Title III,$400.00
48,J.F. Drake State,30001167,BNY Mellon,Feb,15,2014,Other Professional Fees,Title III,"$3,500.00"
48,J.F. Drake State,10001351,"Dynamic Security, Inc.",Feb,15,2014,Other Contractual Services,General Operating Fund,"$4,082.40"
48,J.F. Drake State,10001352,Ellucian Company L.P.,Feb,15,2014,Other Contractual Services,Renewal and Repacement Funds,"$86,792.00"
48,J.F. Drake State,10001352,Ellucian Company L.P.,Feb,15,2014,Other Contractual Services,General Operating Fund,"$31,376.98"
48,J.F. Drake State,10001352,Ellucian Company L.P.,Feb,15,2014,Other Contractual Services,General Operating Fund,"$4,938.00"
48,J.F. Drake State,10001352,Ellucian Company L.P.,Feb,15,2014,Other Contractual Services,General Operating Fund,"$9,491.00"
48,J.F. Drake State,10001353,FedEx,Feb,15,2014,Freight,General Operating Fund,$11.75
48,J.F. Drake State,10001354,"Lanier, Ford, Shaver & Payne PC",Feb,15,2014,Legal Services,General Operating Fund,$114.00
48,J.F. Drake State,10001354,"Lanier, Ford, Shaver & Payne PC",Feb,15,2014,Legal Services,General Operating Fund,"$2,775.40"
48,J.F. Drake State,30001168,"Office Depot, Inc",Feb,15,2014,Materials and Supplies,Title III,$95.08
48,J.F. Drake State,30001168,"Office Depot, Inc",Feb,15,2014,Materials and Supplies,Title III,$17.99
48,J.F. Drake State,10001355,4 Imprint,Feb,17,2014,Advertising & Promotions,General Operating Fund,"$3,591.71"
48,J.F. Drake State,10001356,Alabama Lawnmaster Inc,Feb,17,2014,Other Contractual Services,General Operating Fund,"$3,045.00"
48,J.F. Drake State,10001357,"Dreamstime.com, LLC",Feb,17,2014,Materials and Supplies,General Operating Fund,$239.00
48,J.F. Drake State,10001358,"Dynamic Security, Inc.",Feb,17,2014,Other Contractual Services,General Operating Fund,"$4,082.40"
48,J.F. Drake State,10001359,ELSEVIER,Feb,17,2014,Purchases for Re-Sale,Auxiliary - Nursing Fees,$141.00
48,J.F. Drake State,10001360,Huntsville Times,Feb,17,2014,Communications,General Operating Fund,$220.34
48,J.F. Drake State,10001360,Huntsville Times,Feb,17,2014,Advertising & Promotions,General Operating Fund,$285.00
48,J.F. Drake State,10001361,"James, Qiana T.",Feb,17,2014,Deposit Liabilities,Phi Beta Lambda,$50.00
48,J.F. Drake State,10001362,New Readers Press,Feb,17,2014,Materials and Supplies,Federal - Adult Ed,$718.75
48,J.F. Drake State,10001363,"Raymond, Alice G.",Feb,17,2014,Materials and Supplies,General Operating Fund,$132.71
48,J.F. Drake State,10001365,Sexton Welding Supply,Feb,17,2014,Materials and Supplies,General Operating Fund,$301.70
48,J.F. Drake State,10001365,Sexton Welding Supply,Feb,17,2014,Materials and Supplies,General Operating Fund,$719.75
48,J.F. Drake State,10001365,Sexton Welding Supply,Feb,17,2014,Materials and Supplies,General Operating Fund,$302.00
48,J.F. Drake State,10001365,Sexton Welding Supply,Feb,17,2014,Materials and Supplies,General Operating Fund,"$1,897.50"
48,J.F. Drake State,10001365,Sexton Welding Supply,Feb,17,2014,Materials and Supplies,General Operating Fund,$730.50
48,J.F. Drake State,10001365,Sexton Welding Supply,Feb,17,2014,Materials and Supplies,General Operating Fund,$731.25
48,J.F. Drake State,10001365,Sexton Welding Supply,Feb,17,2014,Materials and Supplies,General Operating Fund,$384.00
48,J.F. Drake State,10001365,Sexton Welding Supply,Feb,17,2014,Materials and Supplies,General Operating Fund,$49.75
48,J.F. Drake State,10001365,Sexton Welding Supply,Feb,17,2014,Materials and Supplies,General Operating Fund,$407.25
48,J.F. Drake State,10001365,Sexton Welding Supply,Feb,17,2014,Materials and Supplies,General Operating Fund,$940.00
48,J.F. Drake State,10001365,Sexton Welding Supply,Feb,17,2014,Materials and Supplies,General Operating Fund,$756.55
48,J.F. Drake State,10001365,Sexton Welding Supply,Feb,17,2014,Materials and Supplies,General Operating Fund,$425.50
48,J.F. Drake State,10001365,Sexton Welding Supply,Feb,17,2014,Materials and Supplies,General Operating Fund,$357.00
48,J.F. Drake State,10001365,Sexton Welding Supply,Feb,17,2014,Materials and Supplies,General Operating Fund,$581.50
48,J.F. Drake State,10001365,Sexton Welding Supply,Feb,17,2014,Materials and Supplies,General Operating Fund,$312.00
48,J.F. Drake State,10001365,Sexton Welding Supply,Feb,17,2014,Materials and Supplies,General Operating Fund,"$1,368.75"
48,J.F. Drake State,10001365,Sexton Welding Supply,Feb,17,2014,Materials and Supplies,General Operating Fund,$442.50
48,J.F. Drake State,10001365,Sexton Welding Supply,Feb,17,2014,Materials and Supplies,General Operating Fund,$397.50
48,J.F. Drake State,10001365,Sexton Welding Supply,Feb,17,2014,Materials and Supplies,General Operating Fund,$474.00
48,J.F. Drake State,10001365,Sexton Welding Supply,Feb,17,2014,Materials and Supplies,General Operating Fund,$523.50
48,J.F. Drake State,10001365,Sexton Welding Supply,Feb,17,2014,Materials and Supplies,General Operating Fund,$78.00
48,J.F. Drake State,10001364,StockLayouts,Feb,17,2014,Materials and Supplies,General Operating Fund,$254.15
48,J.F. Drake State,10001366,ACCSPA,Feb,18,2014,Memberships,General Operating Fund,"$3,000.00"
48,J.F. Drake State,10001374,AT & T Business Service,Feb,18,2014,Communications,General Operating Fund,$318.84
48,J.F. Drake State,30001169,C.C. Dickson Co.,Feb,18,2014,Maintenance & Repairs,Title III,$97.16
48,J.F. Drake State,30001170,Chase,Feb,18,2014,Maintenance & Repairs,Title III,$237.19
48,J.F. Drake State,30001170,Chase,Feb,18,2014,Out-of-State-Other Travel Expenses,Title III,$80.00
48,J.F. Drake State,30001171,"Conditioned Air Solutions, LLC",Feb,18,2014,Maintenance & Repairs,Title III,"$1,204.02"
48,J.F. Drake State,30001171,"Conditioned Air Solutions, LLC",Feb,18,2014,Maintenance & Repairs,Title III,$310.00
48,J.F. Drake State,10001375,Cooks Pest Control,Feb,18,2014,Other Contractual Services,General Operating Fund,$249.00
48,J.F. Drake State,10001375,Cooks Pest Control,Feb,18,2014,Other Contractual Services,General Operating Fund,$67.00
48,J.F. Drake State,30001172,Council For Advancement and Support,Feb,18,2014,Memberships,Title III,$580.00
48,J.F. Drake State,10001367,Domino's Pizza,Feb,18,2014,Advertising & Promotions,NACPED,$270.24
48,J.F. Drake State,10001368,ELSEVIER,Feb,18,2014,Materials and Supplies,General Operating Fund,$447.47
48,J.F. Drake State,10001376,Ellucian Company L.P.,Feb,18,2014,Other Contractual Services,General Operating Fund,"$46,066.08"
48,J.F. Drake State,10001369,Fast Signs,Feb,18,2014,Advertising & Promotions,NACPED,$616.80
48,J.F. Drake State,10001370,Huntsville Times,Feb,18,2014,Other Contractual Services,General Operating Fund,$222.86
48,J.F. Drake State,10001377,Huntsville Utilities,Feb,18,2014,Water & Sewer,General Operating Fund,$300.00
48,J.F. Drake State,10001377,Huntsville Utilities,Feb,18,2014,Water & Sewer,General Operating Fund,$317.70
48,J.F. Drake State,10001377,Huntsville Utilities,Feb,18,2014,Gas & Heating Fuel,General Operating Fund,$276.83
48,J.F. Drake State,10001377,Huntsville Utilities,Feb,18,2014,Water & Sewer,General Operating Fund,$40.09
48,J.F. Drake State,10001377,Huntsville Utilities,Feb,18,2014,Electricity,General Operating Fund,"$1,439.66"
48,J.F. Drake State,30001173,Kelsey Electric Motor Service,Feb,18,2014,Maintenance & Repairs,Title III,$828.59
48,J.F. Drake State,10001371,"Koorsen Security Technology, Inc",Feb,18,2014,Other Contractual Services,General Operating Fund,$881.00
48,J.F. Drake State,10001378,"Lee, Natasha L.",Feb,18,2014,AR Suspense,General Operating Fund,$260.76
48,J.F. Drake State,30001174,"Lippincott, Williams, and Wilkins",Feb,18,2014,Materials and Supplies,Allied Health,$101.57
48,J.F. Drake State,10001379,Loomis,Feb,18,2014,Other Contractual Services,General Operating Fund,$142.42
48,J.F. Drake State,30001175,"Office Depot, Inc",Feb,18,2014,Materials and Supplies,Allied Health,$89.97
48,J.F. Drake State,30001175,"Office Depot, Inc",Feb,18,2014,Materials and Supplies,Allied Health,"$3,611.03"
48,J.F. Drake State,30001175,"Office Depot, Inc",Feb,18,2014,Materials and Supplies,Allied Health,$25.08
48,J.F. Drake State,10001372,"Office Depot, Inc",Feb,18,2014,Materials and Supplies,General Operating Fund,$76.99
48,J.F. Drake State,10001372,"Office Depot, Inc",Feb,18,2014,Materials and Supplies,General Operating Fund,$11.36
48,J.F. Drake State,30001175,"Office Depot, Inc",Feb,18,2014,Materials and Supplies,Allied Health,$135.84
48,J.F. Drake State,10001372,"Office Depot, Inc",Feb,18,2014,Materials and Supplies,General Operating Fund,$38.26
48,J.F. Drake State,30001176,"Roberts, Wendy L.",Feb,18,2014,In State-Mileage,Title III,$116.39
48,J.F. Drake State,30001176,"Roberts, Wendy L.",Feb,18,2014,In State-Ovrnite Per diem,Title III,$150.00
48,J.F. Drake State,30001177,Sargent-Welch,Feb,18,2014,Materials and Supplies,APEX,$14.80
48,J.F. Drake State,30001177,Sargent-Welch,Feb,18,2014,Materials and Supplies,APEX,"$2,900.35"
48,J.F. Drake State,30001178,Sexton Welding Supply,Feb,18,2014,Materials and Supplies,APEX,$46.00
48,J.F. Drake State,10001373,"The Solutions Team, Inc.",Feb,18,2014,Computer Software-Non Cap,General Operating Fund,$200.00
48,J.F. Drake State,10001380,WOW! Business,Feb,18,2014,Communications,General Operating Fund,$23.31
48,J.F. Drake State,30001179,Ward's Science,Feb,18,2014,Materials and Supplies,APEX,$14.46
48,J.F. Drake State,10001381,"Castle Branch, Inc.",Feb,19,2014,Purchases for Re-Sale,Auxiliary - Nursing Fees,"$2,030.00"
48,J.F. Drake State,30001180,EBSCO Information Services,Feb,19,2014,Subscriptions,Title III,$11.04
48,J.F. Drake State,10001382,ELSEVIER,Feb,19,2014,Purchases for Re-Sale,Auxiliary - Nursing Fees,$799.00
48,J.F. Drake State,10001382,ELSEVIER,Feb,19,2014,Purchases for Re-Sale,Auxiliary - Nursing Fees,$94.00
48,J.F. Drake State,10001383,Greater Huntsville Chapter of Jack ,Feb,19,2014,Advertising & Promotions,General Operating Fund,$250.00
48,J.F. Drake State,30001181,Moore Medical Corp,Feb,19,2014,Materials and Supplies,Allied Health,"$1,329.50"
48,J.F. Drake State,10001384,School Savers Corparation,Feb,19,2014,Materials and Supplies,Federal - Adult Ed,"$1,279.95"
48,J.F. Drake State,10001385,"Thomas, Dawn G.",Feb,19,2014,Deposit Liabilities,Student Deposits,$500.00
48,J.F. Drake State,10001386,"Alaph Kappa Alpha Sorority, Inc",Feb,20,2014,Advertising & Promotions,General Operating Fund,"$1,000.00"
48,J.F. Drake State,30001182,"Business Systems & Consultants, Inc",Feb,20,2014,Other Contractual Services,Title III,"$5,887.00"
48,J.F. Drake State,10001387,"Cowley, Kayla L.",Feb,20,2014,AR Suspense,General Operating Fund,$288.50
48,J.F. Drake State,10001388,"Dynamic Security, Inc.",Feb,20,2014,Other Contractual Services,General Operating Fund,"$4,082.40"
48,J.F. Drake State,10001389,"Galindo-Baird, Yibeli",Feb,20,2014,In State-Ovrnite Per diem,General Operating Fund,$150.00
48,J.F. Drake State,10001390,"Koorsen Security Technology, Inc",Feb,20,2014,Other Contractual Services,General Operating Fund,$300.00
48,J.F. Drake State,10001391,NCMPR,Feb,20,2014,Memberships,General Operating Fund,$225.00
48,J.F. Drake State,10001392,Sam's Club/Walmart,Feb,20,2014,Materials and Supplies,Auxiliary - Copier Commissions,$57.86
48,J.F. Drake State,10001392,Sam's Club/Walmart,Feb,20,2014,Materials and Supplies,Auxiliary - Copier/Vend Commissions,$57.86
48,J.F. Drake State,10001393,"Cargill, Patricia",Feb,24,2014,AR Suspense,General Operating Fund,$556.00
48,J.F. Drake State,10001394,"Carter, Anthony M.",Feb,24,2014,AR Suspense,General Operating Fund,$417.00
48,J.F. Drake State,10001395,"Davis, Larry M.",Feb,24,2014,Scholarships,General Operating Fund,$750.00
48,J.F. Drake State,10001396,"Dynamic Security, Inc.",Feb,24,2014,Other Contractual Services,General Operating Fund,"$4,082.40"
48,J.F. Drake State,30001183,Enterprise,Feb,24,2014,Out-of-State-Commercl Trans,Spin Up,$446.94
48,J.F. Drake State,10001397,"Harden, Nicholas A.",Feb,24,2014,AR Suspense,General Operating Fund,$54.00
48,J.F. Drake State,30001184,Hata David,Feb,24,2014,Other Contractual Services,DigiTec,"$2,369.60"
48,J.F. Drake State,10001398,"Jackson, Dr. Reginald",Feb,24,2014,Reception,General Operating Fund,$300.00
48,J.F. Drake State,10001399,"Lonje, Franklin E.",Feb,24,2014,AR Suspense,General Operating Fund,$417.00
48,J.F. Drake State,10001400,"McKannan, Jonathan B.",Feb,24,2014,AR Suspense,General Operating Fund,$417.00
48,J.F. Drake State,10001401,"McKelvey, Andrew K.",Feb,24,2014,AR Suspense,General Operating Fund,$416.00
48,J.F. Drake State,30001185,"PODS Enterprises, Inc.",Feb,24,2014,Other Contractual Services,Allied Health,$159.00
48,J.F. Drake State,10001402,"Reed, Charles M.",Feb,24,2014,AR Suspense,General Operating Fund,$166.80
48,J.F. Drake State,10001403,"Sanders, Monique Y.",Feb,24,2014,AR Suspense,General Operating Fund,$70.00
48,J.F. Drake State,10001404,"Sharp, Robert A.",Feb,24,2014,AR Suspense,General Operating Fund,$417.00
48,J.F. Drake State,10001405,"Spikes, Jarrett A.",Feb,24,2014,AR Suspense,General Operating Fund,$417.00
48,J.F. Drake State,10001406,"Thorne, Logan J.",Feb,24,2014,AR Suspense,General Operating Fund,$417.00
48,J.F. Drake State,30001187,AAEOPP,Feb,27,2014,In State-Registration,Trio-SSS Grant,$200.00
48,J.F. Drake State,30001186,Alabama Board of Nursing,Feb,27,2014,Memberships,Allied Health,$400.00
48,J.F. Drake State,10001407,Alabama Board of Nursing,Feb,27,2014,Memberships,Allied Health,$400.00
48,J.F. Drake State,10001420,Alabama Child Support,Feb,27,2014,Misc Deductions Payable,Payroll Clearing Fund,"$1,130.00"
48,J.F. Drake State,10001408,Alabama Deans of Student Affairs As,Feb,27,2014,Memberships,General Operating Fund,$275.00
48,J.F. Drake State,10001421,Allstate Insurance,Feb,27,2014,Misc Deductions Payable,Payroll Clearing Fund,$66.13
48,J.F. Drake State,10001422,American Family Life,Feb,27,2014,Misc Deductions Payable,Payroll Clearing Fund,$189.32
48,J.F. Drake State,10001409,Chamber of Commerce of Huntsville/M,Feb,27,2014,Advertising & Promotions,General Operating Fund,$400.00
48,J.F. Drake State,30001188,Chase,Feb,27,2014,Materials and Supplies,Title III,$62.52
48,J.F. Drake State,10001423,College Counts 529 Plan,Feb,27,2014,Misc Deductions Payable,Payroll Clearing Fund,$225.00
48,J.F. Drake State,10001424,Colonial Life Insurance,Feb,27,2014,Misc Deductions Payable,Payroll Clearing Fund,$39.65
48,J.F. Drake State,10001410,Copeland Cleaners,Feb,27,2014,Other Contractual Services,General Operating Fund,$59.23
48,J.F. Drake State,10001410,Copeland Cleaners,Feb,27,2014,Other Contractual Services,General Operating Fund,$34.51
48,J.F. Drake State,10001425,Drake Education Association,Feb,27,2014,Misc Deductions Payable,Payroll Clearing Fund,"$2,220.01"
48,J.F. Drake State,10001426,Drake State Foundation,Feb,27,2014,Misc Deductions Payable,Payroll Clearing Fund,$465.42
48,J.F. Drake State,10001411,ELSEVIER,Feb,27,2014,Materials and Supplies,General Operating Fund,$226.91
48,J.F. Drake State,10001427,Educators Benefit,Feb,27,2014,Misc Deductions Payable,Payroll Clearing Fund,"$1,214.24"
48,J.F. Drake State,10001412,Evans Awning Company,Feb,27,2014,Non-capitalized Equipment,Renewal and Repacement Funds,"$1,475.00"
48,J.F. Drake State,10001413,Kelsey Electric Motor Service,Feb,27,2014,Maintenance & Repairs,General Operating Fund,$828.59
48,J.F. Drake State,30001189,Laerdal,Feb,27,2014,Materials and Supplies,Allied Health,$105.13
48,J.F. Drake State,30001190,Maricopa County Community Colleges ,Feb,27,2014,Subcontracts,DigiTec,"$14,837.02"
48,J.F. Drake State,10001414,McCrary Supply,Feb,27,2014,Materials and Supplies,General Operating Fund,$112.35
48,J.F. Drake State,10001428,Metropolitan Life Insurance Company,Feb,27,2014,Misc Deductions Payable,Payroll Clearing Fund,$100.00
48,J.F. Drake State,10001415,"Mobile Mini, Inc",Feb,27,2014,Other Contractual Services,General Operating Fund,$114.48
48,J.F. Drake State,10001429,NAECU,Feb,27,2014,Misc Deductions Payable,Payroll Clearing Fund,"$3,127.00"
48,J.F. Drake State,10001430,New York Life Insurance,Feb,27,2014,Misc Deductions Payable,Payroll Clearing Fund,$365.25
48,J.F. Drake State,10001416,"Office Depot, Inc",Feb,27,2014,Materials and Supplies,General Operating Fund,$129.99
48,J.F. Drake State,10001416,"Office Depot, Inc",Feb,27,2014,Materials and Supplies,General Operating Fund,$648.49
48,J.F. Drake State,10001416,"Office Depot, Inc",Feb,27,2014,Materials and Supplies,General Operating Fund,$9.45
48,J.F. Drake State,10001416,"Office Depot, Inc",Feb,27,2014,Materials and Supplies,General Operating Fund,$2.78
48,J.F. Drake State,10001416,"Office Depot, Inc",Feb,27,2014,Materials and Supplies,General Operating Fund,$364.97
48,J.F. Drake State,10001416,"Office Depot, Inc",Feb,27,2014,Materials and Supplies,General Operating Fund,$6.09
48,J.F. Drake State,10001417,"Orr, Cathy L.",Feb,27,2014,AR Suspense,General Operating Fund,$573.99
48,J.F. Drake State,10001431,PEEHIP,Feb,27,2014,PEEHIP Payable,Payroll Clearing Fund,"$76,715.22"
48,J.F. Drake State,10001432,Philip A Geddes,Feb,27,2014,Misc Deductions Payable,Payroll Clearing Fund,$430.00
48,J.F. Drake State,30001191,Pocket Nurse,Feb,27,2014,Materials and Supplies,Allied Health,"$2,646.08"
48,J.F. Drake State,10001433,RSA-1 Deferred Compensation,Feb,27,2014,Misc Deductions Payable,Payroll Clearing Fund,$400.00
48,J.F. Drake State,10001418,Rosetta James Foundation,Feb,27,2014,Advertising & Promotions,General Operating Fund,"$1,000.00"
48,J.F. Drake State,30001192,"Seay, Laodecea T.",Feb,27,2014,In State-Other Travel Exp,Title III,$340.00
48,J.F. Drake State,10001434,Security Benefit Life Insurance Com,Feb,27,2014,Misc Deductions Payable,Payroll Clearing Fund,$425.00
48,J.F. Drake State,30001193,Springer Publishing Company,Feb,27,2014,Materials and Supplies,Allied Health,$625.00
48,J.F. Drake State,10001419,Stanley Steemer,Feb,27,2014,Maintenance & Repairs,General Operating Fund,"$1,034.50"
48,J.F. Drake State,10001435,Teachers Retirement System,Feb,27,2014,Alabama Teachers Retirement Payable,Payroll Clearing Fund,"$76,634.61"
48,J.F. Drake State,10001436,Truescreen Inc.,Feb,27,2014,Background Checks,Payroll Clearing Fund,$156.00
48,J.F. Drake State,10001437,U.S. Department of Education,Feb,27,2014,Misc Deductions Payable,Payroll Clearing Fund,$267.73
48,J.F. Drake State,10001438,"United Way of Madison County, Inc.",Feb,27,2014,Misc Deductions Payable,Payroll Clearing Fund,$440.00
48,J.F. Drake State,10001439,Variable Annuity Life Insurance,Feb,27,2014,Misc Deductions Payable,Payroll Clearing Fund,$757.50
48,J.F. Drake State,30001194,Wardman Park Marriott Hotel,Feb,27,2014,Out-of-State-Subsist & Lodging,Title III,$855.32
48,J.F. Drake State,10001440,Chase,Feb,28,2014,Out-of-State-Subsist & Lodging,General Operating Fund,$363.82
48,J.F. Drake State,30001195,Chase,Feb,28,2014,Out-of-State-Subsist & Lodging,DigiTec,$424.29
48,J.F. Drake State,10001440,Chase,Feb,28,2014,Materials and Supplies,General Operating Fund,$243.35
48,J.F. Drake State,10001440,Chase,Feb,28,2014,Other Non-capital Costs,General Operating Fund,$174.66
48,J.F. Drake State,30001195,Chase,Feb,28,2014,Out-of-State-Subsist & Lodging,Spin Up,"$1,161.00"
48,J.F. Drake State,10001440,Chase,Feb,28,2014,Other Non-capital Costs,General Operating Fund,$36.61
48,J.F. Drake State,10001440,Chase,Feb,28,2014,Other Non-capital Costs,General Operating Fund,"$1,166.44"
48,J.F. Drake State,10001440,Chase,Feb,28,2014,Other Non-capital Costs,General Operating Fund,$190.00
48,J.F. Drake State,10001440,Chase,Feb,28,2014,Other Non-capital Costs,General Operating Fund,"$1,070.00"
48,J.F. Drake State,30001195,Chase,Feb,28,2014,Other Non-capital Costs,APEX,$540.92
48,J.F. Drake State,30001195,Chase,Feb,28,2014,Other Non-capital Costs,DigiTec,"$2,461.22"
48,J.F. Drake State,10001440,Chase,Feb,28,2014,Other Non-capital Costs,General Operating Fund,"$2,400.00"
48,J.F. Drake State,10001440,Chase,Feb,28,2014,Other Non-capital Costs,General Operating Fund,$800.00
48,J.F. Drake State,10001440,Chase,Feb,28,2014,Other Non-capital Costs,General Operating Fund,$21.97
48,J.F. Drake State,10001440,Chase,Feb,28,2014,Other Non-capital Costs,General Operating Fund,"$3,111.46"
48,J.F. Drake State,10001440,Chase,Feb,28,2014,Materials and Supplies,General Operating Fund,$82.50
48,J.F. Drake State,30001195,Chase,Feb,28,2014,Other Non-capital Costs,DigiTec,$918.00
48,J.F. Drake State,30001195,Chase,Feb,28,2014,Out-of-State-Subsist & Lodging,Title III,$268.94
48,J.F. Drake State,10001440,Chase,Feb,28,2014,Other Non-capital Costs,General Operating Fund,$95.36
48,J.F. Drake State,10001440,Chase,Feb,28,2014,Other Non-capital Costs,General Operating Fund,$25.00
48,J.F. Drake State,10001441,Earthlink,Feb,28,2014,Communications,General Operating Fund,"$5,223.12"
48,J.F. Drake State,10001442,Huntsville Utilities,Feb,28,2014,Electricity,General Operating Fund,$273.45
48,J.F. Drake State,10001442,Huntsville Utilities,Feb,28,2014,Gas & Heating Fuel,General Operating Fund,"$5,778.70"
48,J.F. Drake State,10001442,Huntsville Utilities,Feb,28,2014,Electricity,General Operating Fund,$915.66
48,J.F. Drake State,10001443,Schrimsher Properties,Feb,28,2014,Rent - Facilities,General Operating Fund,"$6,715.00"
48,J.F. Drake State,10001444,Sexton Welding Supply,Feb,28,2014,Materials and Supplies,CARCAM,"$4,673.66"
48,J.F. Drake State,10001444,Sexton Welding Supply,Feb,28,2014,Non-capitalized Equipment,CARCAM,"$2,046.00"
48,J.F. Drake State,10001444,Sexton Welding Supply,Feb,28,2014,Deposit Liabilities,Welding Scrap Metal Sales,$820.85
48,J.F. Drake State,10001444,Sexton Welding Supply,Feb,28,2014,Materials and Supplies,CARCAM,"$4,872.00"
48,J.F. Drake State,10001445,Alabama Labor Law Poster,Mar,3,2014,Materials and Supplies,General Operating Fund,$152.50
48,J.F. Drake State,10001446,Alliant Data Systems,Mar,3,2014,Other Contractual Services,General Operating Fund,"$15,927.60"
48,J.F. Drake State,10001447,American Express,Mar,3,2014,Out-of-State-Commercl Trans,General Operating Fund,$290.00
48,J.F. Drake State,30001196,"Barnett, Nicole C.",Mar,3,2014,In State-Ovrnite Per diem,Title III,$150.00
48,J.F. Drake State,30001196,"Barnett, Nicole C.",Mar,3,2014,In State-Registration,Title III,$160.00
48,J.F. Drake State,10001448,"Burmax Company, INC",Mar,3,2014,Purchases for Re-Sale,General Operating Fund,$893.32
48,J.F. Drake State,10001449,CDW-G Government,Mar,3,2014,Non-capitalized Equipment,General Operating Fund,"$2,458.53"
48,J.F. Drake State,10001450,"Office Depot, Inc",Mar,3,2014,Materials and Supplies,General Operating Fund,$84.72
48,J.F. Drake State,10001451,Skills USA,Mar,3,2014,Deposit Liabilities,Skills USA Dues,$195.00
48,J.F. Drake State,10001452,Alliant Data Systems,Mar,5,2014,Other Contractual Services,General Operating Fund,"$15,927.60"
48,J.F. Drake State,10001466,Alliant Data Systems,Mar,5,2014,Computer Software-Non Cap,General Operating Fund,"$16,405.25"
48,J.F. Drake State,30001197,American Express,Mar,5,2014,Out-of-State-Subsist & Lodging,DigiTec,$535.00
48,J.F. Drake State,10001467,CDW-G Government,Mar,5,2014,Materials and Supplies,General Operating Fund,$794.25
48,J.F. Drake State,10001453,CDW-G Government,Mar,5,2014,Other Contractual Services,General Operating Fund,"$8,834.41"
48,J.F. Drake State,30001198,CDW-G Government,Mar,5,2014,Non-capitalized Equipment,APEX,"$3,820.08"
48,J.F. Drake State,30001206,Carolina Biological Supply Company,Mar,5,2014,Materials and Supplies,Title III,"$1,459.57"
48,J.F. Drake State,30001206,Carolina Biological Supply Company,Mar,5,2014,Materials and Supplies,Title III,$622.50
48,J.F. Drake State,10001460,Comcast Cable,Mar,5,2014,Communications,General Operating Fund,$370.34
48,J.F. Drake State,10001454,Copeland Cleaners,Mar,5,2014,Other Contractual Services,General Operating Fund,$17.00
48,J.F. Drake State,30001199,Copeland Cleaners,Mar,5,2014,Other Contractual Services,APEX,$39.66
48,J.F. Drake State,10001455,Crown Trophy,Mar,5,2014,Materials and Supplies,General Operating Fund,$110.50
48,J.F. Drake State,30001200,"Dukemineer, Amelia J.",Mar,5,2014,In State-Mileage,Spin Up,$88.09
48,J.F. Drake State,10001456,"Dynamic Security, Inc.",Mar,5,2014,Other Contractual Services,General Operating Fund,"$4,082.40"
48,J.F. Drake State,30001201,Federal Fund Management Advisor,Mar,5,2014,Professional Development,Title III,$498.00
48,J.F. Drake State,10001461,Huntsville Utilities,Mar,5,2014,Water & Sewer,General Operating Fund,$8.15
48,J.F. Drake State,10001461,Huntsville Utilities,Mar,5,2014,Water & Sewer,General Operating Fund,"$1,993.39"
48,J.F. Drake State,10001461,Huntsville Utilities,Mar,5,2014,Electricity,General Operating Fund,"$20,393.75"
48,J.F. Drake State,10001457,KeyPlus+ School Products,Mar,5,2014,Materials and Supplies,General Operating Fund,$11.88
48,J.F. Drake State,10001462,"McAlpine, Helen T.",Mar,5,2014,Reception,General Operating Fund,"$1,880.19"
48,J.F. Drake State,30001202,NATIONAL ASSOCIATION OF COLLEGE AND,Mar,5,2014,Memberships,Title III,$899.00
48,J.F. Drake State,30001203,"Office Depot, Inc",Mar,5,2014,Materials and Supplies,Title III,$6.59
48,J.F. Drake State,10001458,"Office Depot, Inc",Mar,5,2014,Materials and Supplies,Federal - Adult Ed,$3.12
48,J.F. Drake State,10001458,"Office Depot, Inc",Mar,5,2014,Materials and Supplies,General Operating Fund,$5.99
48,J.F. Drake State,30001203,"Office Depot, Inc",Mar,5,2014,Materials and Supplies,Title III,$20.99
48,J.F. Drake State,10001458,"Office Depot, Inc",Mar,5,2014,Materials and Supplies,Federal - Adult Ed,$855.65
48,J.F. Drake State,10001458,"Office Depot, Inc",Mar,5,2014,Materials and Supplies,General Operating Fund,$55.96
48,J.F. Drake State,10001458,"Office Depot, Inc",Mar,5,2014,Materials and Supplies,Federal - Adult Ed,$124.29
48,J.F. Drake State,10001458,"Office Depot, Inc",Mar,5,2014,Materials and Supplies,General Operating Fund,$280.18
48,J.F. Drake State,30001207,Omni Shoreham Hotel,Mar,5,2014,Out-of-State-Subsist & Lodging,Title III,$855.32
48,J.F. Drake State,30001204,"Scrip-Safe Security Products, Inc.",Mar,5,2014,Other Contractual Services,Title III,$626.00
48,J.F. Drake State,30001204,"Scrip-Safe Security Products, Inc.",Mar,5,2014,Other Contractual Services,Title III,$283.00
48,J.F. Drake State,30001205,"Sims, Patricia G.",Mar,5,2014,Out-of-State-Subsist & Lodging,Title III,$73.40
48,J.F. Drake State,10001463,US Department of Veteran Affairs,Mar,5,2014,AR Suspense,General Operating Fund,"$1,194.60"
48,J.F. Drake State,10001459,Universal Supply Corp,Mar,5,2014,Materials and Supplies,General Operating Fund,$489.41
48,J.F. Drake State,10001464,Verizon Wireless,Mar,5,2014,Communications,General Operating Fund,"$1,912.99"
48,J.F. Drake State,10001465,Waste Management,Mar,5,2014,Other Contractual Services,General Operating Fund,$797.67
48,J.F. Drake State,30001208,ACCSFMA,Mar,10,2014,In State-Registration,Title III,$150.00
48,J.F. Drake State,10001468,America's Party Pros,Mar,10,2014,Other Contractual Services,General Operating Fund,"$1,801.50"
48,J.F. Drake State,10001478,Chase,Mar,10,2014,Materials and Supplies,General Operating Fund,$82.50
48,J.F. Drake State,10001478,Chase,Mar,10,2014,Out-of-State-Commercl Trans,General Operating Fund,$62.52
48,J.F. Drake State,10001478,Chase,Mar,10,2014,Materials and Supplies,General Operating Fund,$221.35
48,J.F. Drake State,30001215,Chase,Mar,10,2014,Materials and Supplies,Title III,"$1,070.00"
48,J.F. Drake State,10001478,Chase,Mar,10,2014,Materials and Supplies,General Operating Fund,$95.36
48,J.F. Drake State,10001478,Chase,Mar,10,2014,Purchases for Re-Sale,General Operating Fund,$86.38
48,J.F. Drake State,30001215,Chase,Mar,10,2014,Out-of-State-Subsist & Lodging,Title III,$268.94
48,J.F. Drake State,10001478,Chase,Mar,10,2014,Materials and Supplies,General Operating Fund,$22.00
48,J.F. Drake State,30001215,Chase,Mar,10,2014,Other Non-capital Costs,APEX,$540.92
48,J.F. Drake State,10001478,Chase,Mar,10,2014,Out-of-State-Subsist & Lodging,General Operating Fund,$314.66
48,J.F. Drake State,30001215,Chase,Mar,10,2014,Other Non-capital Costs,DigiTec,"$2,461.22"
48,J.F. Drake State,30001215,Chase,Mar,10,2014,Other Non-capital Costs,DigiTec,"$3,535.75"
48,J.F. Drake State,30001215,Chase,Mar,10,2014,Out-of-State-Subsist & Lodging,Spin Up,$129.00
48,J.F. Drake State,30001215,Chase,Mar,10,2014,Memberships,Title III,"$2,400.00"
48,J.F. Drake State,10001478,Chase,Mar,10,2014,Out-of-State-Subsist & Lodging,General Operating Fund,$23.16
48,J.F. Drake State,30001215,Chase,Mar,10,2014,Materials and Supplies,GA-AL LSAMP NSF HRD 1305041,$21.97
48,J.F. Drake State,30001215,Chase,Mar,10,2014,Out-of-State-Subsist & Lodging,Title III,"$1,140.44"
48,J.F. Drake State,10001478,Chase,Mar,10,2014,Credit Card Service Charges,General Operating Fund,$100.07
48,J.F. Drake State,30001215,Chase,Mar,10,2014,Other Non-capital Costs,DigiTec,$918.00
48,J.F. Drake State,30001215,Chase,Mar,10,2014,Out-of-State-Subsist & Lodging,Spin Up,$516.00
48,J.F. Drake State,10001478,Chase,Mar,10,2014,Out-of-State-Subsist & Lodging,General Operating Fund,$26.00
48,J.F. Drake State,10001478,Chase,Mar,10,2014,Credit Card Service Charges,General Operating Fund,$36.13
48,J.F. Drake State,10001478,Chase,Mar,10,2014,Credit Card Service Charges,General Operating Fund,$64.26
48,J.F. Drake State,30001209,"Chen, Roger",Mar,10,2014,In State-Mileage,Title III,$423.75
48,J.F. Drake State,30001209,"Chen, Roger",Mar,10,2014,In State-Ovrnite Per diem,Title III,$300.00
48,J.F. Drake State,10001469,"Clark, Taska S.",Mar,10,2014,Materials and Supplies,General Operating Fund,$46.16
48,J.F. Drake State,30001210,ELSEVIER,Mar,10,2014,Subscriptions,Title III,$183.00
48,J.F. Drake State,10001470,"Garner, LeKeisha B.",Mar,10,2014,Materials and Supplies,General Operating Fund,$8.62
48,J.F. Drake State,10001471,"Gaymon, Denise C.",Mar,10,2014,In State-Registration,General Operating Fund,$35.00
48,J.F. Drake State,30001211,Grey House Publishing,Mar,10,2014,Books,Title III,$456.00
48,J.F. Drake State,10001472,"Harris, Duchess",Mar,10,2014,Reception,General Operating Fund,$250.00
48,J.F. Drake State,10001473,"Harris, Katrina J.",Mar,10,2014,Materials and Supplies,General Operating Fund,$2.18
48,J.F. Drake State,10001474,"Ivey, Neoka J.",Mar,10,2014,In State-Other Travel Exp,Auxiliary - Copier Commissions,$300.00
48,J.F. Drake State,10001474,"Ivey, Neoka J.",Mar,10,2014,In State-Other Travel Exp,Auxiliary - Copier/Vend Commissions,$856.25
48,J.F. Drake State,10001474,"Ivey, Neoka J.",Mar,10,2014,In State-Other Travel Exp,Auxiliary - Copier/Vend Commissions,$300.00
48,J.F. Drake State,10001474,"Ivey, Neoka J.",Mar,10,2014,In State-Other Travel Exp,Auxiliary - Copier Commissions,$856.25
48,J.F. Drake State,30001212,League for Innovation,Mar,10,2014,Books,Title III,$504.00
48,J.F. Drake State,10001475,"Office Depot, Inc",Mar,10,2014,Materials and Supplies,General Operating Fund,$24.29
48,J.F. Drake State,10001475,"Office Depot, Inc",Mar,10,2014,Materials and Supplies,General Operating Fund,$35.96
48,J.F. Drake State,10001475,"Office Depot, Inc",Mar,10,2014,Materials and Supplies,General Operating Fund,$250.15
48,J.F. Drake State,10001476,"Park Supply Co., Inc.",Mar,10,2014,Materials and Supplies,General Operating Fund,$142.92
48,J.F. Drake State,10001477,Skills USA,Mar,10,2014,In State-Registration,Auxiliary - Copier Commissions,$171.00
48,J.F. Drake State,10001477,Skills USA,Mar,10,2014,In State-Registration,Auxiliary - Copier/Vend Commissions,$171.00
48,J.F. Drake State,30001213,"Stericycle, Inc.",Mar,10,2014,Other Contractual Services,Allied Health,$152.94
48,J.F. Drake State,30001214,Tuscaloosa Bindery,Mar,10,2014,Materials and Supplies,Title III,$394.80
48,J.F. Drake State,10001479,ACT,Mar,12,2014,Materials and Supplies,General Operating Fund,$246.00
48,J.F. Drake State,10001480,AT&T,Mar,12,2014,Communications,General Operating Fund,$83.88
48,J.F. Drake State,10001480,AT&T,Mar,12,2014,Communications,General Operating Fund,$171.28
48,J.F. Drake State,10001480,AT&T,Mar,12,2014,Communications,General Operating Fund,$39.96
48,J.F. Drake State,10001480,AT&T,Mar,12,2014,Communications,General Operating Fund,"$1,835.53"
48,J.F. Drake State,10001480,AT&T,Mar,12,2014,Communications,General Operating Fund,$257.61
48,J.F. Drake State,10001480,AT&T,Mar,12,2014,Communications,General Operating Fund,$745.17
48,J.F. Drake State,10001481,Berney Office Solutions,Mar,12,2014,Other Contractual Services,General Operating Fund,$87.44
48,J.F. Drake State,10001481,Berney Office Solutions,Mar,12,2014,Other Contractual Services,General Operating Fund,$254.07
48,J.F. Drake State,10001482,Ellucian Company L.P.,Mar,12,2014,Other Contractual Services,General Operating Fund,"$10,143.00"
48,J.F. Drake State,10001482,Ellucian Company L.P.,Mar,12,2014,Construction in Progress,Renewal and Repacement Funds,"$58,777.24"
48,J.F. Drake State,10001483,Huntsville Utilities,Mar,12,2014,Water & Sewer,General Operating Fund,$39.81
48,J.F. Drake State,10001483,Huntsville Utilities,Mar,12,2014,Gas & Heating Fuel,General Operating Fund,"$5,778.70"
48,J.F. Drake State,10001483,Huntsville Utilities,Mar,12,2014,Water & Sewer,General Operating Fund,$924.35
48,J.F. Drake State,10001483,Huntsville Utilities,Mar,12,2014,Gas & Heating Fuel,General Operating Fund,"$2,703.33"
48,J.F. Drake State,10001484,Labor Ready,Mar,12,2014,Other Contractual Services,General Operating Fund,"$1,284.48"
48,J.F. Drake State,10001485,Loomis,Mar,12,2014,Other Contractual Services,General Operating Fund,$144.18
48,J.F. Drake State,30001216,WEX Bank,Mar,12,2014,In State-Other Travel Exp,Title III,$34.12
48,J.F. Drake State,30001216,WEX Bank,Mar,12,2014,In State-Other Travel Exp,Title III,$41.50
48,J.F. Drake State,10001486,WEX Bank,Mar,12,2014,Gasoline & Oil-Motor Vehicle,General Operating Fund,$18.89
48,J.F. Drake State,30001216,WEX Bank,Mar,12,2014,In State-Other Travel Exp,Title III,$34.10
48,J.F. Drake State,10001486,WEX Bank,Mar,12,2014,Gasoline & Oil-Motor Vehicle,General Operating Fund,$107.50
48,J.F. Drake State,30001216,WEX Bank,Mar,12,2014,In State-Other Travel Exp,Title III,$27.79
48,J.F. Drake State,30001216,WEX Bank,Mar,12,2014,In State-Other Travel Exp,Title III,$48.29
48,J.F. Drake State,30001216,WEX Bank,Mar,12,2014,In State-Other Travel Exp,Title III,$46.89
48,J.F. Drake State,10001486,WEX Bank,Mar,12,2014,Gasoline & Oil-Motor Vehicle,General Operating Fund,$97.67
48,J.F. Drake State,30001216,WEX Bank,Mar,12,2014,In State-Other Travel Exp,Title III,$34.85
48,J.F. Drake State,30001216,WEX Bank,Mar,12,2014,In State-Other Travel Exp,Title III,$37.98
48,J.F. Drake State,30001216,WEX Bank,Mar,12,2014,In State-Other Travel Exp,Title III,$47.89
48,J.F. Drake State,30001216,WEX Bank,Mar,12,2014,In State-Other Travel Exp,Title III,$52.04
48,J.F. Drake State,10001486,WEX Bank,Mar,12,2014,Gasoline & Oil-Motor Vehicle,General Operating Fund,$24.18
48,J.F. Drake State,10001487,4 Imprint,Mar,17,2014,Purchases for Re-Sale,Auxiliary Enterprise-Unrestricted,"$1,380.52"
48,J.F. Drake State,10001488,Alabama Lawnmaster Inc,Mar,17,2014,Other Contractual Services,General Operating Fund,"$3,045.00"
48,J.F. Drake State,30001217,Capital Trailways,Mar,17,2014,In State-Commercl Transprt,Trio-SSS Grant,"$1,548.00"
48,J.F. Drake State,30001218,"Chen, Roger",Mar,17,2014,In State-Ovrnite Per diem,Title III,$300.00
48,J.F. Drake State,30001218,"Chen, Roger",Mar,17,2014,In State-Mileage,Title III,$274.59
48,J.F. Drake State,10001489,Copeland Cleaners,Mar,17,2014,Materials and Supplies,General Operating Fund,$71.07
48,J.F. Drake State,10001490,"Dynamic Security, Inc.",Mar,17,2014,Other Contractual Services,General Operating Fund,"$4,082.40"
48,J.F. Drake State,10001491,Enterprise,Mar,17,2014,Reception,General Operating Fund,$198.41
48,J.F. Drake State,10001492,Houghton Mifflin Harcourt Publishin,Mar,17,2014,Materials and Supplies,Federal - Adult Ed,"$1,493.65"
48,J.F. Drake State,30001219,Huntsville Times,Mar,17,2014,Subscriptions,Title III,$286.00
48,J.F. Drake State,10001493,McNeese Glass Company,Mar,17,2014,Maintenance & Repairs,General Operating Fund,$369.70
48,J.F. Drake State,10001494,Mullins Special Occasions,Mar,17,2014,Reception,General Operating Fund,"$1,173.00"
48,J.F. Drake State,10001495,"Office Depot, Inc",Mar,17,2014,Advertising & Promotions,NACPED,$229.99
48,J.F. Drake State,10001495,"Office Depot, Inc",Mar,17,2014,Advertising & Promotions,NACPED,$75.20
48,J.F. Drake State,10001496,"PPG Architectural Finishes, Inc",Mar,17,2014,Materials and Supplies,General Operating Fund,$117.45
48,J.F. Drake State,30001220,"Pope, Gwendolyn M.",Mar,17,2014,In State-Mileage,Title III,$133.95
48,J.F. Drake State,30001220,"Pope, Gwendolyn M.",Mar,17,2014,In State-Ovrnite Per diem,Title III,$150.00
48,J.F. Drake State,10001497,"Roberts, Wendy L.",Mar,17,2014,In State-Mileage,State - Adult Ed,$124.32
48,J.F. Drake State,10001497,"Roberts, Wendy L.",Mar,17,2014,In State-Ovrnite Per diem,State - Adult Ed,$150.00
48,J.F. Drake State,30001221,Sargent-Welch,Mar,17,2014,Materials and Supplies,APEX,$261.89
48,J.F. Drake State,30001222,Staples Business Advantage,Mar,17,2014,Materials and Supplies,Trio-SSS Grant,"$2,139.82"
48,J.F. Drake State,10001498,Steak-Out,Mar,17,2014,Materials and Supplies,Auxiliary - Copier Commissions,$169.00
48,J.F. Drake State,10001498,Steak-Out,Mar,17,2014,Materials and Supplies,Auxiliary - Copier/Vend Commissions,$169.00
48,J.F. Drake State,10001499,Sysco Central Alabama,Mar,17,2014,Reception,General Operating Fund,$276.87
48,J.F. Drake State,10001499,Sysco Central Alabama,Mar,17,2014,Reception,General Operating Fund,"$1,614.47"
48,J.F. Drake State,10001499,Sysco Central Alabama,Mar,17,2014,Materials and Supplies,General Operating Fund,"$1,356.50"
48,J.F. Drake State,10001500,Texas Book Company,Mar,17,2014,Prior Yr Accounts Payable,Auxiliary Enterprise-Unrestricted,"$161,528.40"
48,J.F. Drake State,30001223,University of New Mexico,Mar,17,2014,Subcontracts,DigiTec,"$8,317.23"
48,J.F. Drake State,30001224,"W.W. Grainger, Inc",Mar,17,2014,Maintenance & Repairs,Title III,$183.92
48,J.F. Drake State,10001501,"Davis, Joseph W.",Mar,19,2014,Tuition Revenue,General Operating Fund,$4.50
48,J.F. Drake State,10001502,Ellucian Company L.P.,Mar,19,2014,Other Contractual Services,General Operating Fund,"$50,215.00"
48,J.F. Drake State,10001502,Ellucian Company L.P.,Mar,19,2014,Other Contractual Services,General Operating Fund,"$1,674.00"
48,J.F. Drake State,10001503,FedEx,Mar,19,2014,Freight,General Operating Fund,$31.30
48,J.F. Drake State,10001503,FedEx,Mar,19,2014,Freight,General Operating Fund,$24.70
48,J.F. Drake State,10001504,Schrimsher Properties,Mar,19,2014,Rent - Facilities,General Operating Fund,"$6,715.00"
48,J.F. Drake State,10001505,ACSHRMA,Mar,20,2014,Memberships,General Operating Fund,$125.00
48,J.F. Drake State,10001506,Alabama A&M Foundation,Mar,20,2014,Advertising & Promotions,General Operating Fund,"$1,000.00"
48,J.F. Drake State,10001507,Alabama PBL,Mar,20,2014,In State-Registration,Auxiliary - Copier/Vend Commissions,$215.00
48,J.F. Drake State,10001507,Alabama PBL,Mar,20,2014,In State-Registration,Auxiliary - Copier Commissions,$215.00
48,J.F. Drake State,10001507,Alabama PBL,Mar,20,2014,In State-Registration,Auxiliary - Copier Commissions,$55.00
48,J.F. Drake State,10001507,Alabama PBL,Mar,20,2014,In State-Registration,Auxiliary - Copier/Vend Commissions,$55.00
48,J.F. Drake State,30001225,"Arrington, Cedric D.",Mar,20,2014,In State-Ovrnite Per diem,Title III,$150.00
48,J.F. Drake State,30001226,Career Development Conference,Mar,20,2014,In State-Registration,Title III,$150.00
48,J.F. Drake State,30001227,Crown Trophy,Mar,20,2014,Other Non-capital Costs,Spin Up,$85.20
48,J.F. Drake State,30001228,Domino's Pizza,Mar,20,2014,Other Non-capital Costs,Spin Up,$500.11
48,J.F. Drake State,10001508,ELSEVIER,Mar,20,2014,Purchases for Re-Sale,Auxiliary - Nursing Fees,$459.00
48,J.F. Drake State,10001508,ELSEVIER,Mar,20,2014,Purchases for Re-Sale,Auxiliary - Nursing Fees,$150.00
48,J.F. Drake State,30001229,"Eisner, James J.",Mar,20,2014,In State-Ovrnite Per diem,Title III,$150.00
48,J.F. Drake State,30001230,F.A. Davis Company,Mar,20,2014,Materials and Supplies,Allied Health,$106.09
48,J.F. Drake State,30001231,"Henry, Karl W.",Mar,20,2014,Out-of-State-Commercl Trans,DigiTec,$152.75
48,J.F. Drake State,30001231,"Henry, Karl W.",Mar,20,2014,Out-of-State-Subsist & Lodging,DigiTec,$149.00
48,J.F. Drake State,10001509,"Lanier, Ford, Shaver & Payne PC",Mar,20,2014,Legal Services,General Operating Fund,$546.00
48,J.F. Drake State,10001510,Marcoa Publishing Inc.,Mar,20,2014,Advertising & Promotions,General Operating Fund,$555.00
48,J.F. Drake State,30001232,"McLaughlin, Scotty",Mar,20,2014,In State-Ovrnite Per diem,Title III,$354.99
48,J.F. Drake State,30001233,"Meador, Maria Y.",Mar,20,2014,In State-Other Travel Exp,Trio-SSS Grant,$800.00
48,J.F. Drake State,10001511,Safety Kleen,Mar,20,2014,Other Contractual Services,General Operating Fund,$870.96
48,J.F. Drake State,30001234,Sam's Club/Walmart,Mar,20,2014,Other Non-capital Costs,Spin Up,$186.96
48,J.F. Drake State,10001512,Sheraton Birmingham Hotel,Mar,20,2014,In State-Other Travel Exp,Auxiliary - Copier Commissions,$474.74
48,J.F. Drake State,10001512,Sheraton Birmingham Hotel,Mar,20,2014,In State-Other Travel Exp,Auxiliary - Copier/Vend Commissions,$474.74
48,J.F. Drake State,10001514,"Thomas Electric, Inc.",Mar,20,2014,Maintenance & Repairs,General Operating Fund,"$1,360.10"
48,J.F. Drake State,10001513,"Thomas, Dawn G.",Mar,20,2014,In State-Mileage,Auxiliary - Copier/Vend Commissions,$134.40
48,J.F. Drake State,10001513,"Thomas, Dawn G.",Mar,20,2014,In State-Mileage,Auxiliary - Copier Commissions,$134.40
48,J.F. Drake State,30001235,"Treadway, Kristin A.",Mar,20,2014,In State-Ovrnite Per diem,Title III,$150.00
48,J.F. Drake State,30001236,"Walker, Anita G.",Mar,20,2014,In State-Mileage,Spin Up,$117.38
48,J.F. Drake State,10001515,ACT,Mar,24,2014,Materials and Supplies,General Operating Fund,$744.00
48,J.F. Drake State,10001516,Aramark Corporation,Mar,24,2014,Materials and Supplies,General Operating Fund,$637.20
48,J.F. Drake State,10001517,"Bowman Beauty & Barber Supply, Inc",Mar,24,2014,Purchases for Re-Sale,General Operating Fund,$659.67
48,J.F. Drake State,10001518,Katie Chance,Mar,24,2014,In State-Mileage,General Operating Fund,$33.15
48,J.F. Drake State,10001519,Minuteman Press,Mar,24,2014,"Printing, Reproduction & Binding",General Operating Fund,$162.00
48,J.F. Drake State,10001520,New Readers Press,Mar,24,2014,Materials and Supplies,Federal - Adult Ed,$516.84
48,J.F. Drake State,10001521,Sam's Club/Walmart,Mar,24,2014,Advertising & Promotions,NACPED,$138.20
48,J.F. Drake State,10001522,Sheraton Birmingham Hotel,Mar,24,2014,In State-Other Travel Exp,Auxiliary - Copier Commissions,$151.58
48,J.F. Drake State,10001522,Sheraton Birmingham Hotel,Mar,24,2014,In State-Other Travel Exp,Auxiliary - Copier/Vend Commissions,$151.58
48,J.F. Drake State,10001523,AT & T Business Service,Mar,25,2014,Communications,General Operating Fund,$40.05
48,J.F. Drake State,10001523,AT & T Business Service,Mar,25,2014,Communications,General Operating Fund,$159.22
48,J.F. Drake State,10001524,AT&T,Mar,25,2014,Communications,General Operating Fund,$153.52
48,J.F. Drake State,10001524,AT&T,Mar,25,2014,Communications,General Operating Fund,$107.21
48,J.F. Drake State,10001525,BB&T,Mar,25,2014,Investment Transaction Exp,General Operating Fund,$100.00
48,J.F. Drake State,10001526,Cooks Pest Control,Mar,25,2014,Other Contractual Services,General Operating Fund,$67.00
48,J.F. Drake State,10001526,Cooks Pest Control,Mar,25,2014,Other Contractual Services,General Operating Fund,$249.00
48,J.F. Drake State,10001528,Ellucian Company L.P.,Mar,25,2014,Other Contractual Services,General Operating Fund,"$10,143.00"
48,J.F. Drake State,10001527,Ellucian Company L.P.,Mar,25,2014,Other Contractual Services,General Operating Fund,"$58,777.24"
48,J.F. Drake State,10001529,"Lanier, Ford, Shaver & Payne PC",Mar,25,2014,Legal Services,General Operating Fund,$30.02
48,J.F. Drake State,10001529,"Lanier, Ford, Shaver & Payne PC",Mar,25,2014,Legal Services,General Operating Fund,$624.00
48,J.F. Drake State,10001532,"Mayers, Gary W.",Mar,25,2014,Deposit Liabilities,Student Deposits,$465.50
48,J.F. Drake State,10001533,"Smith, Lindsey P.",Mar,25,2014,Prior Yr Accounts Receivable,General Operating Fund,"$1,800.00"
48,J.F. Drake State,10001533,"Smith, Lindsey P.",Mar,25,2014,Legacy Student Accounts Receivable,General Operating Fund,"$1,800.00"
48,J.F. Drake State,10001530,WOW! Business,Mar,25,2014,Communications,General Operating Fund,$61.95
48,J.F. Drake State,10001534,ACT,Apr,1,2014,Materials and Supplies,General Operating Fund,$630.00
48,J.F. Drake State,10001535,Alabama Library Association,Apr,1,2014,Advertising & Promotions,General Operating Fund,$100.00
48,J.F. Drake State,10001536,"Dynamic Security, Inc.",Apr,1,2014,Other Contractual Services,General Operating Fund,"$4,082.40"
48,J.F. Drake State,30001237,ELSEVIER,Apr,1,2014,Subscriptions,Allied Health,"$1,121.00"
48,J.F. Drake State,10001537,"Gaymon, Denise C.",Apr,1,2014,In State-Other Travel Exp,Auxiliary - Copier/Vend Commissions,$360.00
48,J.F. Drake State,10001537,"Gaymon, Denise C.",Apr,1,2014,In State-Other Travel Exp,Auxiliary - Copier Commissions,$360.00
48,J.F. Drake State,10001538,Holiday Inn Express Cullman,Apr,1,2014,In State-Other Travel Exp,Auxiliary - Copier/Vend Commissions,$235.46
48,J.F. Drake State,10001538,Holiday Inn Express Cullman,Apr,1,2014,In State-Other Travel Exp,Auxiliary - Copier Commissions,$235.46
48,J.F. Drake State,30001238,Hurst Review Services,Apr,1,2014,Other Contractual Services,Allied Health,"$3,000.00"
48,J.F. Drake State,10001539,"Mobile Mini, Inc",Apr,1,2014,Other Contractual Services,General Operating Fund,$114.48
48,J.F. Drake State,10001540,"Office Depot, Inc",Apr,1,2014,Materials and Supplies,General Operating Fund,$48.72
48,J.F. Drake State,10001540,"Office Depot, Inc",Apr,1,2014,Materials and Supplies,General Operating Fund,$278.50
48,J.F. Drake State,30001239,"Opoku-Boateng, Akua K.",Apr,1,2014,In State-Mileage,Spin Up,$130.54
48,J.F. Drake State,30001240,"PODS Enterprises, Inc.",Apr,1,2014,Other Contractual Services,Allied Health,$159.00
48,J.F. Drake State,10001541,Sexton Welding Supply,Apr,1,2014,Other Contractual Services,Carl Perkins Career & Tech Ed Grant,$185.75
48,J.F. Drake State,10001541,Sexton Welding Supply,Apr,1,2014,Other Contractual Services,Carl Perkins Career & Tech Ed Grant,$984.60
48,J.F. Drake State,10001541,Sexton Welding Supply,Apr,1,2014,Other Contractual Services,Perkins Funds,$984.60
48,J.F. Drake State,10001541,Sexton Welding Supply,Apr,1,2014,Other Contractual Services,Perkins Funds,$185.75
48,J.F. Drake State,10001542,Strickland Companies,Apr,1,2014,Materials and Supplies,General Operating Fund,$356.00
48,J.F. Drake State,10001543,Tennessee Valley Printing Company,Apr,1,2014,Advertising & Promotions,General Operating Fund,$450.00
48,J.F. Drake State,30001241,University of New Mexico,Apr,1,2014,Subcontracts,DigiTec,"$1,723.78"
48,J.F. Drake State,30001241,University of New Mexico,Apr,1,2014,Subcontracts,DigiTec,"$2,988.75"
48,J.F. Drake State,30001242,AASFAA,Apr,2,2014,In State-Registration,Title III,$200.00
48,J.F. Drake State,10001563,AASFAA,Apr,2,2014,Memberships,General Operating Fund,$25.00
48,J.F. Drake State,10001564,"Alabama Card System, Inc",Apr,2,2014,Materials and Supplies,General Operating Fund,$491.05
48,J.F. Drake State,10001544,Alabama Child Support,Apr,2,2014,Misc Deductions Payable,Payroll Clearing Fund,"$1,130.00"
48,J.F. Drake State,10001581,Alabama Skills USA,Apr,2,2014,In State-Registration,Auxiliary - Copier Commissions,"$1,040.00"
48,J.F. Drake State,10001581,Alabama Skills USA,Apr,2,2014,In State-Registration,Auxiliary - Copier/Vend Commissions,"$1,040.00"
48,J.F. Drake State,10001545,Allstate Insurance,Apr,2,2014,Misc Deductions Payable,Payroll Clearing Fund,$66.13
48,J.F. Drake State,10001546,American Family Life,Apr,2,2014,Misc Deductions Payable,Payroll Clearing Fund,$133.18
48,J.F. Drake State,10001565,American Library Association,Apr,2,2014,Memberships,General Operating Fund,$300.00
48,J.F. Drake State,30001243,"Baker, Tameka D.",Apr,2,2014,Other Non-capital Costs,GA-AL LSAMP NSF HRD 1305041,$75.00
48,J.F. Drake State,30001243,"Baker, Tameka D.",Apr,2,2014,Scholarships,GA-AL LSAMP NSF HRD 1305041,$500.00
48,J.F. Drake State,10001566,Bubba's Catering,Apr,2,2014,Materials and Supplies,General Operating Fund,$490.00
48,J.F. Drake State,30001244,"Burden, Frank E.",Apr,2,2014,Scholarships,GA-AL LSAMP NSF HRD 1305041,$500.00
48,J.F. Drake State,30001244,"Burden, Frank E.",Apr,2,2014,Other Non-capital Costs,GA-AL LSAMP NSF HRD 1305041,$75.00
48,J.F. Drake State,10001567,"Burmax Company, INC",Apr,2,2014,Materials and Supplies,General Operating Fund,$105.40
48,J.F. Drake State,10001567,"Burmax Company, INC",Apr,2,2014,Materials and Supplies,General Operating Fund,$617.76
48,J.F. Drake State,30001245,Claitors Lawbooks & Publishing,Apr,2,2014,Books,Title III,$48.38
48,J.F. Drake State,30001245,Claitors Lawbooks & Publishing,Apr,2,2014,Books,Title III,$43.58
48,J.F. Drake State,10001547,College Counts 529 Plan,Apr,2,2014,Misc Deductions Payable,Payroll Clearing Fund,$225.00
48,J.F. Drake State,30001246,"Colon, Tomeka S.",Apr,2,2014,Scholarships,GA-AL LSAMP NSF HRD 1305041,$500.00
48,J.F. Drake State,10001548,Colonial Life Insurance,Apr,2,2014,Misc Deductions Payable,Payroll Clearing Fund,$39.65
48,J.F. Drake State,30001247,"Conditioned Air Solutions, LLC",Apr,2,2014,Maintenance & Repairs,Title III,$637.62
48,J.F. Drake State,30001247,"Conditioned Air Solutions, LLC",Apr,2,2014,Maintenance & Repairs,Title III,$240.70
48,J.F. Drake State,10001549,Drake State Foundation,Apr,2,2014,Misc Deductions Payable,Payroll Clearing Fund,$260.42
48,J.F. Drake State,10001582,"Dynamic Security, Inc.",Apr,2,2014,Other Contractual Services,General Operating Fund,"$4,058.10"
48,J.F. Drake State,10001580,ELSEVIER,Apr,2,2014,Subscriptions,Allied Health,"$1,124.25"
48,J.F. Drake State,10001550,Educators Benefit,Apr,2,2014,Misc Deductions Payable,Payroll Clearing Fund,"$1,233.34"
48,J.F. Drake State,10001568,Express Employment  Professionals,Apr,2,2014,In State-Registration,General Operating Fund,$25.00
48,J.F. Drake State,10001570,GT Software,Apr,2,2014,Computer Software-Non Cap,General Operating Fund,"$1,386.00"
48,J.F. Drake State,10001569,"Gaymon, Denise C.",Apr,2,2014,Materials and Supplies,General Operating Fund,$500.00
48,J.F. Drake State,30001248,HBCU Library Alliance,Apr,2,2014,Memberships,Title III,$500.00
48,J.F. Drake State,10001571,"Hereford, Miatta T.",Apr,2,2014,Other Non-capital Costs,General Operating Fund,$452.10
48,J.F. Drake State,10001572,Holiday Inn Express,Apr,2,2014,In State-Other Travel Exp,Auxiliary - Copier/Vend Commissions,$132.94
48,J.F. Drake State,10001572,Holiday Inn Express,Apr,2,2014,In State-Other Travel Exp,Auxiliary - Copier Commissions,$132.94
48,J.F. Drake State,10001583,Huntsville Beautification Board,Apr,2,2014,Advertising & Promotions,General Operating Fund,$25.00
48,J.F. Drake State,30001249,"Johnson, Nina M.",Apr,2,2014,Scholarships,GA-AL LSAMP NSF HRD 1305041,$500.00
48,J.F. Drake State,30001249,"Johnson, Nina M.",Apr,2,2014,Other Non-capital Costs,GA-AL LSAMP NSF HRD 1305041,$75.00
48,J.F. Drake State,10001584,Kenco Toyota Lift,Apr,2,2014,Maintenance & Repairs,General Operating Fund,$499.46
48,J.F. Drake State,10001573,L.M. Berry and Company LLC,Apr,2,2014,Advertising & Promotions,General Operating Fund,"$2,154.00"
48,J.F. Drake State,10001574,McGraw Hill School Education Holdin,Apr,2,2014,Materials and Supplies,Federal - Adult Ed,"$1,359.97"
48,J.F. Drake State,10001574,McGraw Hill School Education Holdin,Apr,2,2014,Materials and Supplies,Federal - Adult Ed,$909.00
48,J.F. Drake State,30001250,McMaster-Carr Supply,Apr,2,2014,Materials and Supplies,Spin Up,"$1,364.39"
48,J.F. Drake State,10001551,Metropolitan Life Insurance Company,Apr,2,2014,Misc Deductions Payable,Payroll Clearing Fund,$100.00
48,J.F. Drake State,10001552,NAECU,Apr,2,2014,Misc Deductions Payable,Payroll Clearing Fund,"$3,127.00"
48,J.F. Drake State,10001553,New York Life Insurance,Apr,2,2014,Misc Deductions Payable,Payroll Clearing Fund,$365.25
48,J.F. Drake State,10001575,Northern Lights Display LLC,Apr,2,2014,Materials and Supplies,General Operating Fund,"$3,321.50"
48,J.F. Drake State,10001554,PEEHIP,Apr,2,2014,PEEHIP Payable,Payroll Clearing Fund,"$76,662.22"
48,J.F. Drake State,10001555,Philip A Geddes,Apr,2,2014,Misc Deductions Payable,Payroll Clearing Fund,$430.00
48,J.F. Drake State,10001576,"Pope, Gwendolyn M.",Apr,2,2014,In State-Other Travel Exp,Auxiliary - Copier/Vend Commissions,$75.00
48,J.F. Drake State,10001576,"Pope, Gwendolyn M.",Apr,2,2014,In State-Other Travel Exp,Auxiliary - Copier Commissions,$300.00
48,J.F. Drake State,10001576,"Pope, Gwendolyn M.",Apr,2,2014,In State-Other Travel Exp,Auxiliary - Copier Commissions,$75.00
48,J.F. Drake State,10001576,"Pope, Gwendolyn M.",Apr,2,2014,In State-Other Travel Exp,Auxiliary - Copier/Vend Commissions,$300.00
48,J.F. Drake State,10001556,RSA-1 Deferred Compensation,Apr,2,2014,Misc Deductions Payable,Payroll Clearing Fund,"$1,456.00"
48,J.F. Drake State,10001557,Security Benefit Life Insurance Com,Apr,2,2014,Misc Deductions Payable,Payroll Clearing Fund,$425.00
48,J.F. Drake State,10001577,Sexton Welding Supply,Apr,2,2014,Other Contractual Services,Perkins Funds,"$1,076.80"
48,J.F. Drake State,10001577,Sexton Welding Supply,Apr,2,2014,Other Contractual Services,Perkins Funds,$739.50
48,J.F. Drake State,10001577,Sexton Welding Supply,Apr,2,2014,Other Contractual Services,Perkins Funds,$634.50
48,J.F. Drake State,10001577,Sexton Welding Supply,Apr,2,2014,Other Contractual Services,Carl Perkins Career & Tech Ed Grant,$40.50
48,J.F. Drake State,10001577,Sexton Welding Supply,Apr,2,2014,Other Contractual Services,Carl Perkins Career & Tech Ed Grant,$634.50
48,J.F. Drake State,10001577,Sexton Welding Supply,Apr,2,2014,Other Contractual Services,Perkins Funds,$40.50
48,J.F. Drake State,10001577,Sexton Welding Supply,Apr,2,2014,Other Contractual Services,Carl Perkins Career & Tech Ed Grant,$739.50
48,J.F. Drake State,10001577,Sexton Welding Supply,Apr,2,2014,Other Contractual Services,Carl Perkins Career & Tech Ed Grant,"$1,076.80"
48,J.F. Drake State,10001585,Sheraton Birmingham Hotel,Apr,2,2014,In State-Other Travel Exp,Auxiliary - Copier/Vend Commissions,"$2,425.28"
48,J.F. Drake State,10001585,Sheraton Birmingham Hotel,Apr,2,2014,In State-Other Travel Exp,Auxiliary - Copier Commissions,"$2,425.28"
48,J.F. Drake State,30001251,"Shotts, Lesley N.",Apr,2,2014,Materials and Supplies,Spin Up,$36.85
48,J.F. Drake State,10001558,Teachers Retirement System,Apr,2,2014,Alabama Teachers Retirement Payable,Payroll Clearing Fund,"$77,017.94"
48,J.F. Drake State,10001578,The Daily Sentinel,Apr,2,2014,"Printing, Reproduction & Binding",General Operating Fund,"$2,100.00"
48,J.F. Drake State,10001559,Truescreen Inc.,Apr,2,2014,Background Checks,Payroll Clearing Fund,$26.00
48,J.F. Drake State,10001560,U.S. Department of Education,Apr,2,2014,Misc Deductions Payable,Payroll Clearing Fund,$267.73
48,J.F. Drake State,10001561,"United Way of Madison County, Inc.",Apr,2,2014,Misc Deductions Payable,Payroll Clearing Fund,$385.00
48,J.F. Drake State,10001562,Variable Annuity Life Insurance,Apr,2,2014,Misc Deductions Payable,Payroll Clearing Fund,$757.50
48,J.F. Drake State,10001579,"W.W. Grainger, Inc",Apr,2,2014,Materials and Supplies,General Operating Fund,$757.84
48,J.F. Drake State,10001586,Womens Business of North Alabama,Apr,2,2014,Advertising & Promotions,General Operating Fund,$250.00
48,J.F. Drake State,10001587,Alabama Congress of Parents and Tea,Apr,7,2014,Advertising & Promotions,General Operating Fund,$150.00
48,J.F. Drake State,10001601,"Banks Industries, Inc",Apr,7,2014,Materials and Supplies,General Operating Fund,$156.88
48,J.F. Drake State,10001588,Behind the Bash Events & Entertainm,Apr,7,2014,Reception,General Operating Fund,$730.00
48,J.F. Drake State,10001589,Berney Office Solutions,Apr,7,2014,"Technology $25,000 or Less",General Operating Fund,"$6,092.00"
48,J.F. Drake State,30001252,"Bulluck, Bruce A.",Apr,7,2014,Out-of-State-Subsist & Lodging,Title III,$82.03
48,J.F. Drake State,10001602,C.C. Dickson Co.,Apr,7,2014,Materials and Supplies,General Operating Fund,$586.60
48,J.F. Drake State,10001591,CDW-G Government,Apr,7,2014,Non-capitalized Equipment,Federal Performance Measu- Adult Ed,"$2,456.32"
48,J.F. Drake State,10001590,"Castle Branch, Inc.",Apr,7,2014,Purchases for Re-Sale,Auxiliary - Nursing Fees,"$1,035.00"
48,J.F. Drake State,10001592,"Dynamic Security, Inc.",Apr,7,2014,Other Contractual Services,General Operating Fund,"$4,082.41"
48,J.F. Drake State,10001593,ELSEVIER,Apr,7,2014,Purchases for Re-Sale,Auxiliary - Nursing Fees,$23.00
48,J.F. Drake State,10001593,ELSEVIER,Apr,7,2014,Purchases for Re-Sale,Auxiliary - Nursing Fees,"$2,482.48"
48,J.F. Drake State,30001253,Graybar,Apr,7,2014,Maintenance & Repairs,Title III,$202.59
48,J.F. Drake State,30001254,"Green, Timothy R.",Apr,7,2014,In State-Registration,Title III,$150.00
48,J.F. Drake State,30001254,"Green, Timothy R.",Apr,7,2014,In State-Mileage,Title III,$174.68
48,J.F. Drake State,30001254,"Green, Timothy R.",Apr,7,2014,In State-Ovrnite Per diem,Title III,$225.00
48,J.F. Drake State,10001594,"Holcomb, Hugh",Apr,7,2014,Other Non-capital Costs,General Operating Fund,$39.00
48,J.F. Drake State,10001595,Labor Ready,Apr,7,2014,Other Contractual Services,General Operating Fund,$842.94
48,J.F. Drake State,10001595,Labor Ready,Apr,7,2014,Other Contractual Services,General Operating Fund,$318.96
48,J.F. Drake State,30001255,Lyrasis,Apr,7,2014,Memberships,Title III,$705.00
48,J.F. Drake State,30001256,National Association of HBCU Title ,Apr,7,2014,Out-of-State-Registration,Title III,$400.00
48,J.F. Drake State,10001596,"Oak Hall Industries, LP",Apr,7,2014,Graduation Expense,General Operating Fund,"$2,405.95"
48,J.F. Drake State,10001597,"Office Depot, Inc",Apr,7,2014,Materials and Supplies,Federal - Adult Ed,$282.91
48,J.F. Drake State,10001597,"Office Depot, Inc",Apr,7,2014,Materials and Supplies,Federal - Adult Ed,$14.99
48,J.F. Drake State,10001597,"Office Depot, Inc",Apr,7,2014,Materials and Supplies,General Operating Fund,$19.50
48,J.F. Drake State,10001597,"Office Depot, Inc",Apr,7,2014,Materials and Supplies,Federal - Adult Ed,$19.98
48,J.F. Drake State,10001598,Sexton Welding Supply,Apr,7,2014,Other Contractual Services,Perkins Funds,$789.50
48,J.F. Drake State,10001598,Sexton Welding Supply,Apr,7,2014,Materials and Supplies,General Operating Fund,"$1,668.80"
48,J.F. Drake State,10001598,Sexton Welding Supply,Apr,7,2014,Other Contractual Services,Carl Perkins Career & Tech Ed Grant,$789.50
48,J.F. Drake State,30001257,Springer Publishing Company,Apr,7,2014,Materials and Supplies,Allied Health,$53.00
48,J.F. Drake State,30001258,"Stephenson, Jon D.",Apr,7,2014,In State-Mileage,Spin Up,$328.59
48,J.F. Drake State,10001599,Wallace State Community College,Apr,7,2014,Other Contractual Services,General Operating Fund,"$2,000.00"
48,J.F. Drake State,10001600,YP,Apr,7,2014,Advertising & Promotions,General Operating Fund,"$2,154.00"
48,J.F. Drake State,10001603,AT & T Business Service,Apr,9,2014,Communications,General Operating Fund,$792.15
48,J.F. Drake State,10001603,AT & T Business Service,Apr,9,2014,Communications,General Operating Fund,$239.29
48,J.F. Drake State,10001604,AT&T,Apr,9,2014,Communications,General Operating Fund,$446.58
48,J.F. Drake State,10001608,AT&T,Apr,9,2014,Communications,General Operating Fund,"$1,417.93"
48,J.F. Drake State,10001607,Alabama Department of Labor,Apr,9,2014,Unemployment Compensation,General Operating Fund,"$3,390.91"
48,J.F. Drake State,10001609,Berney Office Solutions,Apr,9,2014,Other Contractual Services,General Operating Fund,$431.24
48,J.F. Drake State,10001609,Berney Office Solutions,Apr,9,2014,Other Contractual Services,General Operating Fund,$59.81
48,J.F. Drake State,10001610,Chevron and Texaco,Apr,9,2014,In State-Other Travel Exp,General Operating Fund,$38.80
48,J.F. Drake State,10001610,Chevron and Texaco,Apr,9,2014,Gasoline & Oil-Motor Vehicle,General Operating Fund,$42.28
48,J.F. Drake State,10001610,Chevron and Texaco,Apr,9,2014,In State-Other Travel Exp,General Operating Fund,$36.81
48,J.F. Drake State,10001610,Chevron and Texaco,Apr,9,2014,In State-Other Travel Exp,General Operating Fund,$21.05
48,J.F. Drake State,10001610,Chevron and Texaco,Apr,9,2014,Gasoline & Oil-Motor Vehicle,General Operating Fund,$39.10
48,J.F. Drake State,10001610,Chevron and Texaco,Apr,9,2014,In State-Other Travel Exp,General Operating Fund,$26.98
48,J.F. Drake State,10001610,Chevron and Texaco,Apr,9,2014,In State-Other Travel Exp,General Operating Fund,$30.28
48,J.F. Drake State,10001610,Chevron and Texaco,Apr,9,2014,In State-Other Travel Exp,General Operating Fund,$80.16
48,J.F. Drake State,10001610,Chevron and Texaco,Apr,9,2014,In State-Other Travel Exp,General Operating Fund,$26.38
48,J.F. Drake State,10001617,Cobbs Allen,Apr,9,2014,Insurance & Bonding,General Operating Fund,"$5,086.00"
48,J.F. Drake State,10001611,Comcast Cable,Apr,9,2014,Communications,General Operating Fund,$180.43
48,J.F. Drake State,10001605,Earthlink,Apr,9,2014,Communications,General Operating Fund,"$5,212.42"
48,J.F. Drake State,10001612,FedEx,Apr,9,2014,Freight,General Operating Fund,$30.53
48,J.F. Drake State,10001612,FedEx,Apr,9,2014,Freight,General Operating Fund,$35.81
48,J.F. Drake State,10001613,Huntsville Utilities,Apr,9,2014,Water & Sewer,General Operating Fund,$8.15
48,J.F. Drake State,10001613,Huntsville Utilities,Apr,9,2014,Water & Sewer,General Operating Fund,"$2,252.96"
48,J.F. Drake State,10001613,Huntsville Utilities,Apr,9,2014,Electricity,General Operating Fund,"$20,717.73"
48,J.F. Drake State,10001613,Huntsville Utilities,Apr,9,2014,Electricity,General Operating Fund,$774.69
48,J.F. Drake State,10001613,Huntsville Utilities,Apr,9,2014,Electricity,General Operating Fund,$217.04
48,J.F. Drake State,10001606,Schrimsher Properties,Apr,9,2014,Rent - Facilities,General Operating Fund,"$6,715.00"
48,J.F. Drake State,10001614,Verizon Wireless,Apr,9,2014,Communications,General Operating Fund,"$1,615.89"
48,J.F. Drake State,30001259,WEX Bank,Apr,9,2014,In State-Other Travel Exp,Title III,$48.83
48,J.F. Drake State,10001616,WEX Bank,Apr,9,2014,Gasoline & Oil-Motor Vehicle,General Operating Fund,$40.31
48,J.F. Drake State,30001259,WEX Bank,Apr,9,2014,In State-Other Travel Exp,Title III,$21.81
48,J.F. Drake State,30001259,WEX Bank,Apr,9,2014,In State-Other Travel Exp,Title III,$34.21
48,J.F. Drake State,30001259,WEX Bank,Apr,9,2014,In State-Mileage,Allied Health,$45.71
48,J.F. Drake State,30001259,WEX Bank,Apr,9,2014,In State-Mileage,Title III,$27.93
48,J.F. Drake State,30001259,WEX Bank,Apr,9,2014,In State-Other Travel Exp,Title III,$37.00
48,J.F. Drake State,10001616,WEX Bank,Apr,9,2014,Gasoline & Oil-Motor Vehicle,General Operating Fund,$23.13
48,J.F. Drake State,10001616,WEX Bank,Apr,9,2014,Gasoline & Oil-Motor Vehicle,General Operating Fund,$38.38
48,J.F. Drake State,10001616,WEX Bank,Apr,9,2014,Gasoline & Oil-Motor Vehicle,General Operating Fund,$99.91
48,J.F. Drake State,10001616,WEX Bank,Apr,9,2014,Gasoline & Oil-Motor Vehicle,General Operating Fund,$33.33
48,J.F. Drake State,30001259,WEX Bank,Apr,9,2014,In State-Mileage,Allied Health,$26.62
48,J.F. Drake State,10001616,WEX Bank,Apr,9,2014,Gasoline & Oil-Motor Vehicle,General Operating Fund,$95.96
48,J.F. Drake State,10001616,WEX Bank,Apr,9,2014,Gasoline & Oil-Motor Vehicle,General Operating Fund,$20.21
48,J.F. Drake State,10001616,WEX Bank,Apr,9,2014,In State-Other Travel Exp,General Operating Fund,$51.57
48,J.F. Drake State,30001259,WEX Bank,Apr,9,2014,In State-Other Travel Exp,Allied Health,$23.24
48,J.F. Drake State,10001615,Waste Management,Apr,9,2014,Other Contractual Services,General Operating Fund,$798.13
48,J.F. Drake State,10001615,Waste Management,Apr,9,2014,Other Contractual Services,General Operating Fund,$936.78
48,J.F. Drake State,30001260,ACCSFMA,Apr,16,2014,In State-Registration,Title III,$150.00
48,J.F. Drake State,10001618,Alabama Lawnmaster Inc,Apr,16,2014,Other Contractual Services,General Operating Fund,$120.00
48,J.F. Drake State,10001618,Alabama Lawnmaster Inc,Apr,16,2014,Other Contractual Services,General Operating Fund,"$3,045.00"
48,J.F. Drake State,10001619,Alliant Data Systems,Apr,16,2014,Other Contractual Services,General Operating Fund,"$16,405.25"
48,J.F. Drake State,10001620,Auto Chlor,Apr,16,2014,Materials and Supplies,General Operating Fund,$125.70
48,J.F. Drake State,10001621,Chamber of Commerce of Huntsville/M,Apr,16,2014,Advertising & Promotions,General Operating Fund,$900.00
48,J.F. Drake State,10001622,"Chambers Bottling Company, LLC",Apr,16,2014,Materials and Supplies,General Operating Fund,$359.25
48,J.F. Drake State,10001623,Crave Heat,Apr,16,2014,Materials and Supplies,General Operating Fund,$324.99
48,J.F. Drake State,10001624,"Dynamic Security, Inc.",Apr,16,2014,Other Contractual Services,General Operating Fund,"$4,082.40"
48,J.F. Drake State,30001261,EBSCO Subscriptions Services,Apr,16,2014,Subscriptions,Title III,"$32,556.04"
48,J.F. Drake State,10001625,"Freeman, David E.",Apr,16,2014,Materials and Supplies,General Operating Fund,$30.00
48,J.F. Drake State,10001626,Holiday Inn Express Cullman,Apr,16,2014,In State-Other Travel Exp,Auxiliary - Copier/Vend Commissions,$22.68
48,J.F. Drake State,10001626,Holiday Inn Express Cullman,Apr,16,2014,In State-Other Travel Exp,Auxiliary - Copier Commissions,$22.68
48,J.F. Drake State,10001627,Huntsville Times,Apr,16,2014,Advertising & Promotions,General Operating Fund,$272.65
48,J.F. Drake State,10001628,"Koorsen Security Technology, Inc",Apr,16,2014,Other Contractual Services,General Operating Fund,$545.00
48,J.F. Drake State,30001262,"Office Depot, Inc",Apr,16,2014,Materials and Supplies,Title III,$15.90
48,J.F. Drake State,30001262,"Office Depot, Inc",Apr,16,2014,Materials and Supplies,Title III,$435.16
48,J.F. Drake State,30001262,"Office Depot, Inc",Apr,16,2014,Materials and Supplies,Title III,$41.17
48,J.F. Drake State,30001262,"Office Depot, Inc",Apr,16,2014,Materials and Supplies,Title III,$491.99
48,J.F. Drake State,30001262,"Office Depot, Inc",Apr,16,2014,Materials and Supplies,Title III,$229.00
48,J.F. Drake State,10001629,"Office Depot, Inc",Apr,16,2014,Materials and Supplies,General Operating Fund,$13.99
48,J.F. Drake State,10001629,"Office Depot, Inc",Apr,16,2014,Materials and Supplies,General Operating Fund,$581.78
48,J.F. Drake State,30001262,"Office Depot, Inc",Apr,16,2014,Materials and Supplies,Title III,$47.04
48,J.F. Drake State,30001262,"Office Depot, Inc",Apr,16,2014,Materials and Supplies,Title III,$51.27
48,J.F. Drake State,10001629,"Office Depot, Inc",Apr,16,2014,Materials and Supplies,General Operating Fund,$494.99
48,J.F. Drake State,10001630,"Owens, Valarie L.",Apr,16,2014,Materials and Supplies,General Operating Fund,$200.00
48,J.F. Drake State,10001631,"Park Supply Co., Inc.",Apr,16,2014,Materials and Supplies,General Operating Fund,$71.46
48,J.F. Drake State,30001263,Pocket Nurse,Apr,16,2014,Materials and Supplies,Allied Health,$17.92
48,J.F. Drake State,30001263,Pocket Nurse,Apr,16,2014,Materials and Supplies,Allied Health,"$1,214.54"
48,J.F. Drake State,30001264,"ProQuest, LLC",Apr,16,2014,Subscriptions,Title III,"$4,785.00"
48,J.F. Drake State,10001632,Sally Beauty Supply #3177,Apr,16,2014,Purchases for Re-Sale,General Operating Fund,$877.40
48,J.F. Drake State,10001633,Schindler Elevator Corporation,Apr,16,2014,Other Contractual Services,General Operating Fund,"$1,136.22"
48,J.F. Drake State,10001634,"The Solutions Team, Inc.",Apr,16,2014,Computer Software-Non Cap,General Operating Fund,$200.00
48,J.F. Drake State,30001265,"Turley, Gilbert T.",Apr,16,2014,In State-Mileage,Title III,$69.32
48,J.F. Drake State,10001642,AT & T Business Service,Apr,17,2014,Communications,General Operating Fund,$399.01
48,J.F. Drake State,10001635,AT & T Business Service,Apr,17,2014,Communications,General Operating Fund,$83.88
48,J.F. Drake State,10001635,AT & T Business Service,Apr,17,2014,Communications,General Operating Fund,$399.01
48,J.F. Drake State,10001636,AT&T,Apr,17,2014,Communications,General Operating Fund,$83.88
48,J.F. Drake State,10001636,AT&T,Apr,17,2014,Communications,General Operating Fund,$3.38
48,J.F. Drake State,10001636,AT&T,Apr,17,2014,Communications,General Operating Fund,$199.15
48,J.F. Drake State,10001643,AT&T,Apr,17,2014,Communications,General Operating Fund,$83.88
48,J.F. Drake State,10001637,Berney Office Solutions,Apr,17,2014,Other Contractual Services,General Operating Fund,"$1,718.70"
48,J.F. Drake State,10001637,Berney Office Solutions,Apr,17,2014,Other Contractual Services,General Operating Fund,"$1,155.20"
48,J.F. Drake State,10001638,Ellucian Company L.P.,Apr,17,2014,Construction in Progress,Renewal and Repacement Funds,"$41,021.05"
48,J.F. Drake State,10001644,Ellucian Company L.P.,Apr,17,2014,Other Contractual Services,General Operating Fund,"$9,491.00"
48,J.F. Drake State,10001639,Huntsville Utilities,Apr,17,2014,Water & Sewer,General Operating Fund,$39.81
48,J.F. Drake State,10001639,Huntsville Utilities,Apr,17,2014,Water & Sewer,General Operating Fund,$387.70
48,J.F. Drake State,10001640,"Lanier, Ford, Shaver & Payne PC",Apr,17,2014,Legal Services,General Operating Fund,"$3,079.00"
48,J.F. Drake State,10001641,Loomis,Apr,17,2014,Other Contractual Services,General Operating Fund,$145.54
48,J.F. Drake State,10001645,ACT,Apr,22,2014,Materials and Supplies,General Operating Fund,$282.00
48,J.F. Drake State,30001266,Alabama Library Association,Apr,22,2014,In State-Registration,Title III,$125.00
48,J.F. Drake State,30001266,Alabama Library Association,Apr,22,2014,In State-Registration,Title III,$90.00
48,J.F. Drake State,10001646,"Banks Industries, Inc",Apr,22,2014,Materials and Supplies,General Operating Fund,"$1,058.64"
48,J.F. Drake State,10001646,"Banks Industries, Inc",Apr,22,2014,Materials and Supplies,General Operating Fund,"$2,501.03"
48,J.F. Drake State,10001646,"Banks Industries, Inc",Apr,22,2014,Materials and Supplies,General Operating Fund,$173.18
48,J.F. Drake State,10001646,"Banks Industries, Inc",Apr,22,2014,Materials and Supplies,General Operating Fund,$193.80
48,J.F. Drake State,10001647,Chase,Apr,22,2014,Credit Card Service Charges,General Operating Fund,$39.00
48,J.F. Drake State,10001647,Chase,Apr,22,2014,Maintenance & Repairs,General Operating Fund,$179.99
48,J.F. Drake State,10001647,Chase,Apr,22,2014,Credit Card Service Charges,General Operating Fund,$21.82
48,J.F. Drake State,10001647,Chase,Apr,22,2014,Other Non-capital Costs,General Operating Fund,$514.48
48,J.F. Drake State,10001647,Chase,Apr,22,2014,Materials and Supplies,General Operating Fund,$446.96
48,J.F. Drake State,10001647,Chase,Apr,22,2014,Out-of-State-Registration,General Operating Fund,$125.00
48,J.F. Drake State,30001267,Chase,Apr,22,2014,In State-Other Travel Exp,Title III,$106.28
48,J.F. Drake State,10001647,Chase,Apr,22,2014,Materials and Supplies,General Operating Fund,$106.00
48,J.F. Drake State,30001267,Chase,Apr,22,2014,Materials and Supplies,Spin Up,"$1,842.68"
48,J.F. Drake State,10001648,Chick-fil-A,Apr,22,2014,Materials and Supplies,General Operating Fund,$142.50
48,J.F. Drake State,10001649,"Clementine's Catering, Inc",Apr,22,2014,Materials and Supplies,General Operating Fund,$290.00
48,J.F. Drake State,10001650,"Dynamic Security, Inc.",Apr,22,2014,Other Contractual Services,General Operating Fund,"$4,082.40"
48,J.F. Drake State,30001268,EBSCO Information Services,Apr,22,2014,Materials and Supplies,Allied Health,"$7,867.00"
48,J.F. Drake State,30001268,EBSCO Information Services,Apr,22,2014,Subscriptions,Title III,"$8,048.00"
48,J.F. Drake State,10001651,ELSEVIER,Apr,22,2014,Purchases for Re-Sale,Auxiliary - Nursing Fees,$183.00
48,J.F. Drake State,10001652,"Hinckley, Fred",Apr,22,2014,Other Non-capital Costs,General Operating Fund,$39.00
48,J.F. Drake State,30001269,JF Drake State Technical College,Apr,22,2014,Professional Development,Title III,$650.00
48,J.F. Drake State,10001653,"King, Lindsay",Apr,22,2014,Deposit Liabilities,Student Deposits,$55.00
48,J.F. Drake State,10001654,Minuteman Press,Apr,22,2014,Other Contractual Services,General Operating Fund,$226.08
48,J.F. Drake State,10001654,Minuteman Press,Apr,22,2014,Other Contractual Services,General Operating Fund,$282.60
48,J.F. Drake State,10001655,"Oak Hall Industries, LP",Apr,22,2014,Graduation Expense,General Operating Fund,$42.85
48,J.F. Drake State,10001655,"Oak Hall Industries, LP",Apr,22,2014,Graduation Expense,General Operating Fund,"$2,030.40"
48,J.F. Drake State,10001656,"Office Depot, Inc",Apr,22,2014,Materials and Supplies,General Operating Fund,$269.49
48,J.F. Drake State,10001657,"Reynolds, Hester L.",Apr,22,2014,Prior Yr Accounts Receivable,General Operating Fund,$149.00
48,J.F. Drake State,10001657,"Reynolds, Hester L.",Apr,22,2014,Legacy Student Accounts Receivable,General Operating Fund,$149.00
48,J.F. Drake State,30001270,SACSCOC,Apr,22,2014,Out-of-State-Registration,Title III,"$5,250.00"
48,J.F. Drake State,30001271,"Scrip-Safe Security Products, Inc.",Apr,22,2014,Other Contractual Services,Title III,$103.00
48,J.F. Drake State,10001658,The All Alabama Academic Team Found,Apr,22,2014,In State-Other Travel Exp,General Operating Fund,"$1,800.00"
48,J.F. Drake State,10001659,"Uline, Inc.",Apr,22,2014,Materials and Supplies,General Operating Fund,$167.39
48,J.F. Drake State,10001660,Von Braun Center,Apr,22,2014,Graduation Expense,General Operating Fund,"$2,910.00"
48,J.F. Drake State,30001272,ALAIR,Apr,30,2014,In State-Registration,Title III,$105.00
48,J.F. Drake State,10001661,Alabama Constitution Village Founda,Apr,30,2014,Advertising & Promotions,General Operating Fund,"$1,500.00"
48,J.F. Drake State,10001662,"Barnett, Nicole C.",Apr,30,2014,In State-Ovrnite Per diem,Auxiliary - Copier Commissions,$150.00
48,J.F. Drake State,10001662,"Barnett, Nicole C.",Apr,30,2014,In State-Ovrnite Per diem,Auxiliary - Copier/Vend Commissions,$150.00
48,J.F. Drake State,30001273,"Barnett, Nicole C.",Apr,30,2014,Out-of-State-Subsist & Lodging,Title III,$165.41
48,J.F. Drake State,30001273,"Barnett, Nicole C.",Apr,30,2014,Out-of-State-Other Travel Expenses,Title III,$47.00
48,J.F. Drake State,30001274,CDW-G Government,Apr,30,2014,Non-capitalized Equipment,Title III,$56.84
48,J.F. Drake State,30001274,CDW-G Government,Apr,30,2014,Non-capitalized Equipment,Title III,"$1,883.85"
48,J.F. Drake State,10001663,Department of Finance,Apr,30,2014,Communications,General Operating Fund,$45.78
48,J.F. Drake State,10001664,"Dynamic Security, Inc.",Apr,30,2014,Other Contractual Services,General Operating Fund,"$4,082.40"
48,J.F. Drake State,10001665,ELSEVIER,Apr,30,2014,Purchases for Re-Sale,Auxiliary - Nursing Fees,"$2,166.75"
48,J.F. Drake State,10001666,ELSEVIER,Apr,30,2014,Purchases for Re-Sale,General Operating Fund,$625.33
48,J.F. Drake State,10001666,ELSEVIER,Apr,30,2014,Purchases for Re-Sale,General Operating Fund,$431.60
48,J.F. Drake State,10001681,Earthlink,Apr,30,2014,Communications,General Operating Fund,"$5,864.02"
48,J.F. Drake State,10001682,Ellucian Company L.P.,Apr,30,2014,Construction in Progress,Renewal and Repacement Funds,"$10,825.00"
48,J.F. Drake State,10001667,Essential Education,Apr,30,2014,Testing Expense,State - Adult Ed- GED Vouchers,$750.00
48,J.F. Drake State,10001683,FedEx,Apr,30,2014,Freight,General Operating Fund,$26.90
48,J.F. Drake State,10001683,FedEx,Apr,30,2014,Freight,General Operating Fund,$102.48
48,J.F. Drake State,30001275,"HBCU-LEEA, Inc",Apr,30,2014,Out-of-State-Registration,Title III,$225.00
48,J.F. Drake State,10001669,"Holmes, Khalid",Apr,30,2014,Out-of-State-Other Travel Expenses,General Operating Fund,$300.00
48,J.F. Drake State,10001669,"Holmes, Khalid",Apr,30,2014,Deposit Liabilities,Honor Society,"$1,455.94"
48,J.F. Drake State,10001684,Huntsville Utilities,Apr,30,2014,Electricity,General Operating Fund,$631.00
48,J.F. Drake State,10001684,Huntsville Utilities,Apr,30,2014,Electricity,General Operating Fund,$182.96
48,J.F. Drake State,10001684,Huntsville Utilities,Apr,30,2014,Electricity,General Operating Fund,"$2,090.53"
48,J.F. Drake State,10001684,Huntsville Utilities,Apr,30,2014,Water & Sewer,General Operating Fund,"$17,334.80"
48,J.F. Drake State,10001670,JF Drake State Technical College,Apr,30,2014,Materials and Supplies,General Operating Fund,$50.00
48,J.F. Drake State,10001670,JF Drake State Technical College,Apr,30,2014,Materials and Supplies,General Operating Fund,$125.32
48,J.F. Drake State,10001670,JF Drake State Technical College,Apr,30,2014,Materials and Supplies,Auxiliary - Copier/Vend Commissions,$25.00
48,J.F. Drake State,10001670,JF Drake State Technical College,Apr,30,2014,Reception,General Operating Fund,$25.00
48,J.F. Drake State,10001670,JF Drake State Technical College,Apr,30,2014,Materials and Supplies,Auxiliary - Copier Commissions,$25.00
48,J.F. Drake State,10001670,JF Drake State Technical College,Apr,30,2014,Materials and Supplies,General Operating Fund,$44.00
48,J.F. Drake State,10001671,KeyPlus+ School Products,Apr,30,2014,Materials and Supplies,General Operating Fund,$11.88
48,J.F. Drake State,10001672,League for Innovation,Apr,30,2014,Memberships,General Operating Fund,"$2,825.00"
48,J.F. Drake State,10001673,McGraw Hill School Education Holdin,Apr,30,2014,Materials and Supplies,Federal - Adult Ed,$445.48
48,J.F. Drake State,10001673,McGraw Hill School Education Holdin,Apr,30,2014,Materials and Supplies,Federal - Adult Ed,$727.68
48,J.F. Drake State,10001674,Minuteman Press,Apr,30,2014,Other Contractual Services,General Operating Fund,$34.20
48,J.F. Drake State,10001674,Minuteman Press,Apr,30,2014,Other Contractual Services,General Operating Fund,$218.31
48,J.F. Drake State,10001675,"Mobile Mini, Inc",Apr,30,2014,Other Contractual Services,General Operating Fund,$123.04
48,J.F. Drake State,10001676,"Morris Greenhouses, Inc",Apr,30,2014,Graduation Expense,General Operating Fund,$225.00
48,J.F. Drake State,10001677,Mullins Special Occasions,Apr,30,2014,Materials and Supplies,General Operating Fund,$339.00
48,J.F. Drake State,10001677,Mullins Special Occasions,Apr,30,2014,Materials and Supplies,General Operating Fund,$345.00
48,J.F. Drake State,10001677,Mullins Special Occasions,Apr,30,2014,Materials and Supplies,General Operating Fund,$227.50
48,J.F. Drake State,10001678,"Office Depot, Inc",Apr,30,2014,Materials and Supplies,General Operating Fund,$115.83
48,J.F. Drake State,10001678,"Office Depot, Inc",Apr,30,2014,Materials and Supplies,General Operating Fund,$262.44
48,J.F. Drake State,30001277,"PODS Enterprises, Inc.",Apr,30,2014,Materials and Supplies,Allied Health,$159.00
48,J.F. Drake State,30001276,Pocket Nurse,Apr,30,2014,Materials and Supplies,Allied Health,$134.75
48,J.F. Drake State,10001679,Safelite Auto Glass,Apr,30,2014,Maintenance & Repairs,General Operating Fund,$230.89
48,J.F. Drake State,30001278,Staples Business Advantage,Apr,30,2014,Materials and Supplies,APEX,$162.49
48,J.F. Drake State,30001278,Staples Business Advantage,Apr,30,2014,Materials and Supplies,APEX,$20.45
48,J.F. Drake State,30001278,Staples Business Advantage,Apr,30,2014,Materials and Supplies,Allied Health,$803.03
48,J.F. Drake State,10001680,US Department of Veteran Affairs,Apr,30,2014,AR Suspense,General Operating Fund,$139.00
48,J.F. Drake State,10001685,WOW! Business,Apr,30,2014,Communications,General Operating Fund,$61.95
48,J.F. Drake State,10001690,Alabama Child Support,May,1,2014,Misc Deductions Payable,Payroll Clearing Fund,"$1,130.00"
48,J.F. Drake State,10001691,Allstate Insurance,May,1,2014,Misc Deductions Payable,Payroll Clearing Fund,$66.13
48,J.F. Drake State,10001692,American Family Life,May,1,2014,Misc Deductions Payable,Payroll Clearing Fund,$133.18
48,J.F. Drake State,10001693,Colonial Life Insurance,May,1,2014,Misc Deductions Payable,Payroll Clearing Fund,$39.65
48,J.F. Drake State,10001694,Drake State Foundation,May,1,2014,Misc Deductions Payable,Payroll Clearing Fund,$245.42
48,J.F. Drake State,10001695,Educators Benefit,May,1,2014,Misc Deductions Payable,Payroll Clearing Fund,"$1,174.61"
48,J.F. Drake State,10001686,Huntsville Utilities,May,1,2014,Water & Sewer,General Operating Fund,$8.15
48,J.F. Drake State,10001696,"Jane Smith, Circuit Clerk",May,1,2014,Misc Deductions Payable,Payroll Clearing Fund,$128.68
48,J.F. Drake State,10001697,Linda B. Gore,May,1,2014,Misc Deductions Payable,Payroll Clearing Fund,"$1,080.00"
48,J.F. Drake State,10001698,Metropolitan Life Insurance Company,May,1,2014,Misc Deductions Payable,Payroll Clearing Fund,$100.00
48,J.F. Drake State,10001699,NAECU,May,1,2014,Misc Deductions Payable,Payroll Clearing Fund,"$3,127.00"
48,J.F. Drake State,10001700,New York Life Insurance,May,1,2014,Misc Deductions Payable,Payroll Clearing Fund,$365.25
48,J.F. Drake State,10001701,PEEHIP,May,1,2014,PEEHIP Payable,Payroll Clearing Fund,"$76,662.22"
48,J.F. Drake State,10001702,Philip A Geddes,May,1,2014,Misc Deductions Payable,Payroll Clearing Fund,$430.00
48,J.F. Drake State,10001703,RSA-1 Deferred Compensation,May,1,2014,Misc Deductions Payable,Payroll Clearing Fund,$224.77
48,J.F. Drake State,10001687,Schrimsher Properties,May,1,2014,Rent - Facilities,General Operating Fund,"$6,715.00"
48,J.F. Drake State,10001704,Security Benefit Life Insurance Com,May,1,2014,Misc Deductions Payable,Payroll Clearing Fund,$425.00
48,J.F. Drake State,10001705,Teachers Retirement System,May,1,2014,Alabama Teachers Retirement Payable,Payroll Clearing Fund,"$77,022.74"
48,J.F. Drake State,10001706,Truescreen Inc.,May,1,2014,Misc Deductions Payable,Payroll Clearing Fund,$91.00
48,J.F. Drake State,10001707,U.S. Department of Education,May,1,2014,Misc Deductions Payable,Payroll Clearing Fund,$267.73
48,J.F. Drake State,10001708,"United Way of Madison County, Inc.",May,1,2014,Misc Deductions Payable,Payroll Clearing Fund,$385.00
48,J.F. Drake State,10001709,Variable Annuity Life Insurance,May,1,2014,Misc Deductions Payable,Payroll Clearing Fund,$757.50
48,J.F. Drake State,10001689,Von Braun Center,May,1,2014,Graduation Expense,General Operating Fund,"$9,529.75"
48,J.F. Drake State,10001688,Waste Management,May,1,2014,Other Contractual Services,General Operating Fund,$795.85
48,J.F. Drake State,10001710,ACCAPRA,May,5,2014,In State-Registration,General Operating Fund,$75.00
48,J.F. Drake State,30001279,"Chance, Katie E.",May,5,2014,In State-Mileage,Title III,$421.12
48,J.F. Drake State,30001279,"Chance, Katie E.",May,5,2014,In State-Ovrnite Per diem,Title III,$300.00
48,J.F. Drake State,10001711,Cooks Pest Control,May,5,2014,Other Contractual Services,General Operating Fund,$249.00
48,J.F. Drake State,10001711,Cooks Pest Control,May,5,2014,Other Contractual Services,General Operating Fund,$67.00
48,J.F. Drake State,10001712,"Dynamic Security, Inc.",May,5,2014,Other Contractual Services,General Operating Fund,"$4,082.40"
48,J.F. Drake State,10001713,Fastenal Company,May,5,2014,Materials and Supplies,General Operating Fund,"$1,859.68"
48,J.F. Drake State,30001280,"Franklin, Horace L.",May,5,2014,In State-Ovrnite Per diem,Title III,$150.00
48,J.F. Drake State,30001280,"Franklin, Horace L.",May,5,2014,In State-Mileage,Title III,$55.10
48,J.F. Drake State,30001281,Fred Pryor Seminars &/or Career Tra,May,5,2014,Professional Development,Title III,$199.00
48,J.F. Drake State,30001282,Hata David,May,5,2014,Other Contractual Services,DigiTec,$280.00
48,J.F. Drake State,10001714,"Hyman, Jan J.",May,5,2014,Materials and Supplies,Auxiliary - Copier Commissions,$400.00
48,J.F. Drake State,10001714,"Hyman, Jan J.",May,5,2014,Materials and Supplies,Auxiliary - Copier/Vend Commissions,$400.00
48,J.F. Drake State,10001719,"McDaniel, Darvin D.",May,5,2014,Reception,General Operating Fund,$60.78
48,J.F. Drake State,10001715,"Milton, Rodney",May,5,2014,Graduation Expense,General Operating Fund,$100.00
48,J.F. Drake State,10001716,Mullins Special Occasions,May,5,2014,Materials and Supplies,General Operating Fund,$465.00
48,J.F. Drake State,30001283,"Office Depot, Inc",May,5,2014,Materials and Supplies,Allied Health,$537.60
48,J.F. Drake State,30001283,"Office Depot, Inc",May,5,2014,Materials and Supplies,Allied Health,$236.45
48,J.F. Drake State,30001283,"Office Depot, Inc",May,5,2014,Materials and Supplies,Allied Health,$21.90
48,J.F. Drake State,10001717,Pearson VUE,May,5,2014,Testing Expense,State - Adult Ed- GED Vouchers,$25.00
48,J.F. Drake State,10001718,Sam's Club/Walmart,May,5,2014,Graduation Expense,General Operating Fund,$194.11
48,J.F. Drake State,10001727,AL Board of Electrical Contractors,May,7,2014,In State-Registration,DigiTec,$250.00
48,J.F. Drake State,30001290,AL Board of Electrical Contractors,May,7,2014,In State-Registration,DigiTec,$250.00
48,J.F. Drake State,10001729,AT&T,May,7,2014,Communications,General Operating Fund,$1.69
48,J.F. Drake State,10001729,AT&T,May,7,2014,Communications,General Operating Fund,$83.96
48,J.F. Drake State,10001730,"Brown, Melanie",May,7,2014,AR Suspense,General Operating Fund,$70.47
48,J.F. Drake State,30001284,CDW-G Government,May,7,2014,Materials and Supplies,Title III,"$1,414.93"
48,J.F. Drake State,10001720,CDW-G Government,May,7,2014,Non-capitalized Equipment,General Operating Fund,"$2,423.79"
48,J.F. Drake State,10001720,CDW-G Government,May,7,2014,Non-capitalized Equipment,General Operating Fund,"$1,955.10"
48,J.F. Drake State,30001285,Claitors Lawbooks & Publishing,May,7,2014,Books,Title III,$46.94
48,J.F. Drake State,10001721,"Clark, Taska S.",May,7,2014,Materials and Supplies,General Operating Fund,$30.29
48,J.F. Drake State,10001722,"Clementine's Catering, Inc",May,7,2014,Materials and Supplies,General Operating Fund,$35.00
48,J.F. Drake State,10001731,Comcast Cable,May,7,2014,Communications,General Operating Fund,$189.93
48,J.F. Drake State,30001286,"Cross, Tomeka",May,7,2014,Out-of-State-Mileage,GA-AL LSAMP NSF HRD 1305041,$201.60
48,J.F. Drake State,10001728,"Curry, Mary L.",May,7,2014,Graduation Expense,General Operating Fund,$100.00
48,J.F. Drake State,10001723,"Curry, Mary L.",May,7,2014,Graduation Expense,General Operating Fund,$100.00
48,J.F. Drake State,10001724,Evans Awning Company,May,7,2014,Non-capitalized Equipment,Renewal and Repacement Funds,"$1,650.00"
48,J.F. Drake State,30001287,"Pope, Gwendolyn M.",May,7,2014,In State-Mileage,Title III,$113.86
48,J.F. Drake State,30001287,"Pope, Gwendolyn M.",May,7,2014,In State-Other Travel Exp,Title III,$22.00
48,J.F. Drake State,30001288,"Rentz, Joyce L.",May,7,2014,Out-of-State-Other Travel Expenses,Title III,$79.91
48,J.F. Drake State,30001288,"Rentz, Joyce L.",May,7,2014,In State-Ovrnite Per diem,Title III,$150.00
48,J.F. Drake State,30001288,"Rentz, Joyce L.",May,7,2014,Out-of-State-Subsist & Lodging,Title III,$138.14
48,J.F. Drake State,10001732,"Satcher, Malikah S.",May,7,2014,AR Suspense,General Operating Fund,$30.00
48,J.F. Drake State,10001725,"The Solutions Team, Inc.",May,7,2014,Computer Software-Non Cap,General Operating Fund,$200.00
48,J.F. Drake State,30001289,University of New Mexico,May,7,2014,Subcontracts,DigiTec,"$12,989.33"
48,J.F. Drake State,10001733,Verizon Wireless,May,7,2014,Communications,General Operating Fund,"$1,657.80"
48,J.F. Drake State,10001734,Waste Management,May,7,2014,Other Contractual Services,General Operating Fund,$368.57
48,J.F. Drake State,10001726,"Wester, Beth S.",May,7,2014,Materials and Supplies,General Operating Fund,$50.00
48,J.F. Drake State,10001735,ACCSPA,May,9,2014,Memberships,General Operating Fund,$300.00
48,J.F. Drake State,10001736,Alabama Lawnmaster Inc,May,9,2014,Other Contractual Services,General Operating Fund,$225.00
48,J.F. Drake State,10001737,"Dynamic Security, Inc.",May,9,2014,Other Contractual Services,General Operating Fund,"$4,082.40"
48,J.F. Drake State,30001291,"Insight Media, Inc",May,9,2014,Audio Visual,Allied Health,"$4,030.12"
48,J.F. Drake State,30001292,JF Drake State Technical College,May,9,2014,Professional Development,Title III,$260.00
48,J.F. Drake State,10001738,NASPA,May,9,2014,Memberships,General Operating Fund,$242.00
48,J.F. Drake State,10001739,Pearson VUE,May,9,2014,Testing Expense,State - Adult Ed- GED Vouchers,$25.00
48,J.F. Drake State,10001740,"Pope, Gwendolyn M.",May,9,2014,In State-Mileage,Auxiliary - Copier Commissions,$212.49
48,J.F. Drake State,10001740,"Pope, Gwendolyn M.",May,9,2014,In State-Mileage,Auxiliary - Copier/Vend Commissions,$212.49
48,J.F. Drake State,10001741,Rural Community College Alliance,May,9,2014,Memberships,General Operating Fund,$595.00
48,J.F. Drake State,30001293,"Stericycle, Inc.",May,9,2014,Other Contractual Services,Allied Health,$152.94
48,J.F. Drake State,10001742,Sysco,May,9,2014,Materials and Supplies,General Operating Fund,$659.95
48,J.F. Drake State,10001743,The Goodyear Tire & Rubber Company,May,9,2014,Materials and Supplies,General Operating Fund,$299.08
48,J.F. Drake State,10001744,"AAUW, Inc.",May,19,2014,Out-of-State-Other Travel Expenses,General Operating Fund,$445.00
48,J.F. Drake State,30001294,ACCSISA,May,19,2014,In State-Registration,Title III,$500.00
48,J.F. Drake State,10001763,AT & T Business Service,May,19,2014,Communications,General Operating Fund,$358.96
48,J.F. Drake State,10001745,Albert's Flowers & Greenhouses,May,19,2014,Graduation Expense,General Operating Fund,$510.00
48,J.F. Drake State,10001746,"Banks Industries, Inc",May,19,2014,Materials and Supplies,General Operating Fund,"$2,110.00"
48,J.F. Drake State,10001748,C.C. Dickson Co.,May,19,2014,Materials and Supplies,General Operating Fund,$74.00
48,J.F. Drake State,10001749,CDW-G Government,May,19,2014,Materials and Supplies,Federal - Adult Ed,$173.79
48,J.F. Drake State,30001296,CDW-G Government,May,19,2014,Materials and Supplies,Title III,"$7,860.65"
48,J.F. Drake State,30001295,Capital Trailways,May,19,2014,In State-Commercl Transprt,Trio-SSS Grant,"$1,625.00"
48,J.F. Drake State,10001750,Department of Finance,May,19,2014,Communications,General Operating Fund,$45.78
48,J.F. Drake State,10001764,"Dynamic Security, Inc.",May,19,2014,Other Contractual Services,General Operating Fund,"$4,082.40"
48,J.F. Drake State,10001751,ELSEVIER,May,19,2014,Purchases for Re-Sale,Auxiliary - Nursing Fees,$459.00
48,J.F. Drake State,10001751,ELSEVIER,May,19,2014,Materials and Supplies,General Operating Fund,$226.91
48,J.F. Drake State,10001751,ELSEVIER,May,19,2014,Purchases for Re-Sale,Auxiliary - Nursing Fees,$150.00
48,J.F. Drake State,10001751,ELSEVIER,May,19,2014,Purchases for Re-Sale,Auxiliary - Nursing Fees,$799.00
48,J.F. Drake State,30001297,ELSEVIER,May,19,2014,Subscriptions,Allied Health,"$1,124.25"
48,J.F. Drake State,10001759,ELSEVIER,May,19,2014,Purchases for Re-Sale,General Operating Fund,$447.47
48,J.F. Drake State,10001760,Ellucian Company L.P.,May,19,2014,Other Contractual Services,General Operating Fund,"$9,489.00"
48,J.F. Drake State,10001760,Ellucian Company L.P.,May,19,2014,Construction in Progress,Renewal and Repacement Funds,"$13,823.00"
48,J.F. Drake State,10001752,Graybar,May,19,2014,Maintenance & Repairs,General Operating Fund,$126.50
48,J.F. Drake State,30001298,"Green, Timothy R.",May,19,2014,In State-Ovrnite Per diem,Title III,$300.00
48,J.F. Drake State,30001298,"Green, Timothy R.",May,19,2014,In State-Mileage,Title III,$123.79
48,J.F. Drake State,10001761,Huntsville Utilities,May,19,2014,Water & Sewer,General Operating Fund,$39.81
48,J.F. Drake State,10001761,Huntsville Utilities,May,19,2014,Water & Sewer,General Operating Fund,$349.37
48,J.F. Drake State,30001299,Instructional Officers Association,May,19,2014,In State-Registration,Title III,$200.00
48,J.F. Drake State,10001753,J.R. Enterprises,May,19,2014,Advertising & Promotions,General Operating Fund,"$4,430.00"
48,J.F. Drake State,10001754,Kristin T. Scoggin,May,19,2014,Honorariums,General Operating Fund,$150.00
48,J.F. Drake State,10001765,Loomis,May,19,2014,Other Contractual Services,General Operating Fund,$146.52
48,J.F. Drake State,30001300,"McLaughlin, Scotty",May,19,2014,In State-Ovrnite Per diem,Title III,$150.00
48,J.F. Drake State,30001300,"McLaughlin, Scotty",May,19,2014,In State-Mileage,Title III,$117.94
48,J.F. Drake State,30001301,"Meador, Maria Y.",May,19,2014,In State-Other Travel Exp,Trio-SSS Grant,$800.00
48,J.F. Drake State,30001302,Moore Medical Corp,May,19,2014,Materials and Supplies,Allied Health,$330.00
48,J.F. Drake State,10001755,Mr. Rootor,May,19,2014,Maintenance & Repairs,General Operating Fund,$285.56
48,J.F. Drake State,30001303,Myrtes Dunn Green Green and Associa,May,19,2014,Other Contractual Services,Allied Health,"$6,000.00"
48,J.F. Drake State,30001306,PEEHIP,May,19,2014,Health Insurance-Institution Share,Title III,$666.40
48,J.F. Drake State,30001304,"Raymond, Alice G.",May,19,2014,Out-of-State-Subsist & Lodging,Title III,"$1,167.75"
48,J.F. Drake State,30001304,"Raymond, Alice G.",May,19,2014,Out-of-State-Registration,Title III,$850.00
48,J.F. Drake State,30001304,"Raymond, Alice G.",May,19,2014,Out-of-State-Other Travel Expenses,Title III,$61.95
48,J.F. Drake State,30001304,"Raymond, Alice G.",May,19,2014,Out-of-State-Commercl Trans,Title III,$22.00
48,J.F. Drake State,10001756,"STI Electronics, Inc",May,19,2014,Materials and Supplies,General Operating Fund,$71.50
48,J.F. Drake State,30001305,Staples Business Advantage,May,19,2014,Materials and Supplies,Opening Doors Challenge Grant,$873.75
48,J.F. Drake State,30001305,Staples Business Advantage,May,19,2014,Materials and Supplies,Opening Doors Challenge Grant,$214.60
48,J.F. Drake State,10001757,"The Solutions Team, Inc.",May,19,2014,Computer Software-Non Cap,General Operating Fund,$200.00
48,J.F. Drake State,10001758,"Thomas Electric, Inc.",May,19,2014,Maintenance & Repairs,General Operating Fund,"$1,360.10"
48,J.F. Drake State,10001762,WEX Bank,May,19,2014,Gasoline & Oil-Motor Vehicle,General Operating Fund,$42.91
48,J.F. Drake State,30001307,WEX Bank,May,19,2014,In State-Mileage,Title III,$28.91
48,J.F. Drake State,30001307,WEX Bank,May,19,2014,In State-Mileage,Title III,$33.63
48,J.F. Drake State,30001307,WEX Bank,May,19,2014,In State-Other Travel Exp,Title III,$46.65
48,J.F. Drake State,30001307,WEX Bank,May,19,2014,In State-Other Travel Exp,Title III,$100.70
48,J.F. Drake State,10001762,WEX Bank,May,19,2014,Gasoline & Oil-Motor Vehicle,General Operating Fund,$55.71
48,J.F. Drake State,30001307,WEX Bank,May,19,2014,In State-Other Travel Exp,Title III,$64.64
48,J.F. Drake State,10001762,WEX Bank,May,19,2014,Gasoline & Oil-Motor Vehicle,General Operating Fund,$111.83
48,J.F. Drake State,30001307,WEX Bank,May,19,2014,In State-Other Travel Exp,Title III,$60.93
48,J.F. Drake State,30001307,WEX Bank,May,19,2014,In State-Other Travel Exp,Title III,$125.29
48,J.F. Drake State,10001762,WEX Bank,May,19,2014,Gasoline & Oil-Motor Vehicle,General Operating Fund,$40.04
48,J.F. Drake State,30001307,WEX Bank,May,19,2014,In State-Other Travel Exp,Title III,$46.48
48,J.F. Drake State,30001307,WEX Bank,May,19,2014,In State-Mileage,Title III,$44.67
48,J.F. Drake State,10001762,WEX Bank,May,19,2014,Gasoline & Oil-Motor Vehicle,General Operating Fund,$43.44
48,J.F. Drake State,30001307,WEX Bank,May,19,2014,Gasoline & Oil-Motor Vehicle,APEX,$36.03
48,J.F. Drake State,30001307,WEX Bank,May,19,2014,In State-Mileage,Title III,$27.53
48,J.F. Drake State,10001762,WEX Bank,May,19,2014,Gasoline & Oil-Motor Vehicle,General Operating Fund,$35.53
48,J.F. Drake State,30001307,WEX Bank,May,19,2014,In State-Other Travel Exp,Title III,$59.89
48,J.F. Drake State,10001762,WEX Bank,May,19,2014,Gasoline & Oil-Motor Vehicle,General Operating Fund,$40.44
48,J.F. Drake State,10001747,Woody Anderson Ford,May,19,2014,Maintenance & Repairs,General Operating Fund,$45.86
48,J.F. Drake State,10001766,ACT,May,27,2014,Materials and Supplies,General Operating Fund,$828.00
48,J.F. Drake State,30001308,Alabama Deans of Student Affairs As,May,27,2014,Out-of-State-Registration,Title III,$125.00
48,J.F. Drake State,10001767,Alabama Skills USA,May,27,2014,Out-of-State-Subsist & Lodging,General Operating Fund,"$3,000.00"
48,J.F. Drake State,10001767,Alabama Skills USA,May,27,2014,Out-of-State-Registration,General Operating Fund,"$1,110.00"
48,J.F. Drake State,30001309,CDW-G Government,May,27,2014,Non-capitalized Equipment,Title III,$49.38
48,J.F. Drake State,30001309,CDW-G Government,May,27,2014,Non-capitalized Equipment,Title III,"$1,835.37"
48,J.F. Drake State,10001768,"CustomInk,LLC",May,27,2014,Materials and Supplies,VERIZON AWARD,"$1,532.70"
48,J.F. Drake State,10001769,"Dynamic Security, Inc.",May,27,2014,Other Contractual Services,General Operating Fund,"$4,082.40"
48,J.F. Drake State,10001770,Enterprise,May,27,2014,Rent - Equipment,Auxiliary - Copier/Vend Commissions,$586.31
48,J.F. Drake State,10001770,Enterprise,May,27,2014,Rent - Equipment,Auxiliary - Copier Commissions,$586.31
48,J.F. Drake State,10001771,"Galindo-Baird, Yibeli",May,27,2014,In State-Mileage,General Operating Fund,$208.32
48,J.F. Drake State,10001772,"Gaymon, Denise C.",May,27,2014,Out-of-State-Other Travel Expenses,General Operating Fund,$150.00
48,J.F. Drake State,10001780,Huntsville Utilities,May,27,2014,Electricity,General Operating Fund,$532.71
48,J.F. Drake State,10001780,Huntsville Utilities,May,27,2014,Water & Sewer,General Operating Fund,$336.95
48,J.F. Drake State,10001780,Huntsville Utilities,May,27,2014,Water & Sewer,General Operating Fund,"$1,989.59"
48,J.F. Drake State,10001780,Huntsville Utilities,May,27,2014,Electricity,General Operating Fund,"$20,417.70"
48,J.F. Drake State,10001780,Huntsville Utilities,May,27,2014,Electricity,General Operating Fund,$172.49
48,J.F. Drake State,10001773,"Koorsen Security Technology, Inc",May,27,2014,Other Contractual Services,General Operating Fund,$299.30
48,J.F. Drake State,10001781,"Lanier, Ford, Shaver & Payne PC",May,27,2014,Legal Services,General Operating Fund,$565.50
48,J.F. Drake State,10001781,"Lanier, Ford, Shaver & Payne PC",May,27,2014,Legal Services,General Operating Fund,$754.05
48,J.F. Drake State,10001774,"Meador, Maria Y.",May,27,2014,Materials and Supplies,VERIZON AWARD,$600.00
48,J.F. Drake State,10001775,Mullins Special Occasions,May,27,2014,Materials and Supplies,General Operating Fund,$60.00
48,J.F. Drake State,10001776,"Office Depot, Inc",May,27,2014,Materials and Supplies,General Operating Fund,$131.76
48,J.F. Drake State,10001776,"Office Depot, Inc",May,27,2014,Materials and Supplies,General Operating Fund,$1.32
48,J.F. Drake State,10001777,Pearson VUE,May,27,2014,Testing Expense,State - Adult Ed- GED Vouchers,$25.00
48,J.F. Drake State,10001778,"Robinson, Rosemary",May,27,2014,Materials and Supplies,VERIZON AWARD,"$3,000.00"
48,J.F. Drake State,10001778,"Robinson, Rosemary",May,27,2014,Other Contractual Services,VERIZON AWARD,$500.00
48,J.F. Drake State,10001783,Sam's Club/Walmart,May,27,2014,Materials and Supplies,VERIZON AWARD,$489.95
48,J.F. Drake State,30001310,"Stewart, Verlindsey B.",May,27,2014,In State-Ovrnite Per diem,Title III,$150.00
48,J.F. Drake State,10001782,WOW! Business,May,27,2014,Communications,General Operating Fund,$53.52
48,J.F. Drake State,10001779,"Wholesale Trophies, Inc",May,27,2014,Graduation Expense,General Operating Fund,$49.95
48,J.F. Drake State,30001311,AACRAO,May,30,2014,Materials and Supplies,Title III,$209.00
48,J.F. Drake State,10001784,Albert's Flowers & Greenhouses,May,30,2014,Materials and Supplies,General Operating Fund,$143.50
48,J.F. Drake State,30001312,Arbor Scientific,May,30,2014,Materials and Supplies,APEX,$665.41
48,J.F. Drake State,30001313,"Baker, Tameka D.",May,30,2014,Scholarships,GA-AL LSAMP NSF HRD 1305041,$500.00
48,J.F. Drake State,10001796,Berney Office Solutions,May,30,2014,Other Contractual Services,General Operating Fund,$549.32
48,J.F. Drake State,30001314,"Burden, Frank E.",May,30,2014,Scholarships,GA-AL LSAMP NSF HRD 1305041,$500.00
48,J.F. Drake State,10001785,C.C. Dickson Co.,May,30,2014,Materials and Supplies,General Operating Fund,$64.90
48,J.F. Drake State,30001315,Capital Trailways,May,30,2014,In State-Commercl Transprt,Trio-SSS Grant,$741.00
48,J.F. Drake State,30001316,Carolina Biological Supply Company,May,30,2014,Materials and Supplies,APEX,$27.17
48,J.F. Drake State,30001317,"Colon, Tomeka S.",May,30,2014,Scholarships,GA-AL LSAMP NSF HRD 1305041,$500.00
48,J.F. Drake State,30001318,Connections Housing,May,30,2014,Out-of-State-Subsist & Lodging,Title III,"$4,450.86"
48,J.F. Drake State,10001786,Cooks Pest Control,May,30,2014,Other Contractual Services,General Operating Fund,$67.00
48,J.F. Drake State,10001786,Cooks Pest Control,May,30,2014,Other Contractual Services,General Operating Fund,$249.00
48,J.F. Drake State,10001787,Crown Trophy,May,30,2014,Deposit Liabilities,SGA Funds,$193.20
48,J.F. Drake State,30001319,"Dukemineer, Amelia J.",May,30,2014,In State-Mileage,Spin Up,$45.36
48,J.F. Drake State,10001788,"Dynamic Security, Inc.",May,30,2014,Other Contractual Services,General Operating Fund,"$4,082.40"
48,J.F. Drake State,10001797,Earthlink,May,30,2014,Communications,General Operating Fund,"$5,458.54"
48,J.F. Drake State,30001320,"Educational Innovations, Inc.",May,30,2014,Materials and Supplies,APEX,$906.67
48,J.F. Drake State,10001789,Ellucian Company L.P.,May,30,2014,Other Contractual Services,General Operating Fund,"$11,978.00"
48,J.F. Drake State,10001798,FedEx,May,30,2014,Freight,General Operating Fund,$26.77
48,J.F. Drake State,10001798,FedEx,May,30,2014,Freight,General Operating Fund,$28.52
48,J.F. Drake State,10001799,"Franklin, Horace L.",May,30,2014,Communications,General Operating Fund,$363.42
48,J.F. Drake State,10001790,Graybar,May,30,2014,Maintenance & Repairs,General Operating Fund,$16.75
48,J.F. Drake State,10001791,"Ivey, Neoka J.",May,30,2014,In State-Ovrnite Per diem,Auxiliary - Copier Commissions,$225.00
48,J.F. Drake State,10001791,"Ivey, Neoka J.",May,30,2014,In State-Ovrnite Per diem,Auxiliary - Copier/Vend Commissions,$225.00
48,J.F. Drake State,30001321,"Johnson, Nina M.",May,30,2014,Scholarships,GA-AL LSAMP NSF HRD 1305041,$500.00
48,J.F. Drake State,30001322,"Kelvin, LP",May,30,2014,Materials and Supplies,APEX,$10.00
48,J.F. Drake State,30001322,"Kelvin, LP",May,30,2014,Materials and Supplies,APEX,$95.70
48,J.F. Drake State,30001323,"Meador, Maria Y.",May,30,2014,In State-Other Travel Exp,Trio-SSS Grant,$750.00
48,J.F. Drake State,10001792,Minuteman Press,May,30,2014,Other Contractual Services,General Operating Fund,$317.45
48,J.F. Drake State,10001793,"Mobile Mini, Inc",May,30,2014,Other Contractual Services,General Operating Fund,$123.04
48,J.F. Drake State,30001324,"Office Depot, Inc",May,30,2014,Materials and Supplies,Allied Health,$239.99
48,J.F. Drake State,10001794,"Office Depot, Inc",May,30,2014,Materials and Supplies,General Operating Fund,$16.95
48,J.F. Drake State,30001324,"Office Depot, Inc",May,30,2014,Materials and Supplies,Title III,$10.49
48,J.F. Drake State,30001324,"Office Depot, Inc",May,30,2014,Materials and Supplies,Title III,$174.96
48,J.F. Drake State,30001324,"Office Depot, Inc",May,30,2014,Materials and Supplies,Allied Health,$727.56
48,J.F. Drake State,30001324,"Office Depot, Inc",May,30,2014,Materials and Supplies,Allied Health,$74.97
48,J.F. Drake State,30001325,"Opoku-Boateng, Akua K.",May,30,2014,In State-Mileage,Spin Up,$32.03
48,J.F. Drake State,30001325,"Opoku-Boateng, Akua K.",May,30,2014,In State-Mileage,Spin Up,$77.06
48,J.F. Drake State,30001326,PaperClip Communications,May,30,2014,Professional Development,Title III,$206.00
48,J.F. Drake State,30001327,SACSCOC,May,30,2014,Memberships,Title III,"$5,138.00"
48,J.F. Drake State,30001328,Sargent-Welch,May,30,2014,Non-capitalized Equipment,APEX,"$1,343.69"
48,J.F. Drake State,30001329,"Teague, Forrest B.",May,30,2014,In State-Ovrnite Per diem,Title III,$300.00
48,J.F. Drake State,30001330,Vernier Software & Technology LLC,May,30,2014,Materials and Supplies,APEX,$229.00
48,J.F. Drake State,10001795,Von Braun Center,May,30,2014,Advertising & Promotions,General Operating Fund,$200.00
48,J.F. Drake State,30001331,"Walker, Anita G.",May,30,2014,In State-Mileage,Spin Up,$82.88
48,J.F. Drake State,30001332,Ward's Science,May,30,2014,Materials and Supplies,APEX,$62.72
48,J.F. Drake State,30001332,Ward's Science,May,30,2014,Materials and Supplies,APEX,$100.52
48,J.F. Drake State,30001332,Ward's Science,May,30,2014,Materials and Supplies,APEX,$92.49
48,J.F. Drake State,30001333,"Will, Robert A.",May,30,2014,Participant Costs-Stipends,Printing the Complete CubeSat,"$2,269.95"
48,J.F. Drake State,10001801,Alabama Child Support,Jun,2,2014,Misc Deductions Payable,Payroll Clearing Fund,"$1,130.00"
48,J.F. Drake State,10001802,Allstate Insurance,Jun,2,2014,Misc Deductions Payable,Payroll Clearing Fund,$66.13
48,J.F. Drake State,10001803,American Family Life,Jun,2,2014,Misc Deductions Payable,Payroll Clearing Fund,$133.18
48,J.F. Drake State,10001804,Colonial Life Insurance,Jun,2,2014,Misc Deductions Payable,Payroll Clearing Fund,$39.65
48,J.F. Drake State,10001805,Drake State Foundation,Jun,2,2014,Misc Deductions Payable,Payroll Clearing Fund,$245.42
48,J.F. Drake State,10001806,Educators Benefit,Jun,2,2014,Misc Deductions Payable,Payroll Clearing Fund,"$1,174.61"
48,J.F. Drake State,10001807,Linda B. Gore,Jun,2,2014,Misc Deductions Payable,Payroll Clearing Fund,"$1,080.00"
48,J.F. Drake State,10001808,Metropolitan Life Insurance Company,Jun,2,2014,Misc Deductions Payable,Payroll Clearing Fund,$100.00
48,J.F. Drake State,10001809,NAECU,Jun,2,2014,Misc Deductions Payable,Payroll Clearing Fund,"$3,127.00"
48,J.F. Drake State,10001810,New York Life Insurance,Jun,2,2014,Misc Deductions Payable,Payroll Clearing Fund,$365.25
48,J.F. Drake State,10001811,PEEHIP,Jun,2,2014,PEEHIP Payable,Payroll Clearing Fund,"$76,725.22"
48,J.F. Drake State,10001812,Philip A Geddes,Jun,2,2014,Misc Deductions Payable,Payroll Clearing Fund,$430.00
48,J.F. Drake State,10001800,Schrimsher Properties,Jun,2,2014,Rent - Facilities,General Operating Fund,"$6,715.00"
48,J.F. Drake State,10001813,Security Benefit Life Insurance Com,Jun,2,2014,Misc Deductions Payable,Payroll Clearing Fund,$425.00
48,J.F. Drake State,10001814,Teachers Retirement System,Jun,2,2014,Alabama Teachers Retirement Payable,Payroll Clearing Fund,"$75,665.35"
48,J.F. Drake State,10001815,Truescreen Inc.,Jun,2,2014,Background Checks,Payroll Clearing Fund,$39.00
48,J.F. Drake State,10001816,U.S. Department of Education,Jun,2,2014,Misc Deductions Payable,Payroll Clearing Fund,$267.73
48,J.F. Drake State,10001817,"United Way of Madison County, Inc.",Jun,2,2014,Misc Deductions Payable,Payroll Clearing Fund,$385.00
48,J.F. Drake State,10001818,Variable Annuity Life Insurance,Jun,2,2014,Misc Deductions Payable,Payroll Clearing Fund,$757.50
48,J.F. Drake State,10001819,AT&T,Jun,3,2014,Communications,General Operating Fund,$83.92
48,J.F. Drake State,10001820,Chase,Jun,3,2014,Materials and Supplies,General Operating Fund,$746.65
48,J.F. Drake State,10001820,Chase,Jun,3,2014,Materials and Supplies,General Operating Fund,$70.21
48,J.F. Drake State,10001820,Chase,Jun,3,2014,Materials and Supplies,General Operating Fund,$181.25
48,J.F. Drake State,10001820,Chase,Jun,3,2014,Materials and Supplies,General Operating Fund,$200.00
48,J.F. Drake State,10001820,Chase,Jun,3,2014,Materials and Supplies,General Operating Fund,$407.50
48,J.F. Drake State,10001820,Chase,Jun,3,2014,Materials and Supplies,General Operating Fund,$124.57
48,J.F. Drake State,10001821,Chevron and Texaco,Jun,3,2014,Gasoline & Oil-Motor Vehicle,General Operating Fund,$27.20
48,J.F. Drake State,10001821,Chevron and Texaco,Jun,3,2014,Gasoline & Oil-Motor Vehicle,General Operating Fund,$35.47
48,J.F. Drake State,10001821,Chevron and Texaco,Jun,3,2014,Gasoline & Oil-Motor Vehicle,General Operating Fund,$40.53
48,J.F. Drake State,10001821,Chevron and Texaco,Jun,3,2014,Gasoline & Oil-Motor Vehicle,General Operating Fund,$41.82
48,J.F. Drake State,10001821,Chevron and Texaco,Jun,3,2014,Gasoline & Oil-Motor Vehicle,General Operating Fund,$45.13
48,J.F. Drake State,10001821,Chevron and Texaco,Jun,3,2014,Gasoline & Oil-Motor Vehicle,General Operating Fund,$23.64
48,J.F. Drake State,10001821,Chevron and Texaco,Jun,3,2014,Gasoline & Oil-Motor Vehicle,General Operating Fund,$36.61
48,J.F. Drake State,10001821,Chevron and Texaco,Jun,3,2014,Gasoline & Oil-Motor Vehicle,General Operating Fund,$38.97
48,J.F. Drake State,10001821,Chevron and Texaco,Jun,3,2014,Gasoline & Oil-Motor Vehicle,General Operating Fund,$31.66
48,J.F. Drake State,10001821,Chevron and Texaco,Jun,3,2014,Credit Card Service Charges,General Operating Fund,$83.35
48,J.F. Drake State,10001821,Chevron and Texaco,Jun,3,2014,Credit Card Service Charges,General Operating Fund,$81.35
48,J.F. Drake State,10001822,Comcast Cable,Jun,3,2014,Communications,General Operating Fund,$180.43
48,J.F. Drake State,10001823,Copeland Cleaners,Jun,3,2014,Materials and Supplies,General Operating Fund,$90.64
48,J.F. Drake State,10001823,Copeland Cleaners,Jun,3,2014,Materials and Supplies,General Operating Fund,$45.32
48,J.F. Drake State,10001823,Copeland Cleaners,Jun,3,2014,Materials and Supplies,General Operating Fund,$189.57
48,J.F. Drake State,10001824,Enterprise,Jun,3,2014,Rent - Equipment,Auxiliary - Copier Commissions,$586.31
48,J.F. Drake State,10001824,Enterprise,Jun,3,2014,Rent - Equipment,Auxiliary - Copier/Vend Commissions,$586.31
48,J.F. Drake State,10001825,Huntsville Utilities,Jun,3,2014,Water & Sewer,General Operating Fund,$8.15
48,J.F. Drake State,10001828,Teachers Retirement System,Jun,3,2014,Alabama Teachers Retirement Payable,Payroll Clearing Fund,"$76,326.78"
48,J.F. Drake State,10001826,Verizon Wireless,Jun,3,2014,Communications,General Operating Fund,"$1,633.04"
48,J.F. Drake State,10001827,WEX Bank,Jun,3,2014,Gasoline & Oil-Motor Vehicle,General Operating Fund,$32.15
48,J.F. Drake State,10001827,WEX Bank,Jun,3,2014,Gasoline & Oil-Motor Vehicle,General Operating Fund,$28.48
48,J.F. Drake State,10001827,WEX Bank,Jun,3,2014,Gasoline & Oil-Motor Vehicle,General Operating Fund,$107.78
48,J.F. Drake State,10001827,WEX Bank,Jun,3,2014,Gasoline & Oil-Motor Vehicle,General Operating Fund,$95.97
48,J.F. Drake State,10001827,WEX Bank,Jun,3,2014,Gasoline & Oil-Motor Vehicle,General Operating Fund,$108.21
48,J.F. Drake State,30001334,WEX Bank,Jun,3,2014,In State-Other Travel Exp,Title III,$51.77
48,J.F. Drake State,30001334,WEX Bank,Jun,3,2014,In State-Mileage,Title III,$24.56
48,J.F. Drake State,10001829,Alabama Lawnmaster Inc,Jun,9,2014,Other Contractual Services,General Operating Fund,"$3,045.00"
48,J.F. Drake State,10001830,"Battle, Jr., Ben",Jun,9,2014,In State-Mileage,Auxiliary - Copier Commissions,$116.42
48,J.F. Drake State,10001830,"Battle, Jr., Ben",Jun,9,2014,In State-Ovrnite Per diem,Auxiliary - Copier Commissions,$150.00
48,J.F. Drake State,10001830,"Battle, Jr., Ben",Jun,9,2014,In State-Ovrnite Per diem,Auxiliary - Copier/Vend Commissions,$150.00
48,J.F. Drake State,10001830,"Battle, Jr., Ben",Jun,9,2014,In State-Mileage,Auxiliary - Copier/Vend Commissions,$116.42
48,J.F. Drake State,10001832,"Bell, Angela N.",Jun,9,2014,In State-Ovrnite Per diem,Auxiliary - Copier Commissions,$225.00
48,J.F. Drake State,10001832,"Bell, Angela N.",Jun,9,2014,In State-Mileage,Auxiliary - Copier Commissions,$116.42
48,J.F. Drake State,10001832,"Bell, Angela N.",Jun,9,2014,In State-Ovrnite Per diem,Auxiliary - Copier/Vend Commissions,$225.00
48,J.F. Drake State,10001832,"Bell, Angela N.",Jun,9,2014,In State-Mileage,Auxiliary - Copier/Vend Commissions,$116.42
48,J.F. Drake State,10001833,CDW-G Government,Jun,9,2014,Materials and Supplies,General Operating Fund,$843.71
48,J.F. Drake State,30001335,CDW-G Government,Jun,9,2014,Non-capitalized Equipment,Title III,"$1,598.44"
48,J.F. Drake State,10001833,CDW-G Government,Jun,9,2014,Materials and Supplies,General Operating Fund,$933.96
48,J.F. Drake State,10001834,Copeland Cleaners,Jun,9,2014,Other Contractual Services,Auxiliary - Copier Commissions,$80.93
48,J.F. Drake State,10001834,Copeland Cleaners,Jun,9,2014,Other Contractual Services,Auxiliary - Copier/Vend Commissions,$28.55
48,J.F. Drake State,10001834,Copeland Cleaners,Jun,9,2014,Other Contractual Services,Auxiliary - Copier/Vend Commissions,$51.26
48,J.F. Drake State,10001834,Copeland Cleaners,Jun,9,2014,Other Contractual Services,Auxiliary - Copier Commissions,$28.55
48,J.F. Drake State,10001834,Copeland Cleaners,Jun,9,2014,Other Contractual Services,Auxiliary - Copier Commissions,$50.99
48,J.F. Drake State,10001834,Copeland Cleaners,Jun,9,2014,Other Contractual Services,Auxiliary - Copier/Vend Commissions,$80.93
48,J.F. Drake State,10001834,Copeland Cleaners,Jun,9,2014,Other Contractual Services,Auxiliary - Copier/Vend Commissions,$50.99
48,J.F. Drake State,10001834,Copeland Cleaners,Jun,9,2014,Materials and Supplies,General Operating Fund,$71.07
48,J.F. Drake State,10001834,Copeland Cleaners,Jun,9,2014,Other Contractual Services,Auxiliary - Copier Commissions,$51.26
48,J.F. Drake State,10001835,"Dynamic Security, Inc.",Jun,9,2014,Other Contractual Services,General Operating Fund,"$4,082.40"
48,J.F. Drake State,10001836,"Egson, Ronald E.",Jun,9,2014,In State-Mileage,Auxiliary - Copier Commissions,$116.48
48,J.F. Drake State,10001836,"Egson, Ronald E.",Jun,9,2014,In State-Ovrnite Per diem,Auxiliary - Copier/Vend Commissions,$150.00
48,J.F. Drake State,10001836,"Egson, Ronald E.",Jun,9,2014,In State-Mileage,Auxiliary - Copier/Vend Commissions,$116.48
48,J.F. Drake State,10001836,"Egson, Ronald E.",Jun,9,2014,In State-Ovrnite Per diem,Auxiliary - Copier Commissions,$150.00
48,J.F. Drake State,10001837,"Freeman, David E.",Jun,9,2014,Materials and Supplies,General Operating Fund,$25.00
48,J.F. Drake State,10001838,Future Business Leaders of America-,Jun,9,2014,Deposit Liabilities,Phi Beta Lambda,$17.00
48,J.F. Drake State,10001839,GarageWear,Jun,9,2014,Deposit Liabilities,Car Show,$507.00
48,J.F. Drake State,30001336,"Harbor Freight Tools USA, Inc",Jun,9,2014,Materials and Supplies,APEX,$56.24
48,J.F. Drake State,10001840,"Henry, Dexter R.",Jun,9,2014,In State-Ovrnite Per diem,Auxiliary - Copier Commissions,$225.00
48,J.F. Drake State,10001840,"Henry, Dexter R.",Jun,9,2014,In State-Ovrnite Per diem,Auxiliary - Copier/Vend Commissions,$225.00
48,J.F. Drake State,30001337,Hilton San Diego Resort & Spa,Jun,9,2014,Out-of-State-Subsist & Lodging,Spin Up,$570.73
48,J.F. Drake State,30001337,Hilton San Diego Resort & Spa,Jun,9,2014,Participant Costs-Subsistence,Spin Up,$570.73
48,J.F. Drake State,10001841,"Ivey, Neoka J.",Jun,9,2014,Out-of-State-Other Travel Expenses,General Operating Fund,$500.00
48,J.F. Drake State,10001841,"Ivey, Neoka J.",Jun,9,2014,Out-of-State-Other Travel Expenses,General Operating Fund,$600.00
48,J.F. Drake State,30001338,J.R. Enterprises,Jun,9,2014,Materials and Supplies,Opening Doors Challenge Grant,"$9,625.25"
48,J.F. Drake State,10001842,KeyPlus+ School Products,Jun,9,2014,Materials and Supplies,General Operating Fund,$13.60
48,J.F. Drake State,10001843,Minuteman Press,Jun,9,2014,Other Contractual Services,General Operating Fund,$502.02
48,J.F. Drake State,10001843,Minuteman Press,Jun,9,2014,Other Contractual Services,General Operating Fund,$256.42
48,J.F. Drake State,10001843,Minuteman Press,Jun,9,2014,Graduation Expense,General Operating Fund,"$1,926.55"
48,J.F. Drake State,30001339,Minuteman Press,Jun,9,2014,Materials and Supplies,GA-AL LSAMP NSF HRD 1305041,$216.00
48,J.F. Drake State,10001843,Minuteman Press,Jun,9,2014,Graduation Expense,General Operating Fund,"$3,312.30"
48,J.F. Drake State,30001340,"Mouser Electronics, Inc.",Jun,9,2014,Materials and Supplies,APEX,$49.46
48,J.F. Drake State,30001341,"New South, Inc",Jun,9,2014,Books,Title III,$48.19
48,J.F. Drake State,30001342,Nightingale Uniform Company,Jun,9,2014,Materials and Supplies,Allied Health,$239.95
48,J.F. Drake State,10001844,Northwest Shoals Community College,Jun,9,2014,Other Contractual Services,General Operating Fund,$181.32
48,J.F. Drake State,30001343,"Opoku-Boateng, Akua K.",Jun,9,2014,In State-Mileage,Title III,$105.00
48,J.F. Drake State,30001343,"Opoku-Boateng, Akua K.",Jun,9,2014,In State-Mileage,Spin Up,$181.27
48,J.F. Drake State,30001344,PaperClip Communications,Jun,9,2014,Books,Title III,$309.00
